Workbook

Sheet Comparison
A7: Building Location | H7: Loop Information | K7: Unit Cost
A9: Select State | C9: Maryland | E9: Select Country | F9: USA | H9: 25% Methanol | I9: Fluid | L9: =IF(C21="","",C21&" Price") -> Whalen Price
A11: Select Location | C11: Baltimore - Washngtn Int'l Airport | H11: 70 | I11: Loop Temp (F) | L11: 1979
D13: =IF(C11="","Enter location","Your selected location reports a commercial electric cost of $") -> Your selected location reports a commercial electric cost of $ | E13: =IF(C11="","",ROUND(VLOOKUP(C11&", "&C9,data!$D$2:$Q$993,9,FALSE),3)) -> 0.104 | H13: 75 | I13: System Head (Ft) | L13: =IF(C47="","",C47&" Price") -> Whalen Price
D15: =IF(C11="","","Your selected location reports Cooling Load Hours of") -> Your selected location reports Cooling Load Hours of | E15: =IF(C11="","",ROUND(VLOOKUP(C11&", "&C9,data!$D$2:$Q$993,2,FALSE),"0")) -> 1254 | H15: 80 | I15: Pump Efficiency (%) | L15: 1652
D16: =IF(C11="","","Your selected location reports Heating Load Hours of") -> Your selected location reports Heating Load Hours of | E16: =IF(C11="","",ROUND(VLOOKUP(C11&", "&C9,data!$D$2:$Q$993,3,FALSE),"0")) -> 2298
A19: =IF(C25="","Unit 1 Information","Unit 1 Information: "&VLOOKUP(C25,'AHRI Ratings'!$C$2:$X$909,22,FALSE)&" Operation") -> Unit 1 Information: 1-Stage Operation
B21: Manufacturer: | C21: Whalen | E21: Loop Type: | F21: Water Loop
B23: Series: | C23: VI | E23: Diversity Factor: | F23: 0.8 | J23: Price per Million BTU | K23: =ROUND(VLOOKUP(C11&", "&C9,data!$D$2:$R$993,15,FALSE),3)/10.23 -> 0.9775171065
J24: Cost per Million BTU output | K24: =(K23/(100000*(D38/100))*1000000) -> 181.0216864
B25: Model: | C25: VI-A-303 | E25: Percent Full Stage: | F25: 0.2
B27: Rated Cooling Performance | E27: Operating Performance
C28: Full Load Capacity (btuh) | D28: =IF($F$21<>"",IF($F$21="Air Source",VLOOKUP($C$25,'AHRI Ratings'!$C$2:$W$909,4,FALSE),IF($F$21="Water Loop",VLOOKUP($C$25,'AHRI Ratings'!$C$2:$W$909,4,FALSE),IF($F$21="Ground Water",VLOOKUP($C$25,'AHRI Ratings'!$C$2:$W$909,10,FALSE),VLOOKUP($C$25,'AHRI Ratings'!$C$2:$W$909,16,FALSE)))),"") -> 9300 | F28: Demand, kW | G28: =IF(VLOOKUP(C25,'AHRI Ratings'!$C$2:$X$909,22,FALSE)="2-Stage",IF(C11="","",ROUND(((G32/G33)/1000),2)),IF(C11="","",ROUND(((D28/D30)/1000),2))) -> 0.65
C29: =IF(VLOOKUP(C25,'AHRI Ratings'!$C$2:$X$909,22,FALSE)="2-Stage","Part Load capacity (btuh)", "") ->  | D29: =IF(VLOOKUP($C$25,'AHRI Ratings'!$C$2:$X$909,22,FALSE)="2-Stage",IF($F$21<>"",IF($F$21="Air Source", INDEX('AHRI Part Load Ratings'!$F$2:$F$249,MATCH($C$25,'AHRI Part Load Ratings'!$C$2:$C$249,0)+1),IF($F$21="Water Loop", INDEX('AHRI Part Load Ratings'!$F$2:$F$249,MATCH($C$25,'AHRI Part Load Ratings'!$C$2:$C$249,0)+1),IF($F$21="Ground Water", INDEX('AHRI Part Load Ratings'!$L$2:$L$249,MATCH($C$25,'AHRI Part Load Ratings'!$C$2:$C$249,0)+1), INDEX('AHRI Part Load Ratings'!$R$2:$R$249,MATCH($C$25,'AHRI Part Load Ratings'!$C$2:$C$249,0)+1)))),""),"") ->  | F29: Annual Cooling kWh | G29: =IF(C11="","",G28*$E$15*F23) -> 652.08
C30: Full Load EER | D30: =IF($F$21<>"",IF($F$21="Air Source",VLOOKUP($C$25,'AHRI Ratings'!$C$2:$W$909,5,FALSE),IF($F$21="Water Loop",VLOOKUP($C$25,'AHRI Ratings'!$C$2:$W$909,5,FALSE),IF($F$21="Ground Water",VLOOKUP($C$25,'AHRI Ratings'!$C$2:$W$909,11,FALSE),VLOOKUP($C$25,'AHRI Ratings'!$C$2:$W$909,17,FALSE)))),"") -> 14.4 | F30: Annual Cooling cost | G30: =IF(C11="","",G29*$E$13) -> 67.81632
C31: =IF(VLOOKUP(C25,'AHRI Ratings'!$C$2:$X$909,22,FALSE)="2-Stage","Part Load EER","") ->  | D31: =IF(VLOOKUP($C$25,'AHRI Ratings'!$C$2:$X$909,22,FALSE)="2-Stage",IF($F$21<>"",IF($F$21="Air Source", INDEX('AHRI Part Load Ratings'!$G$2:$G$249,MATCH($C$25,'AHRI Part Load Ratings'!$C$2:$C$249,0)+1),IF($F$21="Water Loop", INDEX('AHRI Part Load Ratings'!$G$2:$G$249,MATCH($C$25,'AHRI Part Load Ratings'!$C$2:$C$249,0)+1),IF($F$21="Ground Water", INDEX('AHRI Part Load Ratings'!$M$2:$M$249,MATCH($C$25,'AHRI Part Load Ratings'!$C$2:$C$249,0)+1), INDEX('AHRI Part Load Ratings'!$S$2:$S$249,MATCH($C$25,'AHRI Part Load Ratings'!$C$2:$C$249,0)+1)))),""),"") -> 
C32: =IF($F$21="Air Source","", "Full Load Cooling GPM") -> Full Load Cooling GPM | D32: =IF($F$21="Air Source","",IF(VLOOKUP($C$25,'AHRI Ratings'!$C$2:$X$909,22,FALSE)="2-Stage",IF($F$21<>"",IF($F$21="Air Source", INDEX('AHRI Part Load Ratings'!$H$2:$H$249,MATCH($C$25,'AHRI Part Load Ratings'!$C$2:$C$249,0)+0),IF($F$21="Water Loop", INDEX('AHRI Part Load Ratings'!$H$2:$H$249,MATCH($C$25,'AHRI Part Load Ratings'!$C$2:$C$249,0)+0),IF($F$21="Water", INDEX('AHRI Part Load Ratings'!$N$2:$N$249,MATCH($C$25,'AHRI Part Load Ratings'!$C$2:$C$249,0)+0), INDEX('AHRI Part Load Ratings'!$T$2:$T$249,MATCH($C$25,'AHRI Part Load Ratings'!$C$2:$C$249,0)+0)))),""),IF($F$21<>"",IF($F$21="Air Source", INDEX('AHRI Ratings'!$H$2:$H$909,MATCH($C$25,'AHRI Ratings'!$C$2:$C$909,0)),IF($F$21="Water Loop", INDEX('AHRI Ratings'!$H$2:$H$909,MATCH($C$25,'AHRI Ratings'!$C$2:$C$909,0)),IF($F$21="Ground Water", INDEX('AHRI Ratings'!$N$2:$N$909,MATCH($C$25,'AHRI Ratings'!$C$2:$C$909,0)), INDEX('AHRI Ratings'!$T$2:$T$909,MATCH($C$25,'AHRI Ratings'!$C$2:$C$909,0))))),""))) -> 2.5 | F32: Operating Capacity | G32: =IF(VLOOKUP(C25,'AHRI Ratings'!$C$2:$X$909,22,FALSE)="2-Stage",(D28*F25)+(D29*(1-F25)),D28) -> 9300
C33: =IF(VLOOKUP($C$25,'AHRI Ratings'!$C$2:$X$909,22,FALSE)="2-Stage",IF($F$21="Air Source","", "Part Load Cooling GPM"),"") ->  | D33: =IF(VLOOKUP($C$25,'AHRI Ratings'!$C$2:$X$909,22,FALSE)="2-Stage",IF($F$21="Air Source","",IF(VLOOKUP($C$25,'AHRI Ratings'!$C$2:$X$909,22,FALSE)="2-Stage",IF($F$21<>"",IF($F$21="Air Source", INDEX('AHRI Part Load Ratings'!$H$2:$H$249,MATCH($C$25,'AHRI Part Load Ratings'!$C$2:$C$249,0)+1),IF($F$21="Water Loop", INDEX('AHRI Part Load Ratings'!$H$2:$H$249,MATCH($C$25,'AHRI Part Load Ratings'!$C$2:$C$249,0)+1),IF($F$21="Water", INDEX('AHRI Part Load Ratings'!$N$2:$N$249,MATCH($C$25,'AHRI Part Load Ratings'!$C$2:$C$249,0)+1), INDEX('AHRI Part Load Ratings'!$T$2:$T$249,MATCH($C$25,'AHRI Part Load Ratings'!$C$2:$C$249,0)+1)))),""),IF($F$21<>"",IF($F$21="Air Source", INDEX('AHRI Ratings'!$H$2:$H$909,MATCH($C$25,'AHRI Ratings'!$C$2:$C$909,0)),IF($F$21="Water Loop", INDEX('AHRI Ratings'!$H$2:$H$909,MATCH($C$25,'AHRI Ratings'!$C$2:$C$909,0)),IF($F$21="Ground Water", INDEX('AHRI Ratings'!$N$2:$N$909,MATCH($C$25,'AHRI Ratings'!$C$2:$C$909,0)), INDEX('AHRI Ratings'!$T$2:$T$909,MATCH($C$25,'AHRI Ratings'!$C$2:$C$909,0))))),""))),"") ->  | F33: Operating Efficiency | G33: =IF(VLOOKUP(C25,'AHRI Ratings'!$C$2:$X$909,22,FALSE)="2-Stage",(D30*F25)+(D31*(1-F25)),D30) -> 14.4 | J33: =IF(VLOOKUP($C$25,'AHRI Ratings'!$C$2:$X$909,22,FALSE)="2-Stage",(D32*F25)+(D33*(1-F25)),D32) -> 2.5
C34: =IF($F$21="Air Source","Fan Motor HP", "") ->  | D34: =IF($F$21="Air Source",VLOOKUP($C$25,'AHRI Ratings'!$C$2:$W$909,10,FALSE),"") -> 
B35: Rated Heating Performance | E35: Operating Performance
C36: =IF($F$21="Air Source","Gas Furnace Output (btuh)", "Full Load Capacity (btuh)") -> Full Load Capacity (btuh) | D36: =IF($F$21<>"",IF($F$21="Air Source",VLOOKUP($C$25,'AHRI Ratings'!$C$2:$W$909,7,FALSE),IF($F$21="Water Loop",VLOOKUP($C$25,'AHRI Ratings'!$C$2:$W$909,7,FALSE),IF($F$21="Ground Water",VLOOKUP($C$25,'AHRI Ratings'!$C$2:$W$909,13,FALSE),VLOOKUP($C$25,'AHRI Ratings'!$C$2:$W$909,19,FALSE)))),"") -> 12000 | F36: Demand, kW | G36: =IF(VLOOKUP($C$25,'AHRI Ratings'!$C$2:$X$909,22,FALSE)="2-Stage",IF($F$21="Air Source","",IF($C$25="","",ROUND(((G40/G41)/3.412142)/1000,2))),IF($C$25="","",IF($F$21="Air Source",ROUND((D41*745.699)/1000,2),ROUND(((D36/D38)/3.412142/1000),2)))) -> 0.65
C37: =IF(VLOOKUP($C$25,'AHRI Ratings'!$C$2:$X$909,22,FALSE)="2-Stage",IF($F$21="Air Source","", "Part Load Capacity (btuh)"),"") ->  | D37: =IF(VLOOKUP($C$25,'AHRI Ratings'!$C$2:$X$909,22,FALSE)="2-Stage",IF($F$21<>"",IF($F$21="Air Source", INDEX('AHRI Part Load Ratings'!$I$2:$I$249,MATCH($C$25,'AHRI Part Load Ratings'!$C$2:$C$249,0)+1),IF($F$21="Water Loop", INDEX('AHRI Part Load Ratings'!$I$2:$I$249,MATCH($C$25,'AHRI Part Load Ratings'!$C$2:$C$249,0)+1),IF($F$21="Ground Water", INDEX('AHRI Part Load Ratings'!$O$2:$O$249,MATCH($C$25,'AHRI Part Load Ratings'!$C$2:$C$249,0)+1), INDEX('AHRI Part Load Ratings'!$U$2:$U$249,MATCH($C$25,'AHRI Part Load Ratings'!$C$2:$C$249,0)+1)))),""),"") ->  | F37: Annual Cooling kWh | G37: =$G$36*$E$16*$F$23 -> 1194.96
C38: =IF($F$21="Air Source","AFUE", "Rated Full Load COP") -> Rated Full Load COP | D38: =IF($F$21<>"",IF($F$21="Air Source",VLOOKUP($C$25,'AHRI Ratings'!$C$2:$W$909,8,FALSE),IF($F$21="Water Loop",VLOOKUP($C$25,'AHRI Ratings'!$C$2:$W$909,8,FALSE),IF($F$21="Ground Water",VLOOKUP($C$25,'AHRI Ratings'!$C$2:$W$909,14,FALSE),VLOOKUP($C$25,'AHRI Ratings'!$C$2:$W$909,20,FALSE)))),"") -> 5.4 | F38: Annual Heating cost | G38: =IF($C$11="","",IF($F$21="Air Source",ROUND((G39*K24)+(G37*$E$13),0),ROUND(G37*$E$13,0))) -> 124
C39: =IF(VLOOKUP($C$25,'AHRI Ratings'!$C$2:$X$909,22,FALSE)="2-Stage",IF($F$21="Air Source","", "Rated Part Load COP"),"") ->  | D39: =IF(VLOOKUP($C$25,'AHRI Ratings'!$C$2:$X$909,22,FALSE)="2-Stage",IF($F$21<>"",IF($F$21="Air Source", INDEX('AHRI Part Load Ratings'!$J$2:$J$249,MATCH($C$25,'AHRI Part Load Ratings'!$C$2:$C$249,0)+1),IF($F$21="Water Loop", INDEX('AHRI Part Load Ratings'!$J$2:$J$249,MATCH($C$25,'AHRI Part Load Ratings'!$C$2:$C$249,0)+1),IF($F$21="Ground Water", INDEX('AHRI Part Load Ratings'!$P$2:$P$249,MATCH($C$25,'AHRI Part Load Ratings'!$C$2:$C$249,0)+1), INDEX('AHRI Part Load Ratings'!$V$2:$V$249,MATCH($C$25,'AHRI Part Load Ratings'!$C$2:$C$249,0)+1)))),""),"") ->  | F39: =IF($F$21="Air Source","MMBtu Consumed / Year","") ->  | G39: =IF($F$21="Air Source",(((D36*100)/D38)*$E$16)/1000000,"") -> 
C40: =IF($F$21="Air Source","", "Full Load Heating GPM") -> Full Load Heating GPM | D40: =IF($F$21="Air Source","",IF(VLOOKUP($C$25,'AHRI Ratings'!$C$2:$X$909,22,FALSE)="2-Stage",IF($F$21<>"",IF($F$21="Air Source", INDEX('AHRI Part Load Ratings'!$K$2:$K$249,MATCH($C$25,'AHRI Part Load Ratings'!$C$2:$C$249,0)+0),IF($F$21="Water Loop", INDEX('AHRI Part Load Ratings'!$K$2:$K$249,MATCH($C$25,'AHRI Part Load Ratings'!$C$2:$C$249,0)+0),IF($F$21="Ground Water", INDEX('AHRI Part Load Ratings'!$Q$2:$Q$249,MATCH($C$25,'AHRI Part Load Ratings'!$C$2:$C$249,0)+0), INDEX('AHRI Part Load Ratings'!$W$2:W$249,MATCH($C$25,'AHRI Part Load Ratings'!$C$2:$C$249,0)+0)))),""),IF($F$21<>"",IF($F$21="AirSource", INDEX('AHRI Ratings'!$H$2:$H$909,MATCH($C$25,'AHRI Ratings'!$C$2:$C$909,0)),IF($F$21=" Water Loop", INDEX('AHRI Part Load Ratings'!$H$2:$H$909,MATCH($C$25,'AHRI Ratings'!$C$2:$C$909,0)),IF($F$21="Ground Water", INDEX('AHRI Ratings'!$N$2:$N$909,MATCH($C$25,'AHRI Ratings'!$C$2:$C$909,0)), INDEX('AHRI Ratings'!$T$2:$T$909,MATCH($C$25,'AHRI Ratings'!$C$2:$C$909,0))))),""))) -> 2.5 | F40: =IF($F$21="Air Source","Gas Furnace Output", "Operating Capacity") -> Operating Capacity | G40: =IF(VLOOKUP($C$25,'AHRI Ratings'!$C$2:$X$909,22,FALSE)="2-Stage",($D$36*$F$25)+($D$37*(1-$F$25)),$D$36) -> 12000 | J40: =IF(VLOOKUP($C$25,'AHRI Ratings'!$C$2:$X$909,22,FALSE)="2-Stage",(D40*F25)+(D41*(1-F25)),D40) -> 2.5
C41: =IF(VLOOKUP($C$25,'AHRI Ratings'!$C$2:$X$909,22,FALSE)="2-Stage",IF($F$21="Air Source","", "Part Load Heating GPM"),"") ->  | D41: =IF(VLOOKUP($C$25,'AHRI Ratings'!$C$2:$X$909,22,FALSE)="2-Stage",IF($F$21="Air Source","",IF(VLOOKUP($C$25,'AHRI Ratings'!$C$2:$X$909,22,FALSE)="2-Stage",IF($F$21<>"",IF($F$21="Air Source", INDEX('AHRI Part Load Ratings'!$K$2:$K$249,MATCH($C$25,'AHRI Part Load Ratings'!$C$2:$C$249,0)+1),IF($F$21="Water Loop", INDEX('AHRI Part Load Ratings'!$K$2:$K$249,MATCH($C$25,'AHRI Part Load Ratings'!$C$2:$C$249,0)+1),IF($F$21="Ground Water", INDEX('AHRI Part Load Ratings'!$Q$2:$Q$249,MATCH($C$25,'AHRI Part Load Ratings'!$C$2:$C$249,0)+1), INDEX('AHRI Part Load Ratings'!$W$2:W$249,MATCH($C$25,'AHRI Part Load Ratings'!$C$2:$C$249,0)+1)))),""),IF($F$21<>"",IF($F$21="AirSource", INDEX('AHRI Ratings'!$H$2:$H$909,MATCH($C$25,'AHRI Ratings'!$C$2:$C$909,0)),IF($F$21=" Water Loop", INDEX('AHRI Part Load Ratings'!$H$2:$H$909,MATCH($C$25,'AHRI Ratings'!$C$2:$C$909,0)),IF($F$21="Ground Water", INDEX('AHRI Ratings'!$N$2:$N$909,MATCH($C$25,'AHRI Ratings'!$C$2:$C$909,0)), INDEX('AHRI Ratings'!$T$2:$T$909,MATCH($C$25,'AHRI Ratings'!$C$2:$C$909,0))))),""))),"") ->  | F41: =IF($F$21="Air Source","AFUE", "Operating Efficiency") -> Operating Efficiency | G41: =IF(VLOOKUP($C$25,'AHRI Ratings'!$C$2:$X$909,22,FALSE)="2-Stage",($D$38*$F$25)+($D$39*(1-$F$25)),$D$38) -> 5.4
C42: =IF($F$21="Air Source","Fan Motor HP", "") ->  | D42: =IF($F$21="Air Source",VLOOKUP($C$25,'AHRI Ratings'!$C$2:$W$909,10,FALSE),"") -> 
A45: =IF(C51="","Unit 2 Information","Unit 2 Information: "&VLOOKUP(C51,'AHRI Ratings'!$C$2:$X$909,22,FALSE)&" Operation") -> Unit 2 Information: 1-Stage Operation
B47: Manufacturer: | C47: Whalen | E47: Loop Type: | F47: Water Loop
B49: Series: | C49: VI | E49: Diversity Factor | F49: 0.8 | J49: Price per Million BTU | K49: =ROUND(VLOOKUP(C11&", "&C9,data!$D$2:$R$993,15,FALSE),3)/10.23 -> 0.9775171065
J50: Cost per Million BTU output | K50: =(K49/(100000*(D64/100))*1000000) -> 325.8390355
B51: Model: | C51: VI-A-303 | E51: =IF(VLOOKUP(C51,'AHRI Ratings'!$C$2:$X$909,22,FALSE)="1-Stage", "","Percent Full Stage:") ->  | F51: 0.2
B53: Rated Cooling Performance | E53: Operating Performance
C54: Full Load Capacity (btuh) | D54: =IF($F$47<>"",IF($F$47="Air Source",VLOOKUP($C$51,'AHRI Ratings'!$C$2:$W$909,4,FALSE),IF($F$47="Water Loop",VLOOKUP($C$51,'AHRI Ratings'!$C$2:$W$909,4,FALSE),IF($F$47="Ground Water",VLOOKUP($C$51,'AHRI Ratings'!$C$2:$W$909,10,FALSE),VLOOKUP($C$51,'AHRI Ratings'!$C$2:$W$909,16,FALSE)))),"") -> 9300 | F54: Demand, kW | G54: =IF(VLOOKUP($C$51,'AHRI Ratings'!$C$2:$X$909,22,FALSE)="2-Stage",IF($C$11="","",ROUND((($G$58/$G$59)/1000),2)),IF($C$11="","",ROUND((($D$54/$D$56)/1000),2))) -> 1.16
C55: =IF(VLOOKUP(C51,'AHRI Ratings'!$C$2:$X$909,22,FALSE)="2-Stage","Part Load capacity (btuh)", "") ->  | D55: =IF(VLOOKUP($C$51,'AHRI Ratings'!$C$2:$X$909,22,FALSE)="2-Stage",IF($F$47<>"",IF($F$47="Air Source", INDEX('AHRI Part Load Ratings'!$F$2:$F$249,MATCH($C$51,'AHRI Part Load Ratings'!$C$2:$C$249,0)+1),IF($F$47="Water Loop", INDEX('AHRI Part Load Ratings'!$F$2:$F$249,MATCH($C$51,'AHRI Part Load Ratings'!$C$2:$C$249,0)+1),IF($F$47="Ground Water", INDEX('AHRI Part Load Ratings'!$L$2:$L$249,MATCH($C$51,'AHRI Part Load Ratings'!$C$2:$C$249,0)+1), INDEX('AHRI Part Load Ratings'!$R$2:$R$249,MATCH($C$51,'AHRI Part Load Ratings'!$C$2:$C$249,0)+1)))),""),"") ->  | F55: Annual Cooling kWh | G55: =IF($C$11="","",$G$54*$E$15*$F$49) -> 1163.712
C56: Full Load EER | D56: 8 | F56: Annual Cooling cost | G56: =IF($C$11="","",$G$55*$E$13) -> 121.026048
C57: =IF(VLOOKUP(C51,'AHRI Ratings'!$C$2:$X$909,22,FALSE)="2-Stage","Part Load EER","") ->  | D57: =IF(VLOOKUP($C$51,'AHRI Ratings'!$C$2:$X$909,22,FALSE)="2-Stage",IF($F$47<>"",IF($F$47="Air Source", INDEX('AHRI Part Load Ratings'!$G$2:$G$249,MATCH($C$51,'AHRI Part Load Ratings'!$C$2:$C$249,0)+1),IF($F$47="Water Loop", INDEX('AHRI Part Load Ratings'!$G$2:$G$249,MATCH($C$51,'AHRI Part Load Ratings'!$C$2:$C$249,0)+1),IF($F$47="Ground Water", INDEX('AHRI Part Load Ratings'!$M$2:$M$249,MATCH($C$51,'AHRI Part Load Ratings'!$C$2:$C$249,0)+1), INDEX('AHRI Part Load Ratings'!$S$2:$S$249,MATCH($C$51,'AHRI Part Load Ratings'!$C$2:$C$249,0)+1)))),""),"") -> 
C58: =IF($F$47="Air Source","", "Full Load Cooling GPM") -> Full Load Cooling GPM | D58: =IF($F$47="Air Source","",IF(VLOOKUP($C$51,'AHRI Ratings'!$C$2:$X$909,22,FALSE)="2-Stage",IF($F$47<>"",IF($F$47="Air Source", INDEX('AHRI Part Load Ratings'!$H$2:$H$249,MATCH($C$51,'AHRI Part Load Ratings'!$C$2:$C$249,0)+0),IF($F$47="Water Loop", INDEX('AHRI Part Load Ratings'!$H$2:$H$249,MATCH($C$51,'AHRI Part Load Ratings'!$C$2:$C$249,0)+0),IF($F$47="Water", INDEX('AHRI Part Load Ratings'!$N$2:$N$249,MATCH($C$51,'AHRI Part Load Ratings'!$C$2:$C$249,0)+0), INDEX('AHRI Part Load Ratings'!$T$2:$T$249,MATCH($C$51,'AHRI Part Load Ratings'!$C$2:$C$249,0)+0)))),""),IF($F$47<>"",IF($F$47="Air Source", INDEX('AHRI Ratings'!$H$2:$H$909,MATCH($C$51,'AHRI Ratings'!$C$2:$C$909,0)),IF($F$47="Water Loop", INDEX('AHRI Ratings'!$H$2:$H$909,MATCH($C$51,'AHRI Ratings'!$C$2:$C$909,0)),IF($F$47="Ground Water", INDEX('AHRI Ratings'!$N$2:$N$909,MATCH($C$51,'AHRI Ratings'!$C$2:$C$909,0)), INDEX('AHRI Ratings'!$T$2:$T$909,MATCH($C$51,'AHRI Ratings'!$C$2:$C$909,0))))),""))) -> 2.5 | F58: Operating Capacity | G58: =IF(VLOOKUP($C$51,'AHRI Ratings'!$C$2:$X$909,22,FALSE)="2-Stage",($D$54*$F$51)+($D$55*(1-$F$51)),$D$54) -> 9300
C59: =IF(VLOOKUP($C$51,'AHRI Ratings'!$C$2:$X$909,22,FALSE)="2-Stage",IF($F$47="Air Source","", "Part Load Cooling GPM"),"") ->  | D59: =IF(VLOOKUP($C$51,'AHRI Ratings'!$C$2:$X$909,22,FALSE)="2-Stage",IF($F$47="Air Source","",IF(VLOOKUP($C$51,'AHRI Ratings'!$C$2:$X$909,22,FALSE)="2-Stage",IF($F$47<>"",IF($F$47="Air Source", INDEX('AHRI Part Load Ratings'!$H$2:$H$249,MATCH($C$51,'AHRI Part Load Ratings'!$C$2:$C$249,0)+1),IF($F$47="Water Loop", INDEX('AHRI Part Load Ratings'!$H$2:$H$249,MATCH($C$51,'AHRI Part Load Ratings'!$C$2:$C$249,0)+1),IF($F$47="Water",INDEX('AHRI Part Load Ratings'!$N$2:$N$249,MATCH($C$51,'AHRI Part Load Ratings'!$C$2:$C$249,0)+1), INDEX('AHRI Part Load Ratings'!$T$2:$T$249,MATCH($C$51,'AHRI Part Load Ratings'!$C$2:$C$249,0)+1)))),""),IF($F$47<>"",IF($F$47="Air Source", INDEX('AHRI Ratings'!$H$2:$H$909,MATCH($C$51,'AHRI Ratings'!$C$2:$C$909,0)),IF($F$47="Water Loop", INDEX('AHRI Ratings'!$H$2:$H$909,MATCH($C$51,'AHRI Ratings'!$C$2:$C$909,0)),IF($F$47="Ground Water", INDEX('AHRI Ratings'!$N$2:$N$909,MATCH($C$51,'AHRI Ratings'!$C$2:$C$909,0)), INDEX('AHRI Ratings'!$T$2:$T$909,MATCH($C$51,'AHRI Ratings'!$C$2:$C$909,0))))),""))),"") ->  | F59: Operating Efficiency | G59: =IF(VLOOKUP($C$51,'AHRI Ratings'!$C$2:$X$909,22,FALSE)="2-Stage",IF(VLOOKUP($C$51,'AHRI Ratings'!$C$2:$X$909,22,FALSE)="2-Stage",($D$56*$F$51)+($D$57*(1-$F$51)),$D$56),$D$56) -> 8 | J59: =IF(VLOOKUP($C$51,'AHRI Ratings'!$C$2:$X$909,22,FALSE)="2-Stage",(D58*F51)+(D59*(1-F51)),D58) -> 2.5
C60: =IF($F$47="Air Source","Fan Motor HP", "") ->  | D60: =IF($F$47="Air Source",VLOOKUP($C$51,'AHRI Ratings'!$C$2:$W$909,10,FALSE),"") -> 
B61: Rated Heating Performance | E61: Operating Performance
C62: =IF($F$47="Air Source","Gas Furnace Output (btuh)", "Full Load Capacity (btuh)") -> Full Load Capacity (btuh) | D62: =IF($F$47<>"",IF($F$47="Air Source",VLOOKUP($C$51,'AHRI Ratings'!$C$2:$W$909,7,FALSE),IF($F$47="Water Loop",VLOOKUP($C$51,'AHRI Ratings'!$C$2:$W$909,7,FALSE),IF($F$47="Ground Water",VLOOKUP($C$51,'AHRI Ratings'!$C$2:$W$909,13,FALSE),VLOOKUP($C$51,'AHRI Ratings'!$C$2:$W$909,19,FALSE)))),"") -> 12000 | F62: Demand, kW | G62: =IF(VLOOKUP($C$51,'AHRI Ratings'!$C$2:$X$909,22,FALSE)="2-Stage",IF($F$47="Air Source","",IF($C$51="","",ROUND((($G$66/$G$67)/3.412142)/1000,2))),IF($C$51="","",IF($F$47="Air Source",ROUND(($D$68*745.699)/1000,2),ROUND((($D$62/$D$64)/3.412142/1000),2)))) -> 1.17
C63: =IF(VLOOKUP($C$51,'AHRI Ratings'!$C$2:$X$909,22,FALSE)="2-Stage",IF($F$47="Air Source","", "Part Load Capacity (btuh)"),"") ->  | D63: =IF(VLOOKUP($C$51,'AHRI Ratings'!$C$2:$X$909,22,FALSE)="2-Stage",IF($F$47<>"",IF($F$47="Air Source", INDEX('AHRI Part Load Ratings'!$I$2:$I$249,MATCH($C$51,'AHRI Part Load Ratings'!$C$2:$C$249,0)+1),IF($F$47="Water Loop", INDEX('AHRI Part Load Ratings'!$I$2:$I$249,MATCH($C$51,'AHRI Part Load Ratings'!$C$2:$C$249,0)+1),IF($F$47="Ground Water", INDEX('AHRI Part Load Ratings'!$O$2:$O$249,MATCH($C$51,'AHRI Part Load Ratings'!$C$2:$C$249,0)+1), INDEX('AHRI Part Load Ratings'!$U$2:$U$249,MATCH($C$51,'AHRI Part Load Ratings'!$C$2:$C$249,0)+1)))),""),"") ->  | F63: Annual Heating kWh | G63: =$G$62*$E$16*$F$49 -> 2150.928
C64: =IF($F$47="Air Source","AFUE", "Rated Full Load COP") -> Rated Full Load COP | D64: 3 | F64: Annual Heating cost | G64: =IF($C$11="","",IF($F$47="Air Source",ROUND(($G$65*$K$50)+($G$63*$E$13),0),ROUND($G$63*$E$13,0))) -> 224
C65: =IF(VLOOKUP($C$51,'AHRI Ratings'!$C$2:$X$909,22,FALSE)="2-Stage",IF($F$47="Air Source","", "Rated Part Load COP"),"") ->  | D65: =IF(VLOOKUP($C$51,'AHRI Ratings'!$C$2:$X$909,22,FALSE)="2-Stage",IF($F$47<>"",IF($F$47="Air Source", INDEX('AHRI Part Load Ratings'!$J$2:$J$249,MATCH($C$51,'AHRI Part Load Ratings'!$C$2:$C$249,0)+1),IF($F$47="Water Loop", INDEX('AHRI Part Load Ratings'!$J$2:$J$249,MATCH($C$51,'AHRI Part Load Ratings'!$C$2:$C$249,0)+1),IF($F$47="Ground Water", INDEX('AHRI Part Load Ratings'!$P$2:$P$249,MATCH($C$51,'AHRI Part Load Ratings'!$C$2:$C$249,0)+1), INDEX('AHRI Part Load Ratings'!$V$2:$V$249,MATCH($C$51,'AHRI Part Load Ratings'!$C$2:$C$249,0)+1)))),""),"") ->  | F65: =IF($F$47="Air Source","MMBtu Consumed / Year","") ->  | G65: =IF($F$47="Air Source",((($D$62*100)/$D$64)*$E$16)/1000000,"") -> 
C66: =IF($F$47="Air Source","", "Full Load Heating GPM") -> Full Load Heating GPM | D66: =IF($F$47="Air Source","",IF(VLOOKUP($C$51,'AHRI Ratings'!$C$2:$X$909,22,FALSE)="2-Stage",IF($F$47<>"",IF($F$47="Air Source", INDEX('AHRI Part Load Ratings'!$K$2:$K$249,MATCH($C$51,'AHRI Part Load Ratings'!$C$2:$C$249,0)+0),IF($F$47="Water Loop", INDEX('AHRI Part Load Ratings'!$K$2:$K$249,MATCH($C$51,'AHRI Part Load Ratings'!$C$2:$C$249,0)+0),IF($F$47="Ground Water", INDEX('AHRI Part Load Ratings'!$Q$2:$Q$249,MATCH($C$51,'AHRI Part Load Ratings'!$C$2:$C$249,0)+0), INDEX('AHRI Part Load Ratings'!$W$2:$W$249,MATCH($C$51,'AHRI Part Load Ratings'!$C$2:$C$249,0)+0)))),""),IF($F$47<>"",IF($F$47="Air Source", INDEX('AHRI Ratings'!$H$2:$H$909,MATCH($C$51,'AHRI Ratings'!$C$2:$C$909,0)),IF($F$47="Water Loop", INDEX('AHRI Ratings'!$H$2:$H$909,MATCH($C$51,'AHRI Ratings'!$C$2:$C$909,0)),IF($F$47="Ground Water", INDEX('AHRI Ratings'!$N$2:$N$909,MATCH($C$51,'AHRI Ratings'!$C$2:$C$909,0)), INDEX('AHRI Ratings'!$T$2:$T$909,MATCH($C$51,'AHRI Ratings'!$C$2:$C$909,0))))),""))) -> 2.5 | F66: =IF($F$47="Air Source","Gas Furnace Output", "Operating Capacity") -> Operating Capacity | G66: =IF(VLOOKUP($C$51,'AHRI Ratings'!$C$2:$X$909,22,FALSE)="2-Stage",($D$62*$F$51)+($D$63*(1-$F$51)),$D$62) -> 12000 | J66: =IF(VLOOKUP($C$51,'AHRI Ratings'!$C$2:$X$909,22,FALSE)="2-Stage",(D66*F51)+(D67*(1-F51)),D66) -> 2.5
C67: =IF(VLOOKUP($C$51,'AHRI Ratings'!$C$2:$X$909,22,FALSE)="2-Stage",IF($F$47="Air Source","", "Part Load Heating GPM"),"") ->  | D67: =IF(VLOOKUP($C$51,'AHRI Ratings'!$C$2:$X$909,22,FALSE)="2-Stage",IF($F$47="Air Source","",IF(VLOOKUP($C$51,'AHRI Ratings'!$C$2:$X$909,22,FALSE)="2-Stage",IF($F$47<>"",IF($F$47="Air Source", INDEX('AHRI Part Load Ratings'!$K$2:$K$249,MATCH($C$51,'AHRI Part Load Ratings'!$C$2:$C$249,0)+1),IF($F$47="Water Loop", INDEX('AHRI Part Load Ratings'!$K$2:$K$249,MATCH($C$51,'AHRI Part Load Ratings'!$C$2:$C$249,0)+1),IF($F$47="Ground Water", INDEX('AHRI Part Load Ratings'!$Q$2:$Q$249,MATCH($C$51,'AHRI Part Load Ratings'!$C$2:$C$249,0)+1), INDEX('AHRI Part Load Ratings'!$W$2:$W$249,MATCH($C$51,'AHRI Part Load Ratings'!$C$2:$C$249,0)+1)))),""),IF($F$47<>"",IF($F$47="Air Source", INDEX('AHRI Ratings'!$H$2:$H$909,MATCH($C$51,'AHRI Ratings'!$C$2:$C$909,0)),IF($F$47="Water Loop", INDEX('AHRI Ratings'!$H$2:$H$909,MATCH($C$51,'AHRI Ratings'!$C$2:$C$909,0)),IF($F$47="Ground Water", INDEX('AHRI Ratings'!$N$2:$N$909,MATCH($C$51,'AHRI Ratings'!$C$2:$C$909,0)), INDEX('AHRI Ratings'!$T$2:$T$909,MATCH($C$51,'AHRI Ratings'!$C$2:$C$909,0))))),""))),"") ->  | F67: =IF($F$47="Air Source","AFUE", "Operating Efficiency") -> Operating Efficiency | G67: =IF(VLOOKUP(C51,'AHRI Ratings'!$C$2:$X$909,22,FALSE)="2-Stage",($D$64*$F$51)+($D$65*(1-$F$51)),$D$64) -> 3
C68: =IF($F$47="Air Source","Fan Motor HP", "") ->  | D68: =IF($F$47="Air Source",VLOOKUP($C$51,'AHRI Ratings'!$C$2:$W$909,10,FALSE),"") -> 
B71: =IF(C11="","Annual Energy Savings","Annual Savings for " &C11) -> Annual Savings for Baltimore - Washngtn Int'l Airport | F71: Annual Pollution Reduction | J71: Annual Loop Pump Savings
A73: =IF(C11="","",C21&" will reduce the kW demand by "&TEXT((G54+G62)-(G28+G36),"0.00")&" kW") -> Whalen will reduce the kW demand by 1.03 kW | F73: =IF(C11="","",IF((VLOOKUP(C11&", "&C9,data!$D$2:$Q$993,4,FALSE)/10^3)*((G55+G63)-(G29+G37))<2000,"Greenhouse gases (CO2) reduced by "&TEXT(((VLOOKUP(C11&", "&C9,data!$D$2:$Q$993,4,FALSE)/10^3)*((G55+G63)-(G29+G37))),"0")&" lbs","Greenhouse gases (CO2) reduced by "&TEXT(((VLOOKUP(C11&", "&C9,data!$D$2:$Q$993,4,FALSE)/10^3)*((G55+G63)-(G29+G37))/2000),"0.0")&" tons")) -> Greenhouse gases (CO2) reduced by 1.5 tons | J73: =IF(C11="","","System water flow is reduced by "&TEXT(MAX(J59,J66)-MAX(J33,J40),"0.0")&" GPM") -> System water flow is reduced by 0.0 GPM
A75: =IF(C11="","",C21&" will reduce the annual kWh usage by "&TEXT((G55+G63)-(G29+G37),"0,0")&" kWh") -> Whalen will reduce the annual kWh usage by 1,468 kWh | F75: =IF(C11="","","Nitrogen Oxides (NOx) reduced by "&TEXT((VLOOKUP(C11&", "&C9,data!$D$2:$Q$993,5,FALSE)/10^3)*((G55+G63)-(G29+G37)),"0.0")&" pounds") -> Nitrogen Oxides (NOx) reduced by 2.4 pounds | J75: =IF(C11="","","Pumping horsepower is reduced by "&TEXT(((MAX(J59,J66)*INDEX(SGTable,MATCH(H9,SGFluids,0),MATCH(H11,SGTemps,0))*H13)/(3960*(H15/100)))-((MAX(J33,J40)*INDEX(SGTable,MATCH(H9,SGFluids,0),MATCH(H11,SGTemps,0))*H13)/(3960*(H15/100))),"0.00")&" BHP") -> Pumping horsepower is reduced by 0.00 BHP
A77: =IF(C11="","",C21&" will provide annual operating savings of "&TEXT(+((((((MAX(J59,J66)*INDEX(SGTable,MATCH(H9,SGFluids,0),MATCH(H11,SGTemps,0))*H13)/(3960*(H15/100)))-((MAX(J33,J40)*INDEX(SGTable,MATCH(H9,SGFluids,0),MATCH(H11,SGTemps,0))*H13)/(3960*(H15/100))))))*0.7457*(24*365))*VLOOKUP(C11&", "&C9,data!$D$2:$Q$993,9,FALSE)+(G56+G64)-(G30+G38),"$0,0")) -> Whalen will provide annual operating savings of $153 | F77: =IF(C11="","","Sulfur Dioxides (SO2) reduced by "&TEXT((VLOOKUP(C11&", "&C9,data!$D$2:$Q$993,6,FALSE)/10^3)*((G55+G63)-(G29+G37)),"0.0")&" pounds") -> Sulfur Dioxides (SO2) reduced by 23.3 pounds | J77: =IF(C11="","","Annual pump electrical savings is "&TEXT((((((MAX(J59,J66)*INDEX(SGTable,MATCH(H9,SGFluids,0),MATCH(H11,SGTemps,0))*H13)/(3960*(H15/100)))-((MAX(J33,J40)*INDEX(SGTable,MATCH(H9,SGFluids,0),MATCH(H11,SGTemps,0))*H13)/(3960*(H15/100))))))*0.7457*(24*365),"0.00")&" kWh") -> Annual pump electrical savings is 0.00 kWh
A79: =IF(C11="","",IF((L11-L15)/((G58+G66)-(G30+G38))<0,C21&" will yield an immediate payback",C21&" will yield a simple payback period of "&TEXT((L11-L15)/(((((((MAX(J59,J66)*INDEX(SGTable,MATCH(H9,SGFluids,0),MATCH(H11,SGTemps,0))*H13)/(3960*(H15/100)))-((MAX(J33,J40)*INDEX(SGTable,MATCH(H9,SGFluids,0),MATCH(H11,SGTemps,0))*H13)/(3960*(H15/100))))))*0.7457*(24*365))*VLOOKUP(C11&", "&C9,data!$D$2:$Q$993,9,FALSE)+(G56+G64)-(G30+G38)),"0.0")&" years")) -> Whalen will yield a simple payback period of 2.1 years | F79: =IF(C11="","","Methane (CH4) reduced by "&TEXT((VLOOKUP(C11&", "&C9,data!$D$2:$Q$993,4,FALSE)/10^6)*((G55+G63)-(G29+G37)),"0.00")&" pounds") -> Methane (CH4) reduced by 2.91 pounds | J79: =IF(C11="","","Annual pump savings is $"&TEXT(((((((MAX(J59,J66)*INDEX(SGTable,MATCH(H9,SGFluids,0),MATCH(H11,SGTemps,0))*H13)/(3960*(H15/100)))-((MAX(J33,J40)*INDEX(SGTable,MATCH(H9,SGFluids,0),MATCH(H11,SGTemps,0))*H13)/(3960*(H15/100))))))*0.7457*(24*365))*VLOOKUP(C11&", "&C9,data!$D$2:$Q$993,9,FALSE),"0.00")) -> Annual pump savings is $0.00
C82: =Comparison!C21 -> Whalen | D82: =Comparison!C47 -> Whalen | H82: Year 1 | I82: Year 5 | J82: Year 10 | K82: Year 15 | L82: Year 20
B83: Cooling Capacity | C83: =G32 -> 9300 | D83: =G58 -> 9300 | F83: =C21 -> Whalen | H83: =G30+G38 -> 191.81632 | I83: =H83*5 -> 959.0816 | J83: =H83*10 -> 1918.1632 | K83: =H83*15 -> 2877.2448 | L83: =H83*20 -> 3836.3264
B84: Heating Capacity | C84: =G40 -> 12000 | D84: =G66 -> 12000 | F84: =C47 -> Whalen | H84: =G56+G64 -> 345.026048 | I84: =H84*5 -> 1725.13024 | J84: =H84*10 -> 3450.26048 | K84: =H84*15 -> 5175.39072 | L84: =H84*20 -> 6900.52096
B85: EER | C85: =G33 -> 14.4 | D85: =G59 -> 8
B86: COP | C86: =IF($F$21="Air Source","", G41) -> 5.4 | D86: =IF($F$47="Air Source","", G67) -> 3
B87: =Comparison!C32 -> Full Load Cooling GPM | C87: =Comparison!D32 -> 2.5 | D87: =Comparison!D58 -> 2.5
B88: =Comparison!C40 -> Full Load Heating GPM | C88: =Comparison!D40 -> 2.5 | D88: =IF(F47="Air Source","",Comparison!D66) -> 2.5

Sheet data (hidden)
A1: Country | B1: State | C1: City | D1: City & State | E1: CLH | F1: HLH | G1: State annual CO2 non-baseload output emission rate (lb/MWh) | H1: State annual NOx non-baseload output emission rate (lb/MWh) | I1: State annual SO2 non-baseload output emission rate (lb/MWh) | J1: State annual CH4 non-baseload output emission rate (lb/GWh) | K1: Residential electric cost ($/kWh) | L1: Commercial electric cost ($/kWh) | M1: Industrial electric cost ($/kWh) | N1: Heating 99% DB | O1: Cooling 2% DB | P1: HDD65 | Q1: CDD65 | R1: Commercial Natural Gas Price ($/thousand ft3) | U1: Density
A2: USA | B2: Alabama | C2: Anniston | D2: =C2&", "&B2 -> Anniston, Alabama | E2: 1763 | F2: 1596 | G2: 1568.9645 | H2: 1.3755 | I2: 7.0098 | J2: 28.0801 | K2: 0.11398 | L2: 0.10634 | M2: 0.06225 | N2: 24.5 | O2: 90.3 | P2: 2694 | Q2: 1859 | R2: 12.55 | T2: deg C | U2: 4.444444444 | V2: 10 | W2: 15.55555556 | X2: 21.11111111 | Y2: 26.66666667 | Z2: 32.22222222 | AA2: 37.77777778 | AB2: 43.33333333 | AC2: 48.88888889
A3: USA | B3: Alabama | C3: Auburn-Opelika | D3: Auburn-Opelika, Alabama | E3: 1821 | F3: 1533 | G3: 1568.9645 | H3: 1.3755 | I3: 7.0098 | J3: 28.0801 | K3: 0.11398 | L3: 0.10634 | M3: 0.06225 | N3: 27.7 | O3: 89.5 | P3: 2383 | Q3: 1859 | R3: 12.55 | T3: deg F | U3: 40 | V3: 50 | W3: 60 | X3: 70 | Y3: 80 | Z3: 90 | AA3: 100 | AB3: 110 | AC3: 120
A4: USA | B4: Alabama | C4: Birmingham | D4: Birmingham, Alabama | E4: 1826 | F4: 1576 | G4: 1568.9645 | H4: 1.3755 | I4: 7.0098 | J4: 28.0801 | K4: 0.11398 | L4: 0.10634 | M4: 0.06225 | N4: 24 | O4: 90.6 | P4: 2693 | Q4: 1948 | R4: 12.55 | T4: Water | U4: 1 | V4: 1 | W4: 1 | X4: 1 | Y4: 1 | Z4: 1 | AA4: 1 | AB4: 1 | AC4: 1
A5: USA | B5: Alabama | C5: Cairns AAF/Ozark | D5: Cairns AAF/Ozark, Alabama | E5: 2204 | F5: 1222 | G5: 1568.9645 | H5: 1.3755 | I5: 7.0098 | J5: 28.0801 | K5: 0.11398 | L5: 0.10634 | M5: 0.06225 | N5: 30.3 | O5: 91.3 | P5: 1767 | Q5: 2415 | R5: 12.55 | T5: Ethanol | U5: 0.7735270618 | V5: 0.7772442454 | W5: 0.7810063482 | X5: 0.7847457862 | Y5: 0.7885993656 | Z5: 0.7924302852 | AA5: 0.7963787186 | AB5: 0.8003045182 | AC5: 0.8043513515
A6: USA | B6: Alabama | C6: Centreville | D6: Centreville, Alabama | E6: 1837 | F6: 1509 | G6: 1568.9645 | H6: 1.3755 | I6: 7.0098 | J6: 28.0801 | K6: 0.11398 | L6: 0.10634 | M6: 0.06225 | N6: 25.8 | O6: 89.8 | P6: 2465 | Q6: 1898 | R6: 12.55 | T6: Methanol | U6: 0.7735038423 | V6: 0.7775973679 | W6: 0.7817444001 | X6: 0.7858704817 | Y6: 0.7901267195 | Z6: 0.794362175 | AA6: 0.7987319896 | AB6: 0.8030812262 | AC6: 0.8075692252
A7: USA | B7: Alabama | C7: Dauphin Island | D7: Dauphin Island, Alabama | E7: 3010 | F7: 1141 | G7: 1568.9645 | H7: 1.3755 | I7: 7.0098 | J7: 28.0801 | K7: 0.11398 | L7: 0.10634 | M7: 0.06225 | N7: 37.6 | O7: 86 | P7: 1303 | Q7: 2634 | R7: 12.55 | T7: Ethylene glycol | U7: 1.092272907 | V7: 1.094422526 | W7: 1.096585795 | X7: 1.098723846 | Y7: 1.100914558 | Z7: 1.10307982 | AA7: 1.105298501 | AB7: 1.107491495 | AC7: 1.109738684
A8: USA | B8: Alabama | C8: Dothan | D8: Dothan, Alabama | E8: 2273 | F8: 1223 | G8: 1568.9645 | H8: 1.3755 | I8: 7.0098 | J8: 28.0801 | K8: 0.11398 | L8: 0.10634 | M8: 0.06225 | N8: 31.1 | O8: 91.2 | P8: 1727 | Q8: 2481 | R8: 12.55 | T8: Propylene glycol | U8: 0.9580194315 | V8: 0.9607457214 | W8: 0.9634941495 | X8: 0.9662153093 | Y8: 0.9690084231 | Z8: 0.9717740057 | AA8: 0.9746129038 | AB8: 0.9774240061 | AC8: 0.9803098236
A9: USA | B9: Alabama | C9: Gadsen | D9: Gadsen, Alabama | E9: 1501 | F9: 1799 | G9: 1568.9645 | H9: 1.3755 | I9: 7.0098 | J9: 28.0801 | K9: 0.11398 | L9: 0.10634 | M9: 0.06225 | N9: 22.1 | O9: 89.9 | P9: 3215 | Q9: 1557 | R9: 12.55
A10: USA | B10: Alabama | C10: Huntsville Int'l / Jones Field | D10: Huntsville Int'l / Jones Field, Alabama | E10: 1666 | F10: 1736 | G10: 1568.9645 | H10: 1.3755 | I10: 7.0098 | J10: 28.0801 | K10: 0.11398 | L10: 0.10634 | M10: 0.06225 | N10: 21.6 | O10: 90.1 | P10: 3140 | Q10: 1742 | R10: 12.55
A11: USA | B11: Alabama | C11: Maxwell AFB / Montgomery | D11: Maxwell AFB / Montgomery, Alabama | E11: 2203 | F11: 1299 | G11: 1568.9645 | H11: 1.3755 | I11: 7.0098 | J11: 28.0801 | K11: 0.11398 | L11: 0.10634 | M11: 0.06225 | N11: 31.5 | O11: 93.3 | P11: 1813 | Q11: 2598 | R11: 12.55 | T11: Specific Gravity of Anti-Freeze Mixture at various Temperatures
A12: USA | B12: Alabama | C12: Mobile | D12: Mobile, Alabama | E12: 2336 | F12: 1163 | G12: 1568.9645 | H12: 1.3755 | I12: 7.0098 | J12: 28.0801 | K12: 0.11398 | L12: 0.10634 | M12: 0.06225 | N12: 30.7 | O12: 90.3 | P12: 1662 | Q12: 2463 | R12: 12.55 | U12: Degree F
A13: USA | B13: Alabama | C13: Montgomery | D13: Montgomery, Alabama | E13: 2021 | F13: 1364 | G13: 1568.9645 | H13: 1.3755 | I13: 7.0098 | J13: 28.0801 | K13: 0.11398 | L13: 0.10634 | M13: 0.06225 | N13: 27.3 | O13: 92.1 | P13: 2143 | Q13: 2282 | R13: 12.55 | T13: Mixture | U13: 40 | V13: 50 | W13: 60 | X13: 70 | Y13: 80 | Z13: 90 | AA13: 100 | AB13: 110 | AC13: 120
A14: USA | B14: Alabama | C14: Muscle Shoals | D14: Muscle Shoals, Alabama | E14: 1688 | F14: 1725 | G14: 1568.9645 | H14: 1.3755 | I14: 7.0098 | J14: 28.0801 | K14: 0.11398 | L14: 0.10634 | M14: 0.06225 | N14: 22.1 | O14: 90.9 | P14: 3084 | Q14: 1822 | R14: 12.55 | T14: Water | U14: 1 | V14: 1 | W14: 1 | X14: 1 | Y14: 1 | Z14: 1 | AA14: 1 | AB14: 1 | AC14: 1
A15: USA | B15: Alabama | C15: Tuscaloosa | D15: Tuscaloosa, Alabama | E15: 1910 | F15: 1505 | G15: 1568.9645 | H15: 1.3755 | I15: 7.0098 | J15: 28.0801 | K15: 0.11398 | L15: 0.10634 | M15: 0.06225 | N15: 25 | O15: 91.4 | P15: 2509 | Q15: 2101 | R15: 12.55 | T15: 5% Ethanol | U15: =((95*U$4)+(5*U$5))/100 -> 0.9886763531 | V15: =((95*V$4)+(5*V$5))/100 -> 0.9888622123 | W15: 0.9890503174 | X15: 0.9892372893 | Y15: 0.9894299683 | Z15: 0.9896215143 | AA15: 0.9898189359 | AB15: 0.9900152259 | AC15: 0.9902175676
A16: USA | B16: Alaska | C16: Fairbanks | D16: Fairbanks, Alaska | E16: 178 | F16: 3149 | G16: 1348.2862 | H16: 5.7269 | I16: 1.8946 | J16: 38.4131 | K16: 0.17883 | L16: 0.14927 | M16: 0.16821 | N16: -38.1 | O16: 74.6 | P16: 13528 | Q16: 71 | R16: 8.09 | T16: 10% Ethanol | U16: =((90*U$4)+(10*U$5))/100 -> 0.9773527062 | V16: =((90*V$4)+(10*V$5))/100 -> 0.9777244245 | W16: 0.9781006348 | X16: 0.9784745786 | Y16: 0.9788599366 | Z16: 0.9792430285 | AA16: 0.9796378719 | AB16: 0.9800304518 | AC16: 0.9804351351
A17: USA | B17: Alaska | C17: Ft. Richardson | D17: Ft. Richardson, Alaska | E17: 26 | F17: 3322 | G17: 1348.2862 | H17: 5.7269 | I17: 1.8946 | J17: 38.4131 | K17: 0.17883 | L17: 0.14927 | M17: 0.16821 | N17: -12.5 | O17: 67.8 | P17: 10726 | Q17: 3 | R17: 8.09 | T17: 15% Ethanol | U17: =((85*U$4)+(15*U$5))/100 -> 0.9660290593 | V17: =((85*V$4)+(15*V$5))/100 -> 0.9665866368 | W17: 0.9671509522 | X17: 0.9677118679 | Y17: 0.9682899048 | Z17: 0.9688645428 | AA17: 0.9694568078 | AB17: 0.9700456777 | AC17: 0.9706527027
A18: USA | B18: Alaska | C18: Anchorage / Elmendorf AFB | D18: Anchorage / Elmendorf AFB, Alaska | E18: 88 | F18: 2825 | G18: 1348.2862 | H18: 5.7269 | I18: 1.8946 | J18: 38.4131 | K18: 0.17883 | L18: 0.14927 | M18: 0.16821 | N18: -23 | O18: 68 | P18: 10360 | Q18: 11 | R18: 8.09 | T18: 20% Ethanol | U18: =((80*U$4)+(20*U$5))/100 -> 0.9547054124 | V18: =((80*V$4)+(20*V$5))/100 -> 0.9554488491 | W18: 0.9562012696 | X18: 0.9569491572 | Y18: 0.9577198731 | Z18: 0.958486057 | AA18: 0.9592757437 | AB18: 0.9600609036 | AC18: 0.9608702703
A19: USA | B19: Alaska | C19: Lake Hood Seaplane | D19: Lake Hood Seaplane, Alaska | E19: 120 | F19: 2771 | G19: 1348.2862 | H19: 5.7269 | I19: 1.8946 | J19: 38.4131 | K19: 0.17883 | L19: 0.14927 | M19: 0.16821 | N19: -20.1 | O19: 68.2 | P19: 9824 | Q19: 16 | R19: 8.09 | T19: 25% Ethanol | U19: =((75*U$4)+(25*U$5))/100 -> 0.9433817654 | V19: =((75*V$4)+(25*V$5))/100 -> 0.9443110614 | W19: 0.9452515871 | X19: 0.9461864466 | Y19: 0.9471498414 | Z19: 0.9481075713 | AA19: 0.9490946796 | AB19: 0.9500761296 | AC19: 0.9510878379
A20: USA | B20: Alaska | C20: Anchorage Int'l Airport | D20: Anchorage Int'l Airport, Alaska | E20: 133 | F20: 2851 | G20: 1348.2862 | H20: 5.7269 | I20: 1.8946 | J20: 38.4131 | K20: 0.17883 | L20: 0.14927 | M20: 0.16821 | N20: -20.2 | O20: 65.9 | P20: 10121 | Q20: 5 | R20: 8.09 | T20: 5% Methanol | U20: =((95*U$4)+(5*U$6))/100 -> 0.9886751921 | V20: =((95*V$4)+(5*V$6))/100 -> 0.9888798684 | W20: 0.98908722 | X20: 0.9892935241 | Y20: 0.989506336 | Z20: 0.9897181087 | AA20: 0.9899365995 | AB20: 0.9901540613 | AC20: 0.9903784613
A21: USA | B21: Alaska | C21: Anchorage Merrill Field | D21: Anchorage Merrill Field, Alaska | E21: 83 | F21: 2793 | G21: 1348.2862 | H21: 5.7269 | I21: 1.8946 | J21: 38.4131 | K21: 0.17883 | L21: 0.14927 | M21: 0.16821 | N21: -21.6 | O21: 67.9 | P21: 10079 | Q21: 10 | R21: 8.09 | T21: 10% Methanol | U21: =((90*U$4)+(10*U$6))/100 -> 0.9773503842 | V21: =((90*V$4)+(10*V$6))/100 -> 0.9777597368 | W21: 0.97817444 | X21: 0.9785870482 | Y21: 0.979012672 | Z21: 0.9794362175 | AA21: 0.979873199 | AB21: 0.9803081226 | AC21: 0.9807569225
A22: USA | B22: Alaska | C22: Juneau | D22: Juneau, Alaska | E22: 48 | F22: 3521 | G22: 1348.2862 | H22: 5.7269 | I22: 1.8946 | J22: 38.4131 | K22: 0.17883 | L22: 0.14927 | M22: 0.16821 | N22: 8.2 | O22: 66.5 | P22: 8333 | Q22: 3 | R22: 8.09 | T22: 15% Methanol | U22: =((85*U$4)+(15*U$6))/100 -> 0.9660255763 | V22: =((85*V$4)+(15*V$6))/100 -> 0.9666396052 | W22: 0.96726166 | X22: 0.9678805723 | Y22: 0.9685190079 | Z22: 0.9691543262 | AA22: 0.9698097984 | AB22: 0.9704621839 | AC22: 0.9711353838
A23: USA | B23: Alaska | C23: Nome | D23: Nome, Alaska | E23: 0 | F23: 3668 | G23: 1348.2862 | H23: 5.7269 | I23: 1.8946 | J23: 38.4131 | K23: 0.17883 | L23: 0.14927 | M23: 0.16821 | N23: -24.2 | O23: 61.6 | P23: 13631 | Q23: 4 | R23: 8.09 | T23: 20% Methanol | U23: =((80*U$4)+(20*U$6))/100 -> 0.9547007685 | V23: =((80*V$4)+(20*V$6))/100 -> 0.9555194736 | W23: 0.95634888 | X23: 0.9571740963 | Y23: 0.9580253439 | Z23: 0.958872435 | AA23: 0.9597463979 | AB23: 0.9606162452 | AC23: 0.961513845
A24: USA | B24: Arizona | C24: Casa Granda | D24: Casa Granda, Arizona | E24: 2133 | F24: 1208 | G24: 1191.4867 | H24: 0.7736 | I24: 0.5376 | J24: 20.2923 | K24: 0.11294 | L24: 0.0953 | M24: 0.06532 | N24: 34.5 | O24: 104.4 | P24: 1535 | Q24: 3502 | R24: 9.35 | T24: 25% Methanol | U24: =((75*U$4)+(25*U$6))/100 -> 0.9433759606 | V24: =((75*V$4)+(25*V$6))/100 -> 0.944399342 | W24: 0.9454361 | X24: 0.9464676204 | Y24: 0.9475316799 | Z24: 0.9485905437 | AA24: 0.9496829974 | AB24: 0.9507703066 | AC24: 0.9518923063
A25: USA | B25: Arizona | C25: Davis-Monthan AFB | D25: Davis-Monthan AFB, Arizona | E25: 2116 | F25: 1232 | G25: 1191.4867 | H25: 0.7736 | I25: 0.5376 | J25: 20.2923 | K25: 0.11294 | L25: 0.0953 | M25: 0.06532 | N25: 35.7 | O25: 100.2 | P25: 1504 | Q25: 3103 | R25: 9.35 | T25: 5% Ethylene glycol | U25: =((95*U$4)+(5*U$7))/100 -> 1.004613645 | V25: =((95*V$4)+(5*V$7))/100 -> 1.004721126 | W25: 1.00482929 | X25: 1.004936192 | Y25: 1.005045728 | Z25: 1.005153991 | AA25: 1.005264925 | AB25: 1.005374575 | AC25: 1.005486934
A26: USA | B26: Arizona | C26: Douglas | D26: Douglas, Arizona | E26: 1463 | F26: 1528 | G26: 1191.4867 | H26: 0.7736 | I26: 0.5376 | J26: 20.2923 | K26: 0.11294 | L26: 0.0953 | M26: 0.06532 | N26: 25.5 | O26: 94.5 | P26: 2515 | Q26: 1798 | R26: 9.35 | T26: 10% Ethylene glycol | U26: =((90*U$4)+(10*U$7))/100 -> 1.009227291 | V26: =((90*V$4)+(10*V$7))/100 -> 1.009442253 | W26: 1.009658579 | X26: 1.009872385 | Y26: 1.010091456 | Z26: 1.010307982 | AA26: 1.01052985 | AB26: 1.010749149 | AC26: 1.010973868
A27: USA | B27: Arizona | C27: Flagstaff | D27: Flagstaff, Arizona | E27: 166 | F27: 2984 | G27: 1191.4867 | H27: 0.7736 | I27: 0.5376 | J27: 20.2923 | K27: 0.11294 | L27: 0.0953 | M27: 0.06532 | N27: 9.4 | O27: 80.6 | P27: 6912 | Q27: 108 | R27: 9.35 | T27: 15% Ethylene glycol | U27: =((85*U$4)+(15*U$7))/100 -> 1.013840936 | V27: =((85*V$4)+(15*V$7))/100 -> 1.014163379 | W27: 1.014487869 | X27: 1.014808577 | Y27: 1.015137184 | Z27: 1.015461973 | AA27: 1.015794775 | AB27: 1.016123724 | AC27: 1.016460803
A28: USA | B28: Arizona | C28: Kingman | D28: Kingman, Arizona | E28: 1481 | F28: 1960 | G28: 1191.4867 | H28: 0.7736 | I28: 0.5376 | J28: 20.2923 | K28: 0.11294 | L28: 0.0953 | M28: 0.06532 | N28: 27.1 | O28: 96.9 | P28: 3095 | Q28: 1968 | R28: 9.35 | T28: 20% Ethylene glycol | U28: =((80*U$4)+(20*U$7))/100 -> 1.018454581 | V28: =((80*V$4)+(20*V$7))/100 -> 1.018884505 | W28: 1.019317159 | X28: 1.019744769 | Y28: 1.020182912 | Z28: 1.020615964 | AA28: 1.0210597 | AB28: 1.021498299 | AC28: 1.021947737
A29: USA | B29: Arizona | C29: Luke AFB / Phoenix | D29: Luke AFB / Phoenix, Arizona | E29: 2285 | F29: 1095 | G29: 1191.4867 | H29: 0.7736 | I29: 0.5376 | J29: 20.2923 | K29: 0.11294 | L29: 0.0953 | M29: 0.06532 | N29: 37.7 | O29: 106.2 | P29: 1245 | Q29: 3923 | R29: 9.35 | T29: 25% Ethylene glycol | U29: =((75*U$4)+(25*U$7))/100 -> 1.023068227 | V29: =((75*V$4)+(25*V$7))/100 -> 1.023605631 | W29: 1.024146449 | X29: 1.024680962 | Y29: 1.02522864 | Z29: 1.025769955 | AA29: 1.026324625 | AB29: 1.026872874 | AC29: 1.027434671
A30: USA | B30: Arizona | C30: Nogales | D30: Nogales, Arizona | E30: 1447 | F30: 1475 | G30: 1191.4867 | H30: 0.7736 | I30: 0.5376 | J30: 20.2923 | K30: 0.11294 | L30: 0.0953 | M30: 0.06532 | N30: 29.6 | O30: 95.1 | P30: 2175 | Q30: 1815 | R30: 9.35 | T30: 5% Propylene glycol | U30: =((95*U$4)+(5*U$8))/100 -> 0.9979009716 | V30: =((95*V$4)+(5*V$8))/100 -> 0.9980372861 | W30: 0.9981747075 | X30: 0.9983107655 | Y30: 0.9984504212 | Z30: 0.9985887003 | AA30: 0.9987306452 | AB30: 0.9988712003 | AC30: 0.9990154912
A31: USA | B31: Arizona | C31: Page | D31: Page, Arizona | E31: 1532 | F31: 2340 | G31: 1191.4867 | H31: 0.7736 | I31: 0.5376 | J31: 20.2923 | K31: 0.11294 | L31: 0.0953 | M31: 0.06532 | N31: 25.3 | O31: 95.1 | P31: 3870 | Q31: 1921 | R31: 9.35 | T31: 10% Propylene glycol | U31: =((90*U$4)+(10*U$8))/100 -> 0.9958019431 | V31: =((90*V$4)+(10*V$8))/100 -> 0.9960745721 | W31: 0.996349415 | X31: 0.9966215309 | Y31: 0.9969008423 | Z31: 0.9971774006 | AA31: 0.9974612904 | AB31: 0.9977424006 | AC31: 0.9980309824
A32: USA | B32: Arizona | C32: Phoenix Sky Harbor Int'l Airport | D32: Phoenix Sky Harbor Int'l Airport, Arizona | E32: 2655 | F32: 953 | G32: 1191.4867 | H32: 0.7736 | I32: 0.5376 | J32: 20.2923 | K32: 0.11294 | L32: 0.0953 | M32: 0.06532 | N32: 41.3 | O32: 106.2 | P32: 941 | Q32: 4557 | R32: 9.35 | T32: 15% Propylene glycol | U32: =((85*U$4)+(15*U$8))/100 -> 0.9937029147 | V32: =((85*V$4)+(15*V$8))/100 -> 0.9941118582 | W32: 0.9945241224 | X32: 0.9949322964 | Y32: 0.9953512635 | Z32: 0.9957661009 | AA32: 0.9961919356 | AB32: 0.9966136009 | AC32: 0.9970464735
A33: USA | B33: Arizona | C33: Prescott Love Field | D33: Prescott Love Field, Arizona | E33: 924 | F33: 2300 | G33: 1191.4867 | H33: 0.7736 | I33: 0.5376 | J33: 20.2923 | K33: 0.11294 | L33: 0.0953 | M33: 0.06532 | N33: 20.7 | O33: 89.6 | P33: 4245 | Q33: 947 | R33: 9.35 | T33: 20% Propylene glycol | U33: =((80*U$4)+(20*U$8))/100 -> 0.9916038863 | V33: =((80*V$4)+(20*V$8))/100 -> 0.9921491443 | W33: 0.9926988299 | X33: 0.9932430619 | Y33: 0.9938016846 | Z33: 0.9943548011 | AA33: 0.9949225808 | AB33: 0.9954848012 | AC33: 0.9960619647
A34: USA | B34: Arizona | C34: Tucson | D34: Tucson, Arizona | E34: 2102 | F34: 1150 | G34: 1191.4867 | H34: 0.7736 | I34: 0.5376 | J34: 20.2923 | K34: 0.11294 | L34: 0.0953 | M34: 0.06532 | N34: 34.4 | O34: 101.3 | P34: 1466 | Q34: 3180 | R34: 9.35 | T34: 25% Propylene glycol | U34: =((75*U$4)+(25*U$8))/100 -> 0.9895048579 | V34: =((75*V$4)+(25*V$8))/100 -> 0.9901864303 | W34: 0.9908735374 | X34: 0.9915538273 | Y34: 0.9922521058 | Z34: 0.9929435014 | AA34: 0.993653226 | AB34: 0.9943560015 | AC34: 0.9950774559
A35: USA | B35: Arizona | C35: Winslow | D35: Winslow, Arizona | E35: 996 | F35: 2170 | G35: 1191.4867 | H35: 0.7736 | I35: 0.5376 | J35: 20.2923 | K35: 0.11294 | L35: 0.0953 | M35: 0.06532 | N35: 15.2 | O35: 92.2 | P35: 4503 | Q35: 1129 | R35: 9.35
A36: USA | B36: Arizona | C36: Yuma Int'l Airport | D36: Yuma Int'l Airport, Arizona | E36: 2690 | F36: 804 | G36: 1191.4867 | H36: 0.7736 | I36: 0.5376 | J36: 20.2923 | K36: 0.11294 | L36: 0.0953 | M36: 0.06532 | N36: 44.7 | O36: 106.6 | P36: 680 | Q36: 4662 | R36: 9.35 | T36: Pump BHP = | U36: GPM x Specific Gravity of Fluid x System Head Pressure (Ft. H2O)
A37: USA | B37: Arizona | C37: Yuma | D37: Yuma, Arizona | E37: 2676 | F37: 800 | G37: 1191.4867 | H37: 0.7736 | I37: 0.5376 | J37: 20.2923 | K37: 0.11294 | L37: 0.0953 | M37: 0.06532 | N37: 44.6 | O37: 106.8 | P37: 680 | Q37: 4661 | R37: 9.35 | V37: 3960 x Pump Efficiency
A38: USA | B38: Arkansas | C38: Batesville | D38: Batesville, Arkansas | E38: 1630 | F38: 1815 | G38: 1186.9911 | H38: 0.9588 | I38: 1.6601 | J38: 30.4712 | K38: 0.09295 | L38: 0.07714 | M38: 0.05765 | N38: 19.7 | O38: 91.4 | P38: 3426 | Q38: 1793 | R38: 7.99
A39: USA | B39: Arkansas | C39: Bentonville | D39: Bentonville, Arkansas | E39: 1292 | F39: 1981 | G39: 1186.9911 | H39: 0.9588 | I39: 1.6601 | J39: 30.4712 | K39: 0.09295 | L39: 0.07714 | M39: 0.05765 | N39: 15.9 | O39: 89.8 | P39: 4052 | Q39: 1335 | R39: 7.99 | T39: 10% Methanol | U39: =MATCH(T39,T13:T34,0) -> 9
A40: USA | B40: Arkansas | C40: Eaker AFB | D40: Eaker AFB, Arkansas | E40: 1761 | F40: 1747 | G40: 1186.9911 | H40: 0.9588 | I40: 1.6601 | J40: 30.4712 | K40: 0.09295 | L40: 0.07714 | M40: 0.05765 | N40: 17.4 | O40: 92.5 | P40: 3464 | Q40: 2018 | R40: 7.99
A41: USA | B41: Arkansas | C41: El Dorado | D41: El Dorado, Arkansas | E41: 1869 | F41: 1555 | G41: 1186.9911 | H41: 0.9588 | I41: 1.6601 | J41: 30.4712 | K41: 0.09295 | L41: 0.07714 | M41: 0.05765 | N41: 25.3 | O41: 93.2 | P41: 2573 | Q41: 2196 | R41: 7.99 | T41: 60 | U41: =MATCH(T41,SGTemps) -> 4
A42: USA | B42: Arkansas | C42: Fayetteville | D42: Fayetteville, Arkansas | E42: 1360 | F42: 1874 | G42: 1186.9911 | H42: 0.9588 | I42: 1.6601 | J42: 30.4712 | K42: 0.09295 | L42: 0.07714 | M42: 0.05765 | N42: 14.6 | O42: 90.3 | P42: 3935 | Q42: 1434 | R42: 7.99
A43: USA | B43: Arkansas | C43: Flippin | D43: Flippin, Arkansas | E43: 1444 | F43: 1911 | G43: 1186.9911 | H43: 0.9588 | I43: 1.6601 | J43: 30.4712 | K43: 0.09295 | L43: 0.07714 | M43: 0.05765 | N43: 17.8 | O43: 91.3 | P43: 3758 | Q43: 1582 | R43: 7.99 | T43: =INDEX(SGTable,MATCH(T39,SGFluids,0),MATCH(T41,SGTemps,0)) -> 0.98908722
A44: USA | B44: Arkansas | C44: Fort Smith | D44: Fort Smith, Arkansas | E44: 1680 | F44: 1729 | G44: 1186.9911 | H44: 0.9588 | I44: 1.6601 | J44: 30.4712 | K44: 0.09295 | L44: 0.07714 | M44: 0.05765 | N44: 20.1 | O44: 93.8 | P44: 3234 | Q44: 2016 | R44: 7.99
A45: USA | B45: Arkansas | C45: Harrison FAA | D45: Harrison FAA, Arkansas | E45: 1407 | F45: 1876 | G45: 1186.9911 | H45: 0.9588 | I45: 1.6601 | J45: 30.4712 | K45: 0.09295 | L45: 0.07714 | M45: 0.05765 | N45: 15.8 | O45: 89.8 | P45: 3845 | Q45: 1454 | R45: 7.99
A46: USA | B46: Arkansas | C46: Jonesboro | D46: Jonesboro, Arkansas | E46: 1726 | F46: 1832 | G46: 1186.9911 | H46: 0.9588 | I46: 1.6601 | J46: 30.4712 | K46: 0.09295 | L46: 0.07714 | M46: 0.05765 | N46: 18.5 | O46: 91.6 | P46: 3550 | Q46: 1913 | R46: 7.99
A47: USA | B47: Arkansas | C47: Little Rock | D47: Little Rock, Arkansas | E47: 1776 | F47: 1796 | G47: 1186.9911 | H47: 0.9588 | I47: 1.6601 | J47: 30.4712 | K47: 0.09295 | L47: 0.07714 | M47: 0.05765 | N47: 21.9 | O47: 90.8 | P47: 3226 | Q47: 1909 | R47: 7.99
A48: USA | B48: Arkansas | C48: Little Rock Adams Field | D48: Little Rock Adams Field, Arkansas | E48: 1821 | F48: 1673 | G48: 1186.9911 | H48: 0.9588 | I48: 1.6601 | J48: 30.4712 | K48: 0.09295 | L48: 0.07714 | M48: 0.05765 | N48: 22.3 | O48: 93 | P48: 2976 | Q48: 2124 | R48: 7.99
A49: USA | B49: Arkansas | C49: Little Rock AFB | D49: Little Rock AFB, Arkansas | E49: 1726 | F49: 1705 | G49: 1186.9911 | H49: 0.9588 | I49: 1.6601 | J49: 30.4712 | K49: 0.09295 | L49: 0.07714 | M49: 0.05765 | N49: 20.4 | O49: 93.3 | P49: 3168 | Q49: 2035 | R49: 7.99
A50: USA | B50: Arkansas | C50: Pine Bluff | D50: Pine Bluff, Arkansas | E50: 1923 | F50: 1605 | G50: 1186.9911 | H50: 0.9588 | I50: 1.6601 | J50: 30.4712 | K50: 0.09295 | L50: 0.07714 | M50: 0.05765 | N50: 25.3 | O50: 92.9 | P50: 2655 | Q50: 2236 | R50: 7.99
A51: USA | B51: Arkansas | C51: Rogers | D51: Rogers, Arkansas | E51: 1348 | F51: 1981 | G51: 1186.9911 | H51: 0.9588 | I51: 1.6601 | J51: 30.4712 | K51: 0.09295 | L51: 0.07714 | M51: 0.05765 | N51: 15.8 | O51: 89.1 | P51: 4061 | Q51: 1354 | R51: 7.99
A52: USA | B52: Arkansas | C52: Siloam Spring | D52: Siloam Spring, Arkansas | E52: 1347 | F52: 1960 | G52: 1186.9911 | H52: 0.9588 | I52: 1.6601 | J52: 30.4712 | K52: 0.09295 | L52: 0.07714 | M52: 0.05765 | N52: 16.1 | O52: 90.3 | P52: 3994 | Q52: 1420 | R52: 7.99
A53: USA | B53: Arkansas | C53: Stuttgart | D53: Stuttgart, Arkansas | E53: 1917 | F53: 1793 | G53: 1186.9911 | H53: 0.9588 | I53: 1.6601 | J53: 30.4712 | K53: 0.09295 | L53: 0.07714 | M53: 0.05765 | N53: 25.2 | O53: 91.4 | P53: 2973 | Q53: 2109 | R53: 7.99
A54: USA | B54: Arkansas | C54: Texarkana | D54: Texarkana, Arkansas | E54: 1978 | F54: 1508 | G54: 1186.9911 | H54: 0.9588 | I54: 1.6601 | J54: 30.4712 | K54: 0.09295 | L54: 0.07714 | M54: 0.05765 | N54: 26.3 | O54: 93.5 | P54: 2431 | Q54: 2349 | R54: 7.99
A55: USA | B55: Arkansas | C55: Walnut Ridge | D55: Walnut Ridge, Arkansas | E55: 1615 | F55: 1927 | G55: 1186.9911 | H55: 0.9588 | I55: 1.6601 | J55: 30.4712 | K55: 0.09295 | L55: 0.07714 | M55: 0.05765 | N55: 19.1 | O55: 90.7 | P55: 3685 | Q55: 1729 | R55: 7.99
A56: USA | B56: California | C56: Alameda | D56: Alameda, California | E56: 502 | F56: 2282 | G56: 993.8453 | H56: 0.3337 | I56: 0.0318 | J56: 35.8684 | K56: 0.15339 | L56: 0.13406 | M56: 0.10491 | N56: 42.3 | O56: 75.8 | P56: 2158 | Q56: 226 | R56: 7.05
A57: USA | B57: California | C57: Bakersfield Meadows Field | D57: Bakersfield Meadows Field, California | E57: 1616 | F57: 1696 | G57: 993.8453 | H57: 0.3337 | I57: 0.0318 | J57: 35.8684 | K57: 0.15339 | L57: 0.13406 | M57: 0.10491 | N57: 34.8 | O57: 98.2 | P57: 2134 | Q57: 2236 | R57: 7.05
A58: USA | B58: California | C58: Beale AFB / Marysvile | D58: Beale AFB / Marysvile, California | E58: 1211 | F58: 1911 | G58: 993.8453 | H58: 0.3337 | I58: 0.0318 | J58: 35.8684 | K58: 0.15339 | L58: 0.13406 | M58: 0.10491 | N58: 34.6 | O58: 95.1 | P58: 2420 | Q58: 1519 | R58: 7.05
A59: USA | B59: California | C59: Burbank-Glendale-Passadena Airport | D59: Burbank-Glendale-Passadena Airport, California | E59: 1356 | F59: 1326 | G59: 993.8453 | H59: 0.3337 | I59: 0.0318 | J59: 35.8684 | K59: 0.15339 | L59: 0.13406 | M59: 0.10491 | N59: 41.5 | O59: 91.3 | P59: 1298 | Q59: 1486 | R59: 7.05
A60: USA | B60: California | C60: Camarillo | D60: Camarillo, California | E60: 612 | F60: 1739 | G60: 993.8453 | H60: 0.3337 | I60: 0.0318 | J60: 35.8684 | K60: 0.15339 | L60: 0.13406 | M60: 0.10491 | N60: 39.4 | O60: 79.2 | P60: 1855 | Q60: 362 | R60: 7.05
A61: USA | B61: California | C61: Camp Pendleton | D61: Camp Pendleton, California | E61: 904 | F61: 1366 | G61: 993.8453 | H61: 0.3337 | I61: 0.0318 | J61: 35.8684 | K61: 0.15339 | L61: 0.13406 | M61: 0.10491 | N61: 35.6 | O61: 84.2 | P61: 1673 | Q61: 723 | R61: 7.05
A62: USA | B62: California | C62: Carlsbad / Palomar | D62: Carlsbad / Palomar, California | E62: 1002 | F62: 2086 | G62: 993.8453 | H62: 0.3337 | I62: 0.0318 | J62: 35.8684 | K62: 0.15339 | L62: 0.13406 | M62: 0.10491 | N62: 44.9 | O62: 75.4 | P62: 1747 | Q62: 434 | R62: 7.05
A63: USA | B63: California | C63: Castle AFB / Merced | D63: Castle AFB / Merced, California | E63: 1203 | F63: 1941 | G63: 993.8453 | H63: 0.3337 | I63: 0.0318 | J63: 35.8684 | K63: 0.15339 | L63: 0.13406 | M63: 0.10491 | N63: 32.5 | O63: 94.4 | P63: 2629 | Q63: 1474 | R63: 7.05
A64: USA | B64: California | C64: Edwards AFB | D64: Edwards AFB, California | E64: 1347 | F64: 1690 | G64: 993.8453 | H64: 0.3337 | I64: 0.0318 | J64: 35.8684 | K64: 0.15339 | L64: 0.13406 | M64: 0.10491 | N64: 25.5 | O64: 99.8 | P64: 2782 | Q64: 1953 | R64: 7.05
A65: USA | B65: California | C65: El Toro | D65: El Toro, California | E65: 1247 | F65: 1334 | G65: 993.8453 | H65: 0.3337 | I65: 0.0318 | J65: 35.8684 | K65: 0.15339 | L65: 0.13406 | M65: 0.10491 | N65: 43.1 | O65: 85.6 | P65: 1217 | Q65: 1070 | R65: 7.05
A66: USA | B66: California | C66: Eureka | D66: =C66&", "&B66 -> Eureka, California | E66: 0 | F66: 3849 | G66: 993.8453 | H66: 0.3337 | I66: 0.0318 | J66: 35.8684 | K66: 0.15339 | L66: 0.13406 | M66: 0.10491 | N66: 36.7 | O66: 64.3 | P66: 4539 | Q66: 2 | R66: 7.05
A67: USA | B67: California | C67: Fresno | D67: Fresno, California | E67: 1487 | F67: 1764 | G67: 993.8453 | H67: 0.3337 | I67: 0.0318 | J67: 35.8684 | K67: 0.15339 | L67: 0.13406 | M67: 0.10491 | N67: 33.7 | O67: 98.6 | P67: 2301 | Q67: 2082 | R67: 7.05
A68: USA | B68: California | C68: Fullerton | D68: Fullerton, California | E68: 1258 | F68: 1347 | G68: 993.8453 | H68: 0.3337 | I68: 0.0318 | J68: 35.8684 | K68: 0.15339 | L68: 0.13406 | M68: 0.10491 | N68: 42.8 | O68: 87.5 | P68: 1246 | Q68: 1179 | R68: 7.05
A69: USA | B69: California | C69: George AFB | D69: George AFB, California | E69: 1479 | F69: 1851 | G69: 993.8453 | H69: 0.3337 | I69: 0.0318 | J69: 35.8684 | K69: 0.15339 | L69: 0.13406 | M69: 0.10491 | N69: 30.5 | O69: 96 | P69: 2661 | Q69: 1911 | R69: 7.05
A70: USA | B70: California | C70: Hayward | D70: Hayward, California | E70: 505 | F70: 2354 | G70: 993.8453 | H70: 0.3337 | I70: 0.0318 | J70: 35.8684 | K70: 0.15339 | L70: 0.13406 | M70: 0.10491 | N70: 39.2 | O70: 78.6 | P70: 2531 | Q70: 286 | R70: 7.05
A71: USA | B71: California | C71: Imperial | D71: Imperial, California | E71: 2340 | F71: 832 | G71: 993.8453 | H71: 0.3337 | I71: 0.0318 | J71: 35.8684 | K71: 0.15339 | L71: 0.13406 | M71: 0.10491 | N71: 37.5 | O71: 107.3 | P71: 953 | Q71: 4125 | R71: 7.05
A72: USA | B72: California | C72: Jack Northrop Field | D72: Jack Northrop Field, California | E72: 1091 | F72: 1462 | G72: 993.8453 | H72: 0.3337 | I72: 0.0318 | J72: 35.8684 | K72: 0.15339 | L72: 0.13406 | M72: 0.10491 | N72: 45.6 | O72: 80.6 | P72: 1182 | Q72: 709 | R72: 7.05
A73: USA | B73: California | C73: Lancaster | D73: Lancaster, California | E73: 1312 | F73: 1787 | G73: 993.8453 | H73: 0.3337 | I73: 0.0318 | J73: 35.8684 | K73: 0.15339 | L73: 0.13406 | M73: 0.10491 | N73: 24.8 | O73: 97.3 | P73: 2993 | Q73: 1766 | R73: 7.05
A74: USA | B74: California | C74: Lemoore Reeves NAS | D74: Lemoore Reeves NAS, California | E74: 1325 | F74: 1658 | G74: 993.8453 | H74: 0.3337 | I74: 0.0318 | J74: 35.8684 | K74: 0.15339 | L74: 0.13406 | M74: 0.10491 | N74: 32.6 | O74: 98.1 | P74: 2238 | Q74: 1828 | R74: 7.05
A75: USA | B75: California | C75: Livermore | D75: Livermore, California | E75: 728 | F75: 2090 | G75: 993.8453 | H75: 0.3337 | I75: 0.0318 | J75: 35.8684 | K75: 0.15339 | L75: 0.13406 | M75: 0.10491 | N75: 32.9 | O75: 90.9 | P75: 2796 | Q75: 786 | R75: 7.05
A76: USA | B76: California | C76: Lompoc | D76: Lompoc, California | E76: 152 | F76: 2267 | G76: 993.8453 | H76: 0.3337 | I76: 0.0318 | J76: 35.8684 | K76: 0.15339 | L76: 0.13406 | M76: 0.10491 | N76: 35.2 | O76: 73.7 | P76: 2815 | Q76: 55 | R76: 7.05
A77: USA | B77: California | C77: Long Beach Daugherty Field | D77: Long Beach Daugherty Field, California | E77: 1355 | F77: 1332 | G77: 993.8453 | H77: 0.3337 | I77: 0.0318 | J77: 35.8684 | K77: 0.15339 | L77: 0.13406 | M77: 0.10491 | N77: 43.5 | O77: 84.4 | P77: 1193 | Q77: 1095 | R77: 7.05
A78: USA | B78: California | C78: Los Angeles Int'l Airport | D78: Los Angeles Int'l Airport, California | E78: 1157 | F78: 1666 | G78: 993.8453 | H78: 0.3337 | I78: 0.0318 | J78: 35.8684 | K78: 0.15339 | L78: 0.13406 | M78: 0.10491 | N78: 46.5 | O78: 77.8 | P78: 1284 | Q78: 617 | R78: 7.05
A79: USA | B79: California | C79: March AFB / Riverside | D79: March AFB / Riverside, California | E79: 1262 | F79: 1537 | G79: 993.8453 | H79: 0.3337 | I79: 0.0318 | J79: 35.8684 | K79: 0.15339 | L79: 0.13406 | M79: 0.10491 | N79: 36.6 | O79: 95.4 | P79: 1819 | Q79: 1599 | R79: 7.05
A80: USA | B80: California | C80: Mcclellan AFB | D80: Mcclellan AFB, California | E80: 1234 | F80: 1841 | G80: 993.8453 | H80: 0.3337 | I80: 0.0318 | J80: 35.8684 | K80: 0.15339 | L80: 0.13406 | M80: 0.10491 | N80: 34.4 | O80: 95.9 | P80: 2347 | Q80: 1589 | R80: 7.05
A81: USA | B81: California | C81: Modesto City | D81: Modesto City, California | E81: 1233 | F81: 1874 | G81: 993.8453 | H81: 0.3337 | I81: 0.0318 | J81: 35.8684 | K81: 0.15339 | L81: 0.13406 | M81: 0.10491 | N81: 33.6 | O81: 95.4 | P81: 2452 | Q81: 1562 | R81: 7.05
A82: USA | B82: California | C82: Monterey Peninsula | D82: Monterey Peninsula, California | E82: 196 | F82: 3006 | G82: 993.8453 | H82: 0.3337 | I82: 0.0318 | J82: 35.8684 | K82: 0.15339 | L82: 0.13406 | M82: 0.10491 | N82: 38.7 | O82: 70.4 | P82: 3294 | Q82: 44 | R82: 7.05
A83: USA | B83: California | C83: Mountain View Moffett NAS | D83: Mountain View Moffett NAS, California | E83: 738 | F83: 1957 | G83: 993.8453 | H83: 0.3337 | I83: 0.0318 | J83: 35.8684 | K83: 0.15339 | L83: 0.13406 | M83: 0.10491 | N83: 38.6 | O83: 80.6 | P83: 2153 | Q83: 480 | R83: 7.05
A84: USA | B84: California | C84: Napa Co. Airport | D84: Napa Co. Airport, California | E84: 335 | F84: 2359 | G84: 993.8453 | H84: 0.3337 | I84: 0.0318 | J84: 35.8684 | K84: 0.15339 | L84: 0.13406 | M84: 0.10491 | N84: 32.5 | O84: 82.1 | P84: 3194 | Q84: 239 | R84: 7.05
A85: USA | B85: California | C85: Norton AFB / San Bernardino | D85: Norton AFB / San Bernardino, California | E85: 1341 | F85: 1391 | G85: 993.8453 | H85: 0.3337 | I85: 0.0318 | J85: 35.8684 | K85: 0.15339 | L85: 0.13406 | M85: 0.10491 | N85: 36.5 | O85: 97.4 | P85: 1652 | Q85: 1811 | R85: 7.05
A86: USA | B86: California | C86: Oakland | D86: Oakland, California | E86: 395 | F86: 2432 | G86: 993.8453 | H86: 0.3337 | I86: 0.0318 | J86: 35.8684 | K86: 0.15339 | L86: 0.13406 | M86: 0.10491 | N86: 39.5 | O86: 74.3 | P86: 2584 | Q86: 153 | R86: 7.05
A87: USA | B87: California | C87: Ontario | D87: Ontario, California | E87: 1383 | F87: 1343 | G87: 993.8453 | H87: 0.3337 | I87: 0.0318 | J87: 35.8684 | K87: 0.15339 | L87: 0.13406 | M87: 0.10491 | N87: 38.9 | O87: 94.7 | P87: 1460 | Q87: 1711 | R87: 7.05
A88: USA | B88: California | C88: Palm Springs | D88: Palm Springs, California | E88: 2404 | F88: 915 | G88: 993.8453 | H88: 0.3337 | I88: 0.0318 | J88: 35.8684 | K88: 0.15339 | L88: 0.13406 | M88: 0.10491 | N88: 44.7 | O88: 107.8 | P88: 774 | Q88: 4287 | R88: 7.05
A89: USA | B89: California | C89: Point Arguello | D89: Point Arguello, California | E89: 1680 | F89: 4563 | G89: 993.8453 | H89: 0.3337 | I89: 0.0318 | J89: 35.8684 | K89: 0.15339 | L89: 0.13406 | M89: 0.10491 | N89: 47.6 | O89: 65.3 | P89: 3308 | Q89: 21 | R89: 7.05
A90: USA | B90: California | C90: Point Mugu | D90: Point Mugu, California | E90: 572 | F90: 1931 | G90: 993.8453 | H90: 0.3337 | I90: 0.0318 | J90: 35.8684 | K90: 0.15339 | L90: 0.13406 | M90: 0.10491 | N90: 41.2 | O90: 75.9 | P90: 1915 | Q90: 260 | R90: 7.05
A91: USA | B91: California | C91: Porterville | D91: Porterville, California | E91: 1244 | F91: 1942 | G91: 993.8453 | H91: 0.3337 | I91: 0.0318 | J91: 35.8684 | K91: 0.15339 | L91: 0.13406 | M91: 0.10491 | N91: 33.6 | O91: 96.9 | P91: 2541 | Q91: 1654 | R91: 7.05
A92: USA | B92: California | C92: Redding | D92: Redding, California | E92: 1315 | F92: 1905 | G92: 993.8453 | H92: 0.3337 | I92: 0.0318 | J92: 35.8684 | K92: 0.15339 | L92: 0.13406 | M92: 0.10491 | N92: 30.8 | O92: 99.3 | P92: 2715 | Q92: 1880 | R92: 7.05
A93: USA | B93: California | C93: Riverside | D93: Riverside, California | E93: 1261 | F93: 1400 | G93: 993.8453 | H93: 0.3337 | I93: 0.0318 | J93: 35.8684 | K93: 0.15339 | L93: 0.13406 | M93: 0.10491 | N93: 37.2 | O93: 94.5 | P93: 1622 | Q93: 1550 | R93: 7.05
A94: USA | B94: California | C94: Sacramento Executive Airport | D94: Sacramento Executive Airport, California | E94: 1010 | F94: 1953 | G94: 993.8453 | H94: 0.3337 | I94: 0.0318 | J94: 35.8684 | K94: 0.15339 | L94: 0.13406 | M94: 0.10491 | N94: 33.8 | O94: 93.8 | P94: 2539 | Q94: 1212 | R94: 7.05
A95: USA | B95: California | C95: Sacramento Mather Airport | D95: Sacramento Mather Airport, California | E95: 1008 | F95: 1981 | G95: 993.8453 | H95: 0.3337 | I95: 0.0318 | J95: 35.8684 | K95: 0.15339 | L95: 0.13406 | M95: 0.10491 | N95: 32.3 | O95: 94.8 | P95: 2699 | Q95: 1251 | R95: 7.05
A96: USA | B96: California | C96: Sacramento Metropolitan Airport | D96: Sacramento Metropolitan Airport, California | E96: 1134 | F96: 1850 | G96: 993.8453 | H96: 0.3337 | I96: 0.0318 | J96: 35.8684 | K96: 0.15339 | L96: 0.13406 | M96: 0.10491 | N96: 34 | O96: 94.8 | P96: 2389 | Q96: 1408 | R96: 7.05
A97: USA | B97: California | C97: Salinas | D97: Salinas, California | E97: 274 | F97: 2267 | G97: 993.8453 | H97: 0.3337 | I97: 0.0318 | J97: 35.8684 | K97: 0.15339 | L97: 0.13406 | M97: 0.10491 | N97: 36.2 | O97: 75 | P97: 2720 | Q97: 114 | R97: 7.05
A98: USA | B98: California | C98: San Diego Lindbergh Field | D98: San Diego Lindbergh Field, California | E98: 1333 | F98: 1473 | G98: 993.8453 | H98: 0.3337 | I98: 0.0318 | J98: 35.8684 | K98: 0.15339 | L98: 0.13406 | M98: 0.10491 | N98: 46.8 | O98: 78.7 | P98: 1117 | Q98: 761 | R98: 7.05
A99: USA | B99: California | C99: San Diego Miramar NAS | D99: San Diego Miramar NAS, California | E99: 1108 | F99: 1467 | G99: 993.8453 | H99: 0.3337 | I99: 0.0318 | J99: 35.8684 | K99: 0.15339 | L99: 0.13406 | M99: 0.10491 | N99: 41.4 | O99: 83.8 | P99: 1443 | Q99: 868 | R99: 7.05
A100: USA | B100: California | C100: San Diego North Island NAS | D100: San Diego North Island NAS, California | E100: 1305 | F100: 1549 | G100: 993.8453 | H100: 0.3337 | I100: 0.0318 | J100: 35.8684 | K100: 0.15339 | L100: 0.13406 | M100: 0.10491 | N100: 46 | O100: 77.3 | P100: 1226 | Q100: 669 | R100: 7.05
A101: USA | B101: California | C101: San Diego / Brown Field | D101: San Diego / Brown Field, California | E101: 919 | F101: 1784 | G101: 993.8453 | H101: 0.3337 | I101: 0.0318 | J101: 35.8684 | K101: 0.15339 | L101: 0.13406 | M101: 0.10491 | N101: 42.6 | O101: 81.5 | P101: 1665 | Q101: 632 | R101: 7.05
A102: USA | B102: California | C102: San Diego / Montgomery | D102: San Diego / Montgomery, California | E102: 1131 | F102: 1633 | G102: 993.8453 | H102: 0.3337 | I102: 0.0318 | J102: 35.8684 | K102: 0.15339 | L102: 0.13406 | M102: 0.10491 | N102: 43.1 | O102: 81.7 | P102: 1490 | Q102: 787 | R102: 7.05
A103: USA | B103: California | C103: San Francisco Int'l Airport | D103: San Francisco Int'l Airport, California | E103: 363 | F103: 2686 | G103: 993.8453 | H103: 0.3337 | I103: 0.0318 | J103: 35.8684 | K103: 0.15339 | L103: 0.13406 | M103: 0.10491 | N103: 40.8 | O103: 74.4 | P103: 2708 | Q103: 142 | R103: 7.05
A104: USA | B104: California | C104: San Jose | D104: San Jose, California | E104: 869 | F104: 1794 | G104: 993.8453 | H104: 0.3337 | I104: 0.0318 | J104: 35.8684 | K104: 0.15339 | L104: 0.13406 | M104: 0.10491 | N104: 37.8 | O104: 84.8 | P104: 2033 | Q104: 717 | R104: 7.05
A105: USA | B105: California | C105: San Luis Obispo | D105: San Luis Obispo, California | E105: 411 | F105: 1841 | G105: 993.8453 | H105: 0.3337 | I105: 0.0318 | J105: 35.8684 | K105: 0.15339 | L105: 0.13406 | M105: 0.10491 | N105: 36.3 | O105: 81.1 | P105: 2202 | Q105: 276 | R105: 7.05
A106: USA | B106: California | C106: Santa Barbara | D106: Santa Barbara, California | E106: 438 | F106: 1880 | G106: 993.8453 | H106: 0.3337 | I106: 0.0318 | J106: 35.8684 | K106: 0.15339 | L106: 0.13406 | M106: 0.10491 | N106: 36.8 | O106: 77 | P106: 2209 | Q106: 219 | R106: 7.05
A107: USA | B107: California | C107: Santa Maria | D107: Santa Maria, California | E107: 238 | F107: 2163 | G107: 993.8453 | H107: 0.3337 | I107: 0.0318 | J107: 35.8684 | K107: 0.15339 | L107: 0.13406 | M107: 0.10491 | N107: 34.7 | O107: 76.7 | P107: 2731 | Q107: 116 | R107: 7.05
A108: USA | B108: California | C108: Santa Rosa | D108: Santa Rosa, California | E108: 402 | F108: 2172 | G108: 993.8453 | H108: 0.3337 | I108: 0.0318 | J108: 35.8684 | K108: 0.15339 | L108: 0.13406 | M108: 0.10491 | N108: 31.8 | O108: 87.5 | P108: 3005 | Q108: 377 | R108: 7.05
A109: USA | B109: California | C109: Stockton | D109: Stockton, California | E109: 1113 | F109: 1861 | G109: 993.8453 | H109: 0.3337 | I109: 0.0318 | J109: 35.8684 | K109: 0.15339 | L109: 0.13406 | M109: 0.10491 | N109: 32.7 | O109: 94.9 | P109: 2505 | Q109: 1386 | R109: 7.05
A110: USA | B110: California | C110: Travis AFB / Fairfield | D110: Travis AFB / Fairfield, California | E110: 909 | F110: 1958 | G110: 993.8453 | H110: 0.3337 | I110: 0.0318 | J110: 35.8684 | K110: 0.15339 | L110: 0.13406 | M110: 0.10491 | N110: 34.4 | O110: 91 | P110: 2496 | Q110: 985 | R110: 7.05
A111: USA | B111: California | C111: Truckee - Tahoe | D111: Truckee - Tahoe, California | E111: 80 | F111: 3164 | G111: 993.8453 | H111: 0.3337 | I111: 0.0318 | J111: 35.8684 | K111: 0.15339 | L111: 0.13406 | M111: 0.10491 | N111: 7 | O111: 82.4 | P111: 7646 | Q111: 58 | R111: 7.05
A112: USA | B112: California | C112: Tustin | D112: Tustin, California | E112: 1349 | F112: 1086 | G112: 993.8453 | H112: 0.3337 | I112: 0.0318 | J112: 35.8684 | K112: 0.15339 | L112: 0.13406 | M112: 0.10491 | N112: 41.1 | O112: 86.8 | P112: 1081 | Q112: 1225 | R112: 7.05
A113: USA | B113: California | C113: Visalia | D113: Visalia, California | E113: 1238 | F113: 1898 | G113: 993.8453 | H113: 0.3337 | I113: 0.0318 | J113: 35.8684 | K113: 0.15339 | L113: 0.13406 | M113: 0.10491 | N113: 32.7 | O113: 95.2 | P113: 2555 | Q113: 1558 | R113: 7.05
A114: USA | B114: Colorado | C114: Akron | D114: Akron, Colorado | E114: 755 | F114: 2371 | G114: 1730.9221 | H114: 2.5133 | I114: 1.7762 | J114: 23.3603 | K114: 0.11459 | L114: 0.09393 | M114: 0.06946 | N114: 2.9 | O114: 88.4 | P114: 6134 | Q114: 736 | R114: 7.58
A115: USA | B115: Colorado | C115: Alamosa | D115: Alamosa, Colorado | E115: 79 | F115: 2721 | G115: 1730.9221 | H115: 2.5133 | I115: 1.7762 | J115: 23.3603 | K115: 0.11459 | L115: 0.09393 | M115: 0.06946 | N115: -9.9 | O115: 80.4 | P115: 8493 | Q115: 51 | R115: 7.58
A116: USA | B116: Colorado | C116: Aspen | D116: Aspen, Colorado | E116: 112 | F116: 3139 | G116: 1730.9221 | H116: 2.5133 | I116: 1.7762 | J116: 23.3603 | K116: 0.11459 | L116: 0.09393 | M116: 0.06946 | N116: 1 | O116: 80.7 | P116: 8371 | Q116: 73 | R116: 7.58
A117: USA | B117: Colorado | C117: Buckley Air National Guard / Denver | D117: Buckley Air National Guard / Denver, Colorado | E117: 721 | F117: 2429 | G117: 1730.9221 | H117: 2.5133 | I117: 1.7762 | J117: 23.3603 | K117: 0.11459 | L117: 0.09393 | M117: 0.06946 | N117: 6.5 | O117: 87.8 | P117: 5920 | Q117: 685 | R117: 7.58
A118: USA | B118: Colorado | C118: Colorado Springs | D118: Colorado Springs, Colorado | E118: 531 | F118: 2546 | G118: 1730.9221 | H118: 2.5133 | I118: 1.7762 | J118: 23.3603 | K118: 0.11459 | L118: 0.09393 | M118: 0.06946 | N118: 5.8 | O118: 84.9 | P118: 6279 | Q118: 440 | R118: 7.58
A119: USA | B119: Colorado | C119: Cortez / Montezuma | D119: Cortez / Montezuma, Colorado | E119: 459 | F119: 2662 | G119: 1730.9221 | H119: 2.5133 | I119: 1.7762 | J119: 23.3603 | K119: 0.11459 | L119: 0.09393 | M119: 0.06946 | N119: 9 | O119: 89.7 | P119: 6212 | Q119: 472 | R119: 7.58
A120: USA | B120: Colorado | C120: Craig - Moffat | D120: Craig - Moffat, Colorado | E120: 155 | F120: 2828 | G120: 1730.9221 | H120: 2.5133 | I120: 1.7762 | J120: 23.3603 | K120: 0.11459 | L120: 0.09393 | M120: 0.06946 | N120: -9 | O120: 84.1 | P120: 8719 | Q120: 123 | R120: 7.58
A121: USA | B121: Colorado | C121: Denver Int'l Airport | D121: Denver Int'l Airport, Colorado | E121: 771 | F121: 2455 | G121: 1730.9221 | H121: 2.5133 | I121: 1.7762 | J121: 23.3603 | K121: 0.11459 | L121: 0.09393 | M121: 0.06946 | N121: 6.9 | O121: 89.2 | P121: 5942 | Q121: 777 | R121: 7.58
A122: USA | B122: Colorado | C122: Denver Stapleton Airport | D122: Denver Stapleton Airport, Colorado | E122: 738 | F122: 2298 | G122: 1730.9221 | H122: 2.5133 | I122: 1.7762 | J122: 23.3603 | K122: 0.11459 | L122: 0.09393 | M122: 0.06946 | N122: 3.3 | O122: 88 | P122: 5908 | Q122: 707 | R122: 7.58
A123: USA | B123: Colorado | C123: Denver / Centennial | D123: Denver / Centennial, Colorado | E123: 633 | F123: 2450 | G123: 1730.9221 | H123: 2.5133 | I123: 1.7762 | J123: 23.3603 | K123: 0.11459 | L123: 0.09393 | M123: 0.06946 | N123: 4.2 | O123: 86.3 | P123: 6207 | Q123: 562 | R123: 7.58
A124: USA | B124: Colorado | C124: Durango / La Plata | D124: Durango / La Plata, Colorado | E124: 366 | F124: 2819 | G124: 1730.9221 | H124: 2.5133 | I124: 1.7762 | J124: 23.3603 | K124: 0.11459 | L124: 0.09393 | M124: 0.06946 | N124: 7.3 | O124: 84.4 | P124: 6778 | Q124: 296 | R124: 7.58
A125: USA | B125: Colorado | C125: Eagle County Airport | D125: Eagle County Airport, Colorado | E125: 156 | F125: 2869 | G125: 1730.9221 | H125: 2.5133 | I125: 1.7762 | J125: 23.3603 | K125: 0.11459 | L125: 0.09393 | M125: 0.06946 | N125: -2.1 | O125: 82.5 | P125: 8021 | Q125: 114 | R125: 7.58
A126: USA | B126: Colorado | C126: Fort Collins | D126: Fort Collins, Colorado | E126: 630 | F126: 2544 | G126: 1730.9221 | H126: 2.5133 | I126: 1.7762 | J126: 23.3603 | K126: 0.11459 | L126: 0.09393 | M126: 0.06946 | N126: 6.4 | O126: 88.2 | P126: 6212 | Q126: 609 | R126: 7.58
A127: USA | B127: Colorado | C127: Grand Junction | D127: Grand Junction, Colorado | E127: 1055 | F127: 2418 | G127: 1730.9221 | H127: 2.5133 | I127: 1.7762 | J127: 23.3603 | K127: 0.11459 | L127: 0.09393 | M127: 0.06946 | N127: 11.7 | O127: 92.3 | P127: 5369 | Q127: 1200 | R127: 7.58
A128: USA | B128: Colorado | C128: Greeley / Weld | D128: Greeley / Weld, Colorado | E128: 593 | F128: 2441 | G128: 1730.9221 | H128: 2.5133 | I128: 1.7762 | J128: 23.3603 | K128: 0.11459 | L128: 0.09393 | M128: 0.06946 | N128: 1 | O128: 89.8 | P128: 6510 | Q128: 613 | R128: 7.58
A129: USA | B129: Colorado | C129: Gunnison | D129: Gunnison, Colorado | E129: 28 | F129: 3047 | G129: 1730.9221 | H129: 2.5133 | I129: 1.7762 | J129: 23.3603 | K129: 0.11459 | L129: 0.09393 | M129: 0.06946 | N129: -11.1 | O129: 78.5 | P129: 9662 | Q129: 16 | R129: 7.58
A130: USA | B130: Colorado | C130: Hayden / Yampa | D130: =C130&", "&B130 -> Hayden / Yampa, Colorado | E130: 270 | F130: 3053 | G130: 1730.9221 | H130: 2.5133 | I130: 1.7762 | J130: 23.3603 | K130: 0.11459 | L130: 0.09393 | M130: 0.06946 | N130: 1 | O130: 81.8 | P130: 8142 | Q130: 189 | R130: 7.58
A131: USA | B131: Colorado | C131: La Junta | D131: La Junta, Colorado | E131: 1031 | F131: 2135 | G131: 1730.9221 | H131: 2.5133 | I131: 1.7762 | J131: 23.3603 | K131: 0.11459 | L131: 0.09393 | M131: 0.06946 | N131: 7.1 | O131: 94.4 | P131: 5150 | Q131: 1263 | R131: 7.58
A132: USA | B132: Colorado | C132: Lamar | D132: Lamar, Colorado | E132: 988 | F132: 2247 | G132: 1730.9221 | H132: 2.5133 | I132: 1.7762 | J132: 23.3603 | K132: 0.11459 | L132: 0.09393 | M132: 0.06946 | N132: 8.7 | O132: 94.8 | P132: 5270 | Q132: 1227 | R132: 7.58
A133: USA | B133: Colorado | C133: Limon | D133: Limon, Colorado | E133: 452 | F133: 2547 | G133: 1730.9221 | H133: 2.5133 | I133: 1.7762 | J133: 23.3603 | K133: 0.11459 | L133: 0.09393 | M133: 0.06946 | N133: 1.3 | O133: 86.3 | P133: 6760 | Q133: 401 | R133: 7.58
A134: USA | B134: Colorado | C134: Montrose | D134: Montrose, Colorado | E134: 641 | F134: 2589 | G134: 1730.9221 | H134: 2.5133 | I134: 1.7762 | J134: 23.3603 | K134: 0.11459 | L134: 0.09393 | M134: 0.06946 | N134: 9.9 | O134: 89.6 | P134: 5945 | Q134: 657 | R134: 7.58
A135: USA | B135: Colorado | C135: Pueblo | D135: Pueblo, Colorado | E135: 799 | F135: 2209 | G135: 1730.9221 | H135: 2.5133 | I135: 1.7762 | J135: 23.3603 | K135: 0.11459 | L135: 0.09393 | M135: 0.06946 | N135: 5.3 | O135: 93 | P135: 5496 | Q135: 932 | R135: 7.58
A136: USA | B136: Colorado | C136: Rifle | D136: Rifle, Colorado | E136: 535 | F136: 2655 | G136: 1730.9221 | H136: 2.5133 | I136: 1.7762 | J136: 23.3603 | K136: 0.11459 | L136: 0.09393 | M136: 0.06946 | N136: 7.5 | O136: 90.3 | P136: 6362 | Q136: 564 | R136: 7.58
A137: USA | B137: Colorado | C137: Trinidad | D137: Trinidad, Colorado | E137: 777 | F137: 2262 | G137: 1730.9221 | H137: 2.5133 | I137: 1.7762 | J137: 23.3603 | K137: 0.11459 | L137: 0.09393 | M137: 0.06946 | N137: 7.8 | O137: 88.2 | P137: 5392 | Q137: 751 | R137: 7.58
A138: USA | B138: Connecticut | C138: Bridgeport | D138: Bridgeport, Connecticut | E138: 1149 | F138: 2560 | G138: 1291.101 | H138: 0.742 | I138: 0.8247 | J138: 81.4343 | K138: 0.17343 | L138: 0.14652 | M138: 0.12673 | N138: 15.4 | O138: 82 | P138: 5290 | Q138: 814 | R138: 8.4
A139: USA | B139: Connecticut | C139: Hartford Bradley Int'l Airport | D139: Hartford Bradley Int'l Airport, Connecticut | E139: 869 | F139: 2523 | G139: 1291.101 | H139: 0.742 | I139: 0.8247 | J139: 81.4343 | K139: 0.17343 | L139: 0.14652 | M139: 0.12673 | N139: 8 | O139: 85.4 | P139: 5992 | Q139: 739 | R139: 8.4
A140: USA | B140: Connecticut | C140: Hartford Brainard Airport | D140: Hartford Brainard Airport, Connecticut | E140: 1009 | F140: 2480 | G140: 1291.101 | H140: 0.742 | I140: 0.8247 | J140: 81.4343 | K140: 0.17343 | L140: 0.14652 | M140: 0.12673 | N140: 10.6 | O140: 84.4 | P140: 5622 | Q140: 816 | R140: 8.4
A141: USA | B141: Connecticut | C141: Oxford | D141: Oxford, Connecticut | E141: 679 | F141: 2732 | G141: 1291.101 | H141: 0.742 | I141: 0.8247 | J141: 81.4343 | K141: 0.17343 | L141: 0.14652 | M141: 0.12673 | N141: 8.7 | O141: 81.3 | P141: 6408 | Q141: 461 | R141: 8.4
A142: USA | B142: Connecticut | C142: Willimantic | D142: Willimantic, Connecticut | E142: 769 | F142: 2588 | G142: 1291.101 | H142: 0.742 | I142: 0.8247 | J142: 81.4343 | K142: 0.17343 | L142: 0.14652 | M142: 0.12673 | N142: 9.1 | O142: 83.6 | P142: 6029 | Q142: 596 | R142: 8.4
A143: USA | B143: Delaware | C143: Dover AFB | D143: Dover AFB, Delaware | E143: 1289 | F143: 2316 | G143: 1780.8383 | H143: 1.9717 | I143: 6.6149 | J143: 26.8375 | K143: 0.1358 | L143: 0.1013 | M143: 0.08357 | N143: 18.2 | O143: 86.9 | P143: 4517 | Q143: 1176 | R143: 13.31
A144: USA | B144: Delaware | C144: Georgetown / Sussex | D144: Georgetown / Sussex, Delaware | E144: 1263 | F144: 2209 | G144: 1780.8383 | H144: 1.9717 | I144: 6.6149 | J144: 26.8375 | K144: 0.1358 | L144: 0.1013 | M144: 0.08357 | N144: 19.1 | O144: 88 | P144: 4224 | Q144: 1210 | R144: 13.31
A145: USA | B145: Delaware | C145: Wilmington | D145: Wilmington, Delaware | E145: 1240 | F145: 2349 | G145: 1780.8383 | H145: 1.9717 | I145: 6.6149 | J145: 26.8375 | K145: 0.1358 | L145: 0.1013 | M145: 0.08357 | N145: 16.1 | O145: 86.7 | P145: 4786 | Q145: 1121 | R145: 13.31
A146: USA | B146: Florida | C146: Apalachicola | D146: Apalachicola, Florida | E146: 2554 | F146: 1029 | G146: 1324.476 | H146: 1.1273 | I146: 2.1572 | J146: 36.2561 | K146: 0.11422 | L146: 0.09664 | M146: 0.08035 | N146: 35.7 | O146: 89.1 | P146: 1256 | Q146: 2565 | R146: 10.41
A147: USA | B147: Florida | C147: Cape San Blas | D147: Cape San Blas, Florida | E147: 2669 | F147: 1389 | G147: 1324.476 | H147: 1.1273 | I147: 2.1572 | J147: 36.2561 | K147: 0.11422 | L147: 0.09664 | M147: 0.08035 | N147: 40 | O147: 85.1 | P147: 1447 | Q147: 2235 | R147: 10.41
A148: USA | B148: Florida | C148: Cecil Field | D148: Cecil Field, Florida | E148: 2456 | F148: 888 | G148: 1324.476 | H148: 1.1273 | I148: 2.1572 | J148: 36.2561 | K148: 0.11422 | L148: 0.09664 | M148: 0.08035 | N148: 33.5 | O148: 92.6 | P148: 1166 | Q148: 2824 | R148: 10.41
A149: USA | B149: Florida | C149: Crestview | D149: Crestview, Florida | E149: 2126 | F149: 1192 | G149: 1324.476 | H149: 1.1273 | I149: 2.1572 | J149: 36.2561 | K149: 0.11422 | L149: 0.09664 | M149: 0.08035 | N149: 27.5 | O149: 91.1 | P149: 1863 | Q149: 2312 | R149: 10.41
A150: USA | B150: Florida | C150: Cross City | D150: Cross City, Florida | E150: 2457 | F150: 900 | G150: 1324.476 | H150: 1.1273 | I150: 2.1572 | J150: 36.2561 | K150: 0.11422 | L150: 0.09664 | M150: 0.08035 | N150: 30.8 | O150: 90.7 | P150: 1283 | Q150: 2631 | R150: 10.41
A151: USA | B151: Florida | C151: Daytona Beach | D151: Daytona Beach, Florida | E151: 2902 | F151: 707 | G151: 1324.476 | H151: 1.1273 | I151: 2.1572 | J151: 36.2561 | K151: 0.11422 | L151: 0.09664 | M151: 0.08035 | N151: 38.8 | O151: 89.2 | P151: 772 | Q151: 2926 | R151: 10.41
A152: USA | B152: Florida | C152: Destin / Ft. Walton | D152: Destin / Ft. Walton, Florida | E152: 2776 | F152: 1092 | G152: 1324.476 | H152: 1.1273 | I152: 2.1572 | J152: 36.2561 | K152: 0.11422 | L152: 0.09664 | M152: 0.08035 | N152: 36.9 | O152: 88.5 | P152: 1279 | Q152: 2718 | R152: 10.41
A153: USA | B153: Florida | C153: Eglin AFB / Valparaiso | D153: Eglin AFB / Valparaiso, Florida | E153: 2468 | F153: 1114 | G153: 1324.476 | H153: 1.1273 | I153: 2.1572 | J153: 36.2561 | K153: 0.11422 | L153: 0.09664 | M153: 0.08035 | N153: 32.5 | O153: 89.7 | P153: 1508 | Q153: 2540 | R153: 10.41
A154: USA | B154: Florida | C154: Fort Lauderdale / Hollywood | D154: Fort Lauderdale / Hollywood, Florida | E154: 4365 | F154: 245 | G154: 1324.476 | H154: 1.1273 | I154: 2.1572 | J154: 36.2561 | K154: 0.11422 | L154: 0.09664 | M154: 0.08035 | N154: 51.1 | O154: 89.8 | P154: 142 | Q154: 4510 | R154: 10.41
A155: USA | B155: Florida | C155: Fort Myers | D155: Fort Myers, Florida | E155: 3566 | F155: 352 | G155: 1324.476 | H155: 1.1273 | I155: 2.1572 | J155: 36.2561 | K155: 0.11422 | L155: 0.09664 | M155: 0.08035 | N155: 46.3 | O155: 91.3 | P155: 274 | Q155: 3908 | R155: 10.41
A156: USA | B156: Florida | C156: Gainesville | D156: Gainesville, Florida | E156: 2485 | F156: 880 | G156: 1324.476 | H156: 1.1273 | I156: 2.1572 | J156: 36.2561 | K156: 0.11422 | L156: 0.09664 | M156: 0.08035 | N156: 33.4 | O156: 90.5 | P156: 1159 | Q156: 2640 | R156: 10.41
A157: USA | B157: Florida | C157: Homestead AFB | D157: Homestead AFB, Florida | E157: 4153 | F157: 237 | G157: 1324.476 | H157: 1.1273 | I157: 2.1572 | J157: 36.2561 | K157: 0.11422 | L157: 0.09664 | M157: 0.08035 | N157: 50.4 | O157: 89.5 | P157: 144 | Q157: 4240 | R157: 10.41
A158: USA | B158: Florida | C158: Jacksonville Int'l Airport | D158: Jacksonville Int'l Airport, Florida | E158: 2432 | F158: 972 | G158: 1324.476 | H158: 1.1273 | I158: 2.1572 | J158: 36.2561 | K158: 0.11422 | L158: 0.09664 | M158: 0.08035 | N158: 32.5 | O158: 90.9 | P158: 1316 | Q158: 2624 | R158: 10.41
A159: USA | B159: Florida | C159: Jacksonville Cecil Field NAS | D159: Jacksonville Cecil Field NAS, Florida | E159: 2795 | F159: 847 | G159: 1324.476 | H159: 1.1273 | I159: 2.1572 | J159: 36.2561 | K159: 0.11422 | L159: 0.09664 | M159: 0.08035 | N159: 36.3 | O159: 91.5 | P159: 1013 | Q159: 3086 | R159: 10.41
A160: USA | B160: Florida | C160: Jacksonville Executive Airport | D160: Jacksonville Executive Airport, Florida | E160: 2467 | F160: 1005 | G160: 1324.476 | H160: 1.1273 | I160: 2.1572 | J160: 36.2561 | K160: 0.11422 | L160: 0.09664 | M160: 0.08035 | N160: 35.4 | O160: 90 | P160: 1240 | Q160: 2570 | R160: 10.41
A161: USA | B161: Florida | C161: Key West | D161: Key West, Florida | E161: 4804 | F161: 206 | G161: 1324.476 | H161: 1.1273 | I161: 2.1572 | J161: 36.2561 | K161: 0.11422 | L161: 0.09664 | M161: 0.08035 | N161: 57.9 | O161: 89 | P161: 61 | Q161: 4804 | R161: 10.41
A162: USA | B162: Florida | C162: Macdill AFB / Tampa | D162: Macdill AFB / Tampa, Florida | E162: 3403 | F162: 555 | G162: 1324.476 | H162: 1.1273 | I162: 2.1572 | J162: 36.2561 | K162: 0.11422 | L162: 0.09664 | M162: 0.08035 | N162: 44.3 | O162: 90.7 | P162: 479 | Q162: 3644 | R162: 10.41
A163: USA | B163: Florida | C163: Marathon | D163: Marathon, Florida | E163: 4772 | F163: 209 | G163: 1324.476 | H163: 1.1273 | I163: 2.1572 | J163: 36.2561 | K163: 0.11422 | L163: 0.09664 | M163: 0.08035 | N163: 56.6 | O163: 90.4 | P163: 73 | Q163: 5050 | R163: 10.41
A164: USA | B164: Florida | C164: Mayport | D164: Mayport, Florida | E164: 2874 | F164: 920 | G164: 1324.476 | H164: 1.1273 | I164: 2.1572 | J164: 36.2561 | K164: 0.11422 | L164: 0.09664 | M164: 0.08035 | N164: 38.6 | O164: 90.3 | P164: 1012 | Q164: 3030 | R164: 10.41
A165: USA | B165: Florida | C165: Melbourne | D165: Melbourne, Florida | E165: 3416 | F165: 500 | G165: 1324.476 | H165: 1.1273 | I165: 2.1572 | J165: 36.2561 | K165: 0.11422 | L165: 0.09664 | M165: 0.08035 | N165: 43.4 | O165: 89.7 | P165: 450 | Q165: 3516 | R165: 10.41
A166: USA | B166: Florida | C166: Miami | D166: Miami, Florida | E166: 4332 | F166: 235 | G166: 1324.476 | H166: 1.1273 | I166: 2.1572 | J166: 36.2561 | K166: 0.11422 | L166: 0.09664 | M166: 0.08035 | N166: 51.7 | O166: 89.7 | P166: 130 | Q166: 4458 | R166: 10.41
A167: USA | B167: Florida | C167: Miami / Kendall-Tamia | D167: Miami / Kendall-Tamia, Florida | E167: 3872 | F167: 258 | G167: 1324.476 | H167: 1.1273 | I167: 2.1572 | J167: 36.2561 | K167: 0.11422 | L167: 0.09664 | M167: 0.08035 | N167: 49 | O167: 90.3 | P167: 172 | Q167: 4082 | R167: 10.41
A168: USA | B168: Florida | C168: Naples | D168: Naples, Florida | E168: 3640 | F168: 380 | G168: 1324.476 | H168: 1.1273 | I168: 2.1572 | J168: 36.2561 | K168: 0.11422 | L168: 0.09664 | M168: 0.08035 | N168: 47.4 | O168: 89.3 | P168: 279 | Q168: 3686 | R168: 10.41
A169: USA | B169: Florida | C169: NASA Shuttle Facility | D169: NASA Shuttle Facility, Florida | E169: 3124 | F169: 586 | G169: 1324.476 | H169: 1.1273 | I169: 2.1572 | J169: 36.2561 | K169: 0.11422 | L169: 0.09664 | M169: 0.08035 | N169: 42.4 | O169: 89.2 | P169: 552 | Q169: 3150 | R169: 10.41
A170: USA | B170: Florida | C170: Ocala | D170: Ocala, Florida | E170: 2573 | F170: 801 | G170: 1324.476 | H170: 1.1273 | I170: 2.1572 | J170: 36.2561 | K170: 0.11422 | L170: 0.09664 | M170: 0.08035 | N170: 34 | O170: 90.6 | P170: 1035 | Q170: 2745 | R170: 10.41
A171: USA | B171: Florida | C171: Orlando Executive Airport | D171: Orlando Executive Airport, Florida | E171: 3277 | F171: 550 | G171: 1324.476 | H171: 1.1273 | I171: 2.1572 | J171: 36.2561 | K171: 0.11422 | L171: 0.09664 | M171: 0.08035 | N171: 44.2 | O171: 91.1 | P171: 477 | Q171: 3564 | R171: 10.41
A172: USA | B172: Florida | C172: Orlando Int'l Airport | D172: Orlando Int'l Airport, Florida | E172: 3107 | F172: 565 | G172: 1324.476 | H172: 1.1273 | I172: 2.1572 | J172: 36.2561 | K172: 0.11422 | L172: 0.09664 | M172: 0.08035 | N172: 41.9 | O172: 91.1 | P172: 544 | Q172: 3379 | R172: 10.41
A173: USA | B173: Florida | C173: Orlando Sanford Airport | D173: Orlando Sanford Airport, Florida | E173: 2985 | F173: 650 | G173: 1324.476 | H173: 1.1273 | I173: 2.1572 | J173: 36.2561 | K173: 0.11422 | L173: 0.09664 | M173: 0.08035 | N173: 42.3 | O173: 91.2 | P173: 615 | Q173: 3259 | R173: 10.41
A174: USA | B174: Florida | C174: Panama City Bay | D174: Panama City Bay, Florida | E174: 2712 | F174: 996 | G174: 1324.476 | H174: 1.1273 | I174: 2.1572 | J174: 36.2561 | K174: 0.11422 | L174: 0.09664 | M174: 0.08035 | N174: 36 | O174: 90.2 | P174: 1203 | Q174: 2848 | R174: 10.41
A175: USA | B175: Florida | C175: Pensacola / Forrest Sherman NAS | D175: Pensacola / Forrest Sherman NAS, Florida | E175: 2499 | F175: 1089 | G175: 1324.476 | H175: 1.1273 | I175: 2.1572 | J175: 36.2561 | K175: 0.11422 | L175: 0.09664 | M175: 0.08035 | N175: 32.2 | O175: 90.1 | P175: 1488 | Q175: 2614 | R175: 10.41
A176: USA | B176: Florida | C176: Pensacola | D176: Pensacola, Florida | E176: 2523 | F176: 1113 | G176: 1324.476 | H176: 1.1273 | I176: 2.1572 | J176: 36.2561 | K176: 0.11422 | L176: 0.09664 | M176: 0.08035 | N176: 33.3 | O176: 90 | P176: 1470 | Q176: 2628 | R176: 10.41
A177: USA | B177: Florida | C177: Sarasota | D177: Sarasota, Florida | E177: 3245 | F177: 509 | G177: 1324.476 | H177: 1.1273 | I177: 2.1572 | J177: 36.2561 | K177: 0.11422 | L177: 0.09664 | M177: 0.08035 | N177: 43.8 | O177: 90.3 | P177: 450 | Q177: 3421 | R177: 10.41
A178: USA | B178: Florida | C178: Sombrero Key | D178: Sombrero Key, Florida | E178: 5207 | F178: 183 | G178: 1324.476 | H178: 1.1273 | I178: 2.1572 | J178: 36.2561 | K178: 0.11422 | L178: 0.09664 | M178: 0.08035 | N178: 59.1 | O178: 86.4 | P178: 45 | Q178: 4643 | R178: 10.41
A179: USA | B179: Florida | C179: St Augsutine | D179: St Augsutine, Florida | E179: 2731 | F179: 948 | G179: 1324.476 | H179: 1.1273 | I179: 2.1572 | J179: 36.2561 | K179: 0.11422 | L179: 0.09664 | M179: 0.08035 | N179: 36.9 | O179: 88.5 | P179: 1110 | Q179: 2674 | R179: 10.41
A180: USA | B180: Florida | C180: St. Petersburg / Clearwater Airport | D180: St. Petersburg / Clearwater Airport, Florida | E180: 3565 | F180: 531 | G180: 1324.476 | H180: 1.1273 | I180: 2.1572 | J180: 36.2561 | K180: 0.11422 | L180: 0.09664 | M180: 0.08035 | N180: 45.8 | O180: 90.5 | P180: 425 | Q180: 3788 | R180: 10.41
A181: USA | B181: Florida | C181: Tallahassee | D181: Tallahassee, Florida | E181: 2287 | F181: 1020 | G181: 1324.476 | H181: 1.1273 | I181: 2.1572 | J181: 36.2561 | K181: 0.11422 | L181: 0.09664 | M181: 0.08035 | N181: 28.9 | O181: 91.9 | P181: 1534 | Q181: 2563 | R181: 10.41
A182: USA | B182: Florida | C182: Tampa | D182: Tampa, Florida | E182: 3336 | F182: 563 | G182: 1324.476 | H182: 1.1273 | I182: 2.1572 | J182: 36.2561 | K182: 0.11422 | L182: 0.09664 | M182: 0.08035 | N182: 42.5 | O182: 90.3 | P182: 528 | Q182: 3517 | R182: 10.41
A183: USA | B183: Florida | C183: Tyndall AFB | D183: Tyndall AFB, Florida | E183: 2691 | F183: 1052 | G183: 1324.476 | H183: 1.1273 | I183: 2.1572 | J183: 36.2561 | K183: 0.11422 | L183: 0.09664 | M183: 0.08035 | N183: 36.1 | O183: 88.6 | P183: 1267 | Q183: 2646 | R183: 10.41
A184: USA | B184: Florida | C184: Venice Pier | D184: Venice Pier, Florida | E184: 3375 | F184: 604 | G184: 1324.476 | H184: 1.1273 | I184: 2.1572 | J184: 36.2561 | K184: 0.11422 | L184: 0.09664 | M184: 0.08035 | N184: 46.2 | O184: 85.9 | P184: 473 | Q184: 2939 | R184: 10.41
A185: USA | B185: Florida | C185: Vero Beach | D185: Vero Beach, Florida | E185: 3394 | F185: 456 | G185: 1324.476 | H185: 1.1273 | I185: 2.1572 | J185: 36.2561 | K185: 0.11422 | L185: 0.09664 | M185: 0.08035 | N185: 43.1 | O185: 89.5 | P185: 416 | Q185: 3465 | R185: 10.41
A186: USA | B186: Florida | C186: West Palm | D186: West Palm, Florida | E186: 4011 | F186: 313 | G186: 1324.476 | H186: 1.1273 | I186: 2.1572 | J186: 36.2561 | K186: 0.11422 | L186: 0.09664 | M186: 0.08035 | N186: 48.3 | O186: 89.2 | P186: 218 | Q186: 4044 | R186: 10.41
A187: USA | B187: Florida | C187: Whiting Field Naas | D187: Whiting Field Naas, Florida | E187: 2322 | F187: 1130 | G187: 1324.476 | H187: 1.1273 | I187: 2.1572 | J187: 36.2561 | K187: 0.11422 | L187: 0.09664 | M187: 0.08035 | N187: 31.1 | O187: 91.2 | P187: 1596 | Q187: 2535 | R187: 10.41
A188: USA | B188: Georgia | C188: Albany | D188: Albany, Georgia | E188: 2183 | F188: 1199 | G188: 1650.9891 | H188: 1.5394 | I188: 6.5791 | J188: 25.739 | K188: 0.11175 | L188: 0.09578 | M188: 0.05977 | N188: 29.7 | O188: 92.6 | P188: 1763 | Q188: 2510 | R188: 9.74
A189: USA | B189: Georgia | C189: Athens | D189: Athens, Georgia | E189: 1690 | F189: 1704 | G189: 1650.9891 | H189: 1.5394 | I189: 6.5791 | J189: 25.739 | K189: 0.11175 | L189: 0.09578 | M189: 0.05977 | N189: 26.1 | O189: 90.4 | P189: 2762 | Q189: 1789 | R189: 9.74
A190: USA | B190: Georgia | C190: Atlanta | D190: Atlanta, Georgia | E190: 1445 | F190: 1748 | G190: 1650.9891 | H190: 1.5394 | I190: 6.5791 | J190: 25.739 | K190: 0.11175 | L190: 0.09578 | M190: 0.05977 | N190: 23.2 | O190: 89.6 | P190: 3045 | Q190: 1481 | R190: 9.74
A191: USA | B191: Georgia | C191: Atlanta Hartsfield Int'l Airport | D191: Atlanta Hartsfield Int'l Airport, Georgia | E191: 1818 | F191: 1649 | G191: 1650.9891 | H191: 1.5394 | I191: 6.5791 | J191: 25.739 | K191: 0.11175 | L191: 0.09578 | M191: 0.05977 | N191: 25.8 | O191: 89.3 | P191: 2694 | Q191: 1841 | R191: 9.74
A192: USA | B192: Georgia | C192: Augusta | D192: Augusta, Georgia | E192: 1807 | F192: 1476 | G192: 1650.9891 | H192: 1.5394 | I192: 6.5791 | J192: 25.739 | K192: 0.11175 | L192: 0.09578 | M192: 0.05977 | N192: 25.8 | O192: 92.4 | P192: 2411 | Q192: 2063 | R192: 9.74
A193: USA | B193: Georgia | C193: Brunswick | D193: Brunswick, Georgia | E193: 2574 | F193: 1172 | G193: 1650.9891 | H193: 1.5394 | I193: 6.5791 | J193: 25.739 | K193: 0.11175 | L193: 0.09578 | M193: 0.05977 | N193: 33.8 | O193: 88.4 | P193: 1523 | Q193: 2510 | R193: 9.74
A194: USA | B194: Georgia | C194: Columbus | D194: =C194&", "&B194 -> Columbus, Georgia | E194: 2063 | F194: 1377 | G194: 1650.9891 | H194: 1.5394 | I194: 6.5791 | J194: 25.739 | K194: 0.11175 | L194: 0.09578 | M194: 0.05977 | N194: 28.9 | O194: 92.1 | P194: 2071 | Q194: 2330 | R194: 9.74
A195: USA | B195: Georgia | C195: Dekalb Peachtree Airport | D195: Dekalb Peachtree Airport, Georgia | E195: 1715 | F195: 1757 | G195: 1650.9891 | H195: 1.5394 | I195: 6.5791 | J195: 25.739 | K195: 0.11175 | L195: 0.09578 | M195: 0.05977 | N195: 26.8 | O195: 90.1 | P195: 2797 | Q195: 1794 | R195: 9.74
A196: USA | B196: Georgia | C196: Dobbins AFB / Mariett | D196: Dobbins AFB / Mariett, Georgia | E196: 1728 | F196: 1735 | G196: 1650.9891 | H196: 1.5394 | I196: 6.5791 | J196: 25.739 | K196: 0.11175 | L196: 0.09578 | M196: 0.05977 | N196: 25 | O196: 89 | P196: 2892 | Q196: 1728 | R196: 9.74
A197: USA | B197: Georgia | C197: Columbus / Fort Benning | D197: Columbus / Fort Benning, Georgia | E197: 1867 | F197: 1409 | G197: 1650.9891 | H197: 1.5394 | I197: 6.5791 | J197: 25.739 | K197: 0.11175 | L197: 0.09578 | M197: 0.05977 | N197: 26.6 | O197: 92.1 | P197: 2254 | Q197: 2108 | R197: 9.74
A198: USA | B198: Georgia | C198: Fulton | D198: Fulton, Georgia | E198: 1637 | F198: 1718 | G198: 1650.9891 | H198: 1.5394 | I198: 6.5791 | J198: 25.739 | K198: 0.11175 | L198: 0.09578 | M198: 0.05977 | N198: 24.9 | O198: 89.9 | P198: 2871 | Q198: 1698 | R198: 9.74
A199: USA | B199: Georgia | C199: Gainesville | D199: Gainesville, Georgia | E199: 1646 | F199: 1879 | G199: 1650.9891 | H199: 1.5394 | I199: 6.5791 | J199: 25.739 | K199: 0.11175 | L199: 0.09578 | M199: 0.05977 | N199: 27.1 | O199: 88.2 | P199: 2968 | Q199: 1591 | R199: 9.74
A200: USA | B200: Georgia | C200: Hunter AAF | D200: Hunter AAF, Georgia | E200: 2327 | F200: 1188 | G200: 1650.9891 | H200: 1.5394 | I200: 6.5791 | J200: 25.739 | K200: 0.11175 | L200: 0.09578 | M200: 0.05977 | N200: 31.8 | O200: 91.2 | P200: 1644 | Q200: 2540 | R200: 9.74
... 819 more rows

Sheet Lists (hidden)
A1: Country | B1: USA State | C1: Canada State | E1: Manufacturer | G1: Loop Type
A2: USA | B2: Alabama | C2: Alberta | E2: ClimateMaster | G2: Water Loop
A3: Canada | B3: Alaska | C3: British Columbia | E3: Florida Heat Pump | G3: Ground Water
B4: Arizona | C4: Manitoba | E4: Johnson Controls | G4: Geothermal
B5: Arkansas | C5: New Brunswick | E5: Mammoth | G5: Air Source
B6: California | C6: Newfoundland | E6: McQuay
B7: Colorado | C7: Northwest Territories | E7: Rittling
B8: Connecticut | C8: Nova Scotia | E8: Trane
B9: Delaware | C9: Nunavut | E9: Waterfurnace
B10: Florida | C10: Ontario | E10: Whalen
B11: Georgia | C11: Prince Edward Island | E11: Generic Air Source
B12: Hawaii | C12: Québec | E12: Generic WSHP
B13: Idaho | C13: Saskatchewan
B14: Illinois | C14: Yukon Territory
B15: Indiana | E15: Manufacturer | F15: Model
B16: Iowa | E16: ClimateMaster | F16: TC
B17: Kansas | E17: ClimateMaster | F17: TE 2-stage
B18: Kentucky | E18: ClimateMaster | F18: THW
B19: Louisiana | E19: ClimateMaster | F19: TL
B20: Maine | E20: ClimateMaster | F20: TMW
B21: Maryland | E21: ClimateMaster | F21: TR
B22: Massachusetts | E22: ClimateMaster | F22: TRC
B23: Michigan | E23: ClimateMaster | F23: TRE
B24: Minnesota | E24: ClimateMaster | F24: TRM
B25: Mississippi | E25: ClimateMaster | F25: TS
B26: Missouri | E26: ClimateMaster | F26: TSM
B27: Montana | E27: ClimateMaster | F27: TT 2-stage
B28: Nebraska | E28: ClimateMaster | F28: TY 2-stage
B29: Nevada | E29: ClimateMaster | F29: TZ 2-stage
B30: New Hampshire | E30: Florida Heat Pump | F30: CA
B31: New Jersey | E31: Florida Heat Pump | F31: EC
B32: New Mexico | E32: Florida Heat Pump | F32: EP
B33: New York | E33: Florida Heat Pump | F33: ES
B34: North Carolina | E34: Florida Heat Pump | F34: ES 2-stage
B35: North Dakota | E35: Florida Heat Pump | F35: EV
B36: Ohio | E36: Florida Heat Pump | F36: LM 2-stage
B37: Oklahoma | E37: Florida Heat Pump | F37: LV
B38: Oregon | E38: Florida Heat Pump | F38: MC
B39: Pennsylvania | E39: Florida Heat Pump | F39: TRS
B40: Rhode Island | E40: Florida Heat Pump | F40: WW
B41: South Carolina | E41: Johnson Controls | F41: RBS
B42: South Dakota | E42: Johnson Controls | F42: RC
B43: Tennessee | E43: Johnson Controls | F43: RGS
B44: Texas | E44: Johnson Controls | F44: RJS
B45: Utah | E45: Johnson Controls | F45: RJT 2-stage
B46: Vermont | E46: Johnson Controls | F46: RKS
B47: Virginia | E47: Johnson Controls | F47: RKT 2-stage
B48: Washington | E48: Johnson Controls | F48: RL
B49: West Virginia | E49: Johnson Controls | F49: RS
B50: Wisconsin | E50: Johnson Controls | F50: VSC
B51: Wyoming | E51: Mammoth | F51: HHA / HLA
E52: Mammoth | F52: HHA / HLA 2-stage
E53: Mammoth | F53: HHM / HLM
E54: Mammoth | F54: HHU / HLU
E55: Mammoth | F55: VHA / VLA
E56: Mammoth | F56: VHA / VLA 2-stage
E57: Mammoth | F57: VHB / VLB
E58: Mammoth | F58: VHM / VLM
E59: Mammoth | F59: VHU / VLU
E60: Mammoth | F60: WHK / WLK
E61: McQuay | F61: WCCH / WCCW
E62: McQuay | F62: WDFW Variable Speed
E63: McQuay | F63: WGS
E64: McQuay | F64: WGT 2-stage
E65: McQuay | F65: WLVC WLVW
E66: McQuay | F66: WMHC / WMHW
E67: McQuay | F67: WRWA / WRGA
E68: McQuay | F68: WRWC / WRGC
E69: McQuay | F69: WVFC / WVFW
E70: McQuay | F70: WVHC
E71: McQuay | F71: WWCA
E72: McQuay | F72: WWHA
E73: McQuay | F73: WWRA
E74: Rittling | F74: VHC
E75: Trane | F75: DXH 2-stage
E76: Trane | F76: DXV 2-stage
E77: Trane | F77: EXH
E78: Trane | F78: EXV
E79: Trane | F79: EXW
E80: Trane | F80: GEC
E81: Trane | F81: GEH
E82: Trane | F82: GER
E83: Trane | F83: GET
E84: Trane | F84: GEV
E85: Trane | F85: TCT 2-stage
E86: Trane | F86: VSH Variable Speed
E87: Trane | F87: VSV Variable Speed
E88: Waterfurnace | F88: LCC
E89: Waterfurnace | F89: NB
E90: Waterfurnace | F90: NB 2-stage
E91: Waterfurnace | F91: NCC
E92: Waterfurnace | F92: ND 2-stage
E93: Waterfurnace | F93: NDW 2-stage
E94: Waterfurnace | F94: NL / NX
E95: Waterfurnace | F95: NSW
E96: Waterfurnace | F96: NXW 2-stage
E97: Waterfurnace | F97: UB
E98: Waterfurnace | F98: US
E99: Whalen | F99: VI
E100: Generic Air Source | F100: 10 EER Air Source
E101: Generic Air Source | F101: 12 EER Air Source
E102: Generic WSHP | F102: 10 EER WSHP
E103: Generic WSHP | F103: 12 EER WSHP

Sheet AHRI Ratings (hidden)
A1: Manufacturer | B1: Series | C1: Model | D1: Size | E1: Stages | F1: WLHP Cooling Capacity (Btuh) | G1: WLHP Cooling EER (Btuh/Watt) | H1: WLHP Cooling Fluid Flow Rate (Gpm) | I1: WLHP Heating Capacity (Btuh) | J1: WLHP Heating COP | K1: WLHP Heating Fluid Flow Rate (Gpm) | L1: GWHP Cooling Capacity (Btuh) | M1: GWHP Cooling EER (Btuh/Watt) | N1: GWHP Cooling Fluid Flow Rate (Gpm) | O1: GWHP Heating Capacity (Btuh) | P1: GWHP Heating COP | Q1: GWHP Heating Fluid Flow Rate (Gpm) | R1: GLHP Cooling Capacity (Btuh) | S1: GLHP Cooling EER (Btuh/Watt) | T1: GLHP Cooling Fluid Flow Rate (Gpm) | U1: GLHP Heating Capacity (Btuh) | V1: GLHP Heating COP | W1: GLHP Heating Fluid Flow Rate (Gpm) | X1: # of Stages | Y1: Motor Type | Z1: Last Date Modified
A2: ClimateMaster | B2: TC | C2: TCH072AF | D2: 072 | E2: Full | F2: 69000 | G2: 13.3 | H2: 20 | I2: 92500 | J2: 5 | K2: 20 | L2: 78500 | M2: 19.7 | N2: 20 | O2: 75500 | P2: 4.4 | Q2: 20 | R2: 71000 | S2: 14.6 | T2: 20 | U2: 58000 | V2: 3.5 | W2: 20 | X2: 1-Stage | Y2: Belt Drive | Z2: 2013-04-10
A3: ClimateMaster | B3: TC | C3: TCH096AF | D3: 096 | E3: Full | F3: 95000 | G3: 13.7 | H3: 24 | I3: 123000 | J3: 5 | K3: 24 | L3: 104500 | M3: 20 | N3: 24 | O3: 101000 | P3: 4.4 | Q3: 24 | R3: 98000 | S3: 15.2 | T3: 24 | U3: 77000 | V3: 3.6 | W3: 24 | X3: 1-Stage | Y3: Belt Drive | Z3: 2013-04-10
A4: ClimateMaster | B4: TC | C4: TCH120AF | D4: 120 | E4: Full | F4: 119000 | G4: 13.3 | H4: 30 | I4: 160000 | J4: 4.6 | K4: 30 | L4: 134000 | M4: 19.3 | N4: 30 | O4: 132500 | P4: 4 | Q4: 30 | R4: 122500 | S4: 14.5 | T4: 30 | U4: 103000 | V4: 3.3 | W4: 30 | X4: 1-Stage | Y4: Belt Drive | Z4: 2013-04-10
A5: ClimateMaster | B5: TC | C5: TCV072AF | D5: 072 | E5: Full | F5: 69000 | G5: 13.3 | H5: 20 | I5: 92500 | J5: 5 | K5: 20 | L5: 78500 | M5: 19.7 | N5: 20 | O5: 75500 | P5: 4.4 | Q5: 20 | R5: 71000 | S5: 14.6 | T5: 20 | U5: 58000 | V5: 3.5 | W5: 20 | X5: 1-Stage | Y5: Belt Drive | Z5: 2013-04-10
A6: ClimateMaster | B6: TC | C6: TCV096AF | D6: 096 | E6: Full | F6: 95000 | G6: 13.7 | H6: 24 | I6: 123000 | J6: 5 | K6: 24 | L6: 104500 | M6: 20 | N6: 24 | O6: 101000 | P6: 4.4 | Q6: 24 | R6: 98000 | S6: 15.2 | T6: 24 | U6: 77000 | V6: 3.6 | W6: 24 | X6: 1-Stage | Y6: Belt Drive | Z6: 2013-04-10
A7: ClimateMaster | B7: TC | C7: TCV120AF | D7: 120 | E7: Full | F7: 119000 | G7: 13.3 | H7: 30 | I7: 160000 | J7: 4.6 | K7: 30 | L7: 134000 | M7: 19.3 | N7: 30 | O7: 132500 | P7: 4 | Q7: 30 | R7: 122500 | S7: 14.5 | T7: 30 | U7: 103000 | V7: 3.3 | W7: 30 | X7: 1-Stage | Y7: Belt Drive | Z7: 2013-04-10
A8: ClimateMaster | B8: TC | C8: TCV168AF | D8: 168 | E8: Full | F8: 157000 | G8: 14.2 | H8: 42 | I8: 207000 | J8: 4.9 | K8: 42 | L8: 172000 | M8: 19.6 | N8: 42 | O8: 168000 | P8: 4.4 | Q8: 42 | R8: 162000 | S8: 15.2 | T8: 42 | U8: 125000 | V8: 3.5 | W8: 42 | X8: 1-Stage | Y8: Belt Drive | Z8: 2013-04-10
A9: ClimateMaster | B9: TC | C9: TCV192AF | D9: 192 | E9: Full | F9: 191500 | G9: 14.3 | H9: 48 | I9: 243000 | J9: 5.1 | K9: 48 | L9: 211000 | M9: 19.5 | N9: 48 | O9: 196500 | P9: 4.5 | Q9: 48 | R9: 199000 | S9: 15.8 | T9: 48 | U9: 149000 | V9: 3.7 | W9: 48 | X9: 1-Stage | Y9: Belt Drive | Z9: 2013-04-10
A10: ClimateMaster | B10: TC | C10: TCV240AF | D10: 240 | E10: Full | F10: 233000 | G10: 13.9 | H10: 60 | I10: 318000 | J10: 5 | K10: 60 | L10: 263500 | M10: 19.2 | N10: 60 | O10: 260500 | P10: 4.4 | Q10: 60 | R10: 240000 | S10: 14.8 | T10: 60 | U10: 198500 | V10: 3.5 | W10: 60 | X10: 1-Stage | Y10: Belt Drive | Z10: 2013-04-10
A11: ClimateMaster | B11: TC | C11: TCV300AF | D11: 300 | E11: Full | F11: 300000 | G11: 13.5 | H11: 75 | I11: 395000 | J11: 4.8 | K11: 75 | L11: 341500 | M11: 18.7 | N11: 75 | O11: 321500 | P11: 4.3 | Q11: 75 | R11: 310000 | S11: 14.5 | T11: 75 | U11: 240000 | V11: 3.4 | W11: 75 | X11: 1-Stage | Y11: Belt Drive | Z11: 2013-04-10
A12: ClimateMaster | B12: TC | C12: TCH/V006AE | D12: 006 | E12: Full | F12: 5800 | G12: 13.2 | H12: 2 | I12: 7500 | J12: 4.7 | K12: 2 | L12: 6900 | M12: 21.1 | N12: 2 | O12: 6200 | P12: 4 | Q12: 2 | R12: 6200 | S12: 15.4 | T12: 2 | U12: 4900 | V12: 3.4 | W12: 2 | X12: 1-Stage | Y12: PSC | Z12: 2013-04-10
A13: ClimateMaster | B13: TC | C13: TCH/V009AE | D13: 009 | E13: Full | F13: 8800 | G13: 13.4 | H13: 2.6 | I13: 11600 | J13: 4.2 | K13: 2.6 | L13: 10100 | M13: 21 | N13: 2.6 | O13: 9800 | P13: 3.9 | Q13: 2.6 | R13: 9300 | S13: 15.7 | T13: 2.6 | U13: 7900 | V13: 3.4 | W13: 2.6 | X13: 1-Stage | Y13: PSC | Z13: 2013-04-10
A14: ClimateMaster | B14: TC | C14: TCH/V012AE | D14: 012 | E14: Full | F14: 11700 | G14: 13.5 | H14: 3.5 | I14: 15200 | J14: 4.3 | K14: 3.5 | L14: 13700 | M14: 20.8 | N14: 3.5 | O14: 12500 | P14: 3.8 | Q14: 3.5 | R14: 12000 | S14: 14.9 | T14: 3.5 | U14: 9900 | V14: 3.2 | W14: 3.5 | X14: 1-Stage | Y14: PSC | Z14: 2013-04-10
A15: ClimateMaster | B15: TC | C15: TCH/V015AE | D15: 015 | E15: Full | F15: 14500 | G15: 15.4 | H15: 4 | I15: 17300 | J15: 5 | K15: 4 | L15: 16800 | M15: 24.5 | N15: 4 | O15: 14400 | P15: 4.4 | Q15: 4 | R15: 15000 | S15: 17.2 | T15: 4 | U15: 11100 | V15: 3.6 | W15: 4 | X15: 1-Stage | Y15: PSC | Z15: 2013-04-10
A16: ClimateMaster | B16: TC | C16: TCH/V018AE | D16: 018 | E16: Full | F16: 17300 | G16: 14.3 | H16: 4.5 | I16: 21500 | J16: 5 | K16: 4.5 | L16: 20600 | M16: 24.2 | N16: 4.5 | O16: 17200 | P16: 4.4 | Q16: 4.5 | R16: 18400 | S16: 16.3 | T16: 4.5 | U16: 13900 | V16: 3.4 | W16: 4.5 | X16: 1-Stage | Y16: PSC | Z16: 2013-04-10
A17: ClimateMaster | B17: TC | C17: TCH/V024AF | D17: 024 | E17: Full | F17: 23700 | G17: 13.4 | H17: 6.5 | I17: 28500 | J17: 4.7 | K17: 6.5 | L17: 26700 | M17: 20.9 | N17: 6.5 | O17: 24000 | P17: 4.1 | Q17: 6.5 | R17: 24900 | S17: 15.4 | T17: 6.5 | U17: 18500 | V17: 3.3 | W17: 6.5 | X17: 1-Stage | Y17: PSC | Z17: 2013-04-10
A18: ClimateMaster | B18: TC | C18: TCH/V030AF | D18: 030 | E18: Full | F18: 28100 | G18: 13.4 | H18: 8 | I18: 35100 | J18: 4.6 | K18: 8 | L18: 31700 | M18: 20.1 | N18: 8 | O18: 29600 | P18: 4.1 | Q18: 8 | R18: 28900 | S18: 15.1 | T18: 8 | U18: 23400 | V18: 3.4 | W18: 8 | X18: 1-Stage | Y18: PSC | Z18: 2013-04-10
A19: ClimateMaster | B19: TC | C19: TCH/V036AF | D19: 036 | E19: Full | F19: 34500 | G19: 13.5 | H19: 9.5 | I19: 45200 | J19: 4.4 | K19: 9.5 | L19: 38700 | M19: 20.7 | N19: 9.5 | O19: 37500 | P19: 4 | Q19: 9.5 | R19: 35300 | S19: 14.9 | T19: 9.5 | U19: 29600 | V19: 3.3 | W19: 9.5 | X19: 1-Stage | Y19: PSC | Z19: 2013-04-10
A20: ClimateMaster | B20: TC | C20: TCH/V042AF | D20: 042 | E20: Full | F20: 40100 | G20: 13.1 | H20: 11.25 | I20: 52700 | J20: 4.3 | K20: 11.25 | L20: 45900 | M20: 19.6 | N20: 11.25 | O20: 44000 | P20: 3.8 | Q20: 11.25 | R20: 40500 | S20: 14.4 | T20: 11.25 | U20: 34300 | V20: 3.3 | W20: 11.25 | X20: 1-Stage | Y20: PSC | Z20: 2013-04-10
A21: ClimateMaster | B21: TC | C21: TCH/V048AF | D21: 048 | E21: Full | F21: 47700 | G21: 13.3 | H21: 13 | I21: 55900 | J21: 4.7 | K21: 13 | L21: 54300 | M21: 20.5 | N21: 13 | O21: 46500 | P21: 4.1 | Q21: 13 | R21: 49000 | S21: 14.7 | T21: 13 | U21: 36400 | V21: 3.4 | W21: 13 | X21: 1-Stage | Y21: PSC | Z21: 2013-04-10
A22: ClimateMaster | B22: TC | C22: TCH/V060AF | D22: 060 | E22: Full | F22: 59400 | G22: 13.4 | H22: 16 | I22: 72000 | J22: 4.3 | K22: 8 | L22: 66600 | M22: 19.9 | N22: 16 | O22: 60000 | P22: 3.9 | Q22: 8 | R22: 60100 | S22: 14.8 | T22: 16 | U22: 47500 | V22: 3.3 | W22: 8 | X22: 1-Stage | Y22: PSC | Z22: 2013-04-10
A23: ClimateMaster | B23: TC | C23: TCV041AF | D23: 041 | E23: Full | F23: 36500 | G23: 13.1 | H23: 10 | I23: 45700 | J23: 4.2 | K23: 10 | L23: 41400 | M23: 19.7 | N23: 10 | O23: 38000 | P23: 3.7 | Q23: 10 | R23: 38000 | S23: 14.8 | T23: 10 | U23: 30100 | V23: 3.1 | W23: 10 | X23: 1-Stage | Y23: PSC | Z23: 2013-04-10
A24: ClimateMaster | B24: TE 2-stage | C24: TEV/H/D026 | D24: 026 | E24: Full | F24: 25300 | G24: 17.7 | H24: 8 | I24: 30400 | J24: 5.7 | K24: 8 | L24: 28700 | M24: 27.3 | N24: 8 | O24: 24800 | P24: 5 | Q24: 8 | R24: 26300 | S24: 19.9 | T24: 8 | U24: 18900 | V24: 4 | W24: 8 | X24: 2-Stage | Y24: ECM - CA | Z24: 2013-04-10
A25: ClimateMaster | B25: TE 2-stage | C25: TEV/H/D038 | D25: 038 | E25: Full | F25: 38000 | G25: 17.8 | H25: 9 | I25: 45100 | J25: 5.8 | K25: 9 | L25: 43300 | M25: 27.1 | N25: 9 | O25: 37200 | P25: 5.2 | Q25: 9 | R25: 39900 | S25: 20.3 | T25: 9 | U25: 29200 | V25: 4.4 | W25: 9 | X25: 2-Stage | Y25: ECM - CA | Z25: 2013-04-10
A26: ClimateMaster | B26: TE 2-stage | C26: TEV/H/D049 | D26: 049 | E26: Full | F26: 48700 | G26: 17.3 | H26: 12 | I26: 59700 | J26: 5.5 | K26: 12 | L26: 55800 | M26: 26.1 | N26: 12 | O26: 48400 | P26: 4.8 | Q26: 12 | R26: 50800 | S26: 19.3 | T26: 12 | U26: 37200 | V26: 4 | W26: 12 | X26: 2-Stage | Y26: ECM - CA | Z26: 2013-04-10
A27: ClimateMaster | B27: TE 2-stage | C27: TEV/H/D064 | D27: 064 | E27: Full | F27: 61500 | G27: 16.2 | H27: 15 | I27: 77400 | J27: 5.4 | K27: 15 | L27: 71500 | M27: 24.4 | N27: 15 | O27: 63200 | P27: 4.8 | Q27: 15 | R27: 66200 | S27: 18.8 | T27: 15 | U27: 48700 | V27: 3.9 | W27: 15 | X27: 2-Stage | Y27: ECM - CA | Z27: 2013-04-10
A28: ClimateMaster | B28: TE 2-stage | C28: TEV/H/D072 | D28: 072 | E28: Full | F28: 68300 | G28: 15.1 | H28: 17 | I28: 85300 | J28: 4.8 | K28: 17 | L28: 77700 | M28: 22.5 | N28: 17 | O28: 71400 | P28: 4.4 | Q28: 17 | R28: 71700 | S28: 16.9 | T28: 17 | U28: 55800 | V28: 3.7 | W28: 17 | X28: 2-Stage | Y28: ECM - CA | Z28: 2013-04-10
A29: ClimateMaster | B29: THW | C29: THW010 | D29: 010 | E29: Full | F29: 0 | G29: 0 | H29: 0 | I29: 48200 | J29: 4.9 | K29: 10 | L29: 0 | M29: 0 | N29: 0 | O29: 38800 | P29: 4 | Q29: 10 | R29: 0 | S29: 0 | T29: 0 | U29: 30800 | V29: 3.2 | W29: 10 | X29: 1-Stage | Y29: NA | Z29: 2013-04-10
A30: ClimateMaster | B30: TL | C30: TLV084*F | D30: 084 | E30: Full | F30: 82000 | G30: 15.2 | H30: 21 | I30: 101000 | J30: 4.8 | K30: 21 | L30: 87500 | M30: 21 | N30: 21 | O30: 83500 | P30: 4.3 | Q30: 21 | R30: 83000 | S30: 16.5 | T30: 21 | U30: 65500 | V30: 3.6 | W30: 21 | X30: 1-Stage | Y30: Belt Drive | Z30: 2013-04-10
A31: ClimateMaster | B31: TL | C31: TLV096*F | D31: 096 | E31: Full | F31: 94000 | G31: 15 | H31: 24 | I31: 118000 | J31: 4.7 | K31: 24 | L31: 102500 | M31: 20.5 | N31: 24 | O31: 96500 | P31: 4.2 | Q31: 24 | R31: 97500 | S31: 16.5 | T31: 24 | U31: 76500 | V31: 3.6 | W31: 24 | X31: 1-Stage | Y31: Belt Drive | Z31: 2013-04-10
A32: ClimateMaster | B32: TL | C32: TLV120*F | D32: 120 | E32: Full | F32: 118000 | G32: 15 | H32: 30 | I32: 144000 | J32: 5 | K32: 30 | L32: 133000 | M32: 21 | N32: 30 | O32: 118000 | P32: 4.2 | Q32: 30 | R32: 120000 | S32: 16.5 | T32: 30 | U32: 93000 | V32: 3.7 | W32: 30 | X32: 1-Stage | Y32: Belt Drive | Z32: 2013-04-10
A33: ClimateMaster | B33: TL | C33: TLV150*F | D33: 150 | E33: Full | F33: 134000 | G33: 13.8 | H33: 38 | I33: 172000 | J33: 4.6 | K33: 38 | L33: 150500 | M33: 20 | N33: 38 | O33: 140000 | P33: 4 | Q33: 38 | R33: 139000 | S33: 15.5 | T33: 38 | U33: 109000 | V33: 3.3 | W33: 38 | X33: 1-Stage | Y33: Belt Drive | Z33: 2013-04-10
A34: ClimateMaster | B34: TL | C34: TLV168*F | D34: 168 | E34: Full | F34: 175000 | G34: 15 | H34: 42 | I34: 206700 | J34: 5 | K34: 42 | L34: 187000 | M34: 20.9 | N34: 42 | O34: 168000 | P34: 4.5 | Q34: 42 | R34: 177500 | S34: 16.5 | T34: 42 | U34: 129500 | V34: 3.7 | W34: 42 | X34: 1-Stage | Y34: Belt Drive | Z34: 2013-04-10
A35: ClimateMaster | B35: TL | C35: TLV192*F | D35: 192 | E35: Full | F35: 241000 | G35: 13.6 | H35: 48 | I35: 287000 | J35: 4.8 | K35: 48 | L35: 276000 | M35: 19.3 | N35: 48 | O35: 230000 | P35: 4.15 | Q35: 48 | R35: 249500 | S35: 15 | T35: 48 | U35: 182400 | V35: 3.4 | W35: 48 | X35: 1-Stage | Y35: Belt Drive | Z35: 2013-04-10
A36: ClimateMaster | B36: TL | C36: TLV240*F | D36: 240 | E36: Full | F36: 238500 | G36: 15.3 | H36: 60 | I36: 291000 | J36: 5.1 | K36: 60 | L36: 269000 | M36: 21.4 | N36: 60 | O36: 238500 | P36: 4.3 | Q36: 60 | R36: 242500 | S36: 16.8 | T36: 60 | U36: 188000 | V36: 3.8 | W36: 60 | X36: 1-Stage | Y36: Belt Drive | Z36: 2013-04-10
A37: ClimateMaster | B37: TL | C37: TLV300*F | D37: 300 | E37: Full | F37: 300000 | G37: 14 | H37: 76 | I37: 372000 | J37: 4.7 | K37: 76 | L37: 340000 | M37: 20 | N37: 76 | O37: 310000 | P37: 4.2 | Q37: 76 | R37: 312000 | S37: 15.8 | T37: 76 | U37: 244000 | V37: 3.6 | W37: 76 | X37: 1-Stage | Y37: Belt Drive | Z37: 2013-04-10
A38: ClimateMaster | B38: TMW | C38: TMW036AF | D38: 036 | E38: Full | F38: 32300 | G38: 14.6 | H38: 9 | I38: 43100 | J38: 4.9 | K38: 9 | L38: 36200 | M38: 23.1 | N38: 9 | O38: 35300 | P38: 4 | Q38: 9 | R38: 33300 | S38: 16.4 | T38: 9 | U38: 27400 | V38: 3.1 | W38: 9 | X38: 1-Stage | Y38: NA | Z38: 2013-04-10
A39: ClimateMaster | B39: TMW | C39: TMW060BH | D39: 060 | E39: Full | F39: 52800 | G39: 14.3 | H39: 15 | I39: 72700 | J39: 4.7 | K39: 15 | L39: 56600 | M39: 20.3 | N39: 15 | O39: 60300 | P39: 4 | Q39: 15 | R39: 55600 | S39: 16.2 | T39: 15 | U39: 48500 | V39: 3.1 | W39: 15 | X39: 1-Stage | Y39: NA | Z39: 2013-04-10
A40: ClimateMaster | B40: TMW | C40: TMW120BH | D40: 120 | E40: Full | F40: 105600 | G40: 14.1 | H40: 30 | I40: 145400 | J40: 4.6 | K40: 30 | L40: 113200 | M40: 20.1 | N40: 30 | O40: 120600 | P40: 3.9 | Q40: 30 | R40: 111200 | S40: 16.1 | T40: 30 | U40: 97000 | V40: 3.1 | W40: 30 | X40: 1-Stage | Y40: NA | Z40: 2013-04-10
A41: ClimateMaster | B41: TMW | C41: TMW170BH | D41: 170 | E41: Full | F41: 123500 | G41: 13.3 | H41: 35 | I41: 164600 | J41: 4.3 | K41: 35 | L41: 138400 | M41: 19.3 | N41: 35 | O41: 136200 | P41: 3.7 | Q41: 35 | R41: 130300 | S41: 15.3 | T41: 35 | U41: 108600 | V41: 2.9 | W41: 35 | X41: 1-Stage | Y41: NA | Z41: 2013-04-10
A42: ClimateMaster | B42: TMW | C42: TMW340BH | D42: 340 | E42: Full | F42: 254000 | G42: 13.6 | H42: 70 | I42: 336000 | J42: 4.4 | K42: 70 | L42: 282000 | M42: 19.6 | N42: 70 | O42: 277000 | P42: 3.7 | Q42: 70 | R42: 267000 | S42: 15.6 | T42: 70 | U42: 220000 | V42: 3 | W42: 70 | X42: 1-Stage | Y42: NA | Z42: 2013-04-10
A43: ClimateMaster | B43: TMW | C43: TMW360BH | D43: 360 | E43: Full | F43: 380300 | G43: 16 | H43: 90 | I43: 531000 | J43: 5.1 | K43: 90 | L43: 438000 | M43: 24.2 | N43: 90 | O43: 416000 | P43: 4.2 | Q43: 90 | R43: 399600 | S43: 18.4 | T43: 90 | U43: 316000 | V43: 3.4 | W43: 90 | X43: 1-Stage | Y43: NA | Z43: 2013-04-10
A44: ClimateMaster | B44: TMW | C44: TMW600BH | D44: 600 | E44: Full | F44: 619800 | G44: 16 | H44: 150 | I44: 873000 | J44: 5.2 | K44: 150 | L44: 707400 | M44: 23.2 | N44: 150 | O44: 680000 | P44: 4.3 | Q44: 150 | R44: 649600 | S44: 18.2 | T44: 150 | U44: 517000 | V44: 3.4 | W44: 150 | X44: 1-Stage | Y44: NA | Z44: 2013-04-10
A45: ClimateMaster | B45: TMW | C45: TMW840BH | D45: 840 | E45: Full | F45: 814800 | G45: 16.2 | H45: 210 | I45: 1141000 | J45: 5.3 | K45: 210 | L45: 925700 | M45: 23.3 | N45: 210 | O45: 894000 | P45: 4.4 | Q45: 210 | R45: 852600 | S45: 18.4 | T45: 210 | U45: 677000 | V45: 3.4 | W45: 210 | X45: 1-Stage | Y45: NA | Z45: 2013-04-10
A46: ClimateMaster | B46: TR | C46: TRH/V006AE | D46: 006 | E46: Full | F46: 5800 | G46: 13.2 | H46: 2 | I46: 7500 | J46: 4.7 | K46: 2 | L46: 6900 | M46: 21 | N46: 2 | O46: 6200 | P46: 4 | Q46: 2 | R46: 6200 | S46: 15.4 | T46: 2 | U46: 4900 | V46: 3.4 | W46: 2 | X46: 1-Stage | Y46: PSC | Z46: 2013-04-10
A47: ClimateMaster | B47: TR | C47: TRH/V009AE | D47: 009 | E47: Full | F47: 8800 | G47: 13.4 | H47: 2.6 | I47: 11600 | J47: 4.2 | K47: 2.6 | L47: 10100 | M47: 21 | N47: 2.6 | O47: 9800 | P47: 3.9 | Q47: 2.6 | R47: 9300 | S47: 15.7 | T47: 2.6 | U47: 7900 | V47: 3.4 | W47: 2.6 | X47: 1-Stage | Y47: PSC | Z47: 2013-04-10
A48: ClimateMaster | B48: TR | C48: TRH/V012AE | D48: 012 | E48: Full | F48: 11700 | G48: 13.5 | H48: 3.5 | I48: 15200 | J48: 4.3 | K48: 3.5 | L48: 13700 | M48: 20.8 | N48: 3.5 | O48: 12500 | P48: 3.8 | Q48: 3.5 | R48: 12000 | S48: 14.9 | T48: 3.5 | U48: 9900 | V48: 3.2 | W48: 3.5 | X48: 1-Stage | Y48: PSC | Z48: 2013-04-10
A49: ClimateMaster | B49: TR | C49: TRH/V015AE | D49: 015 | E49: Full | F49: 14500 | G49: 15.4 | H49: 4 | I49: 17300 | J49: 5 | K49: 4 | L49: 16800 | M49: 24.5 | N49: 4 | O49: 14400 | P49: 4.4 | Q49: 4 | R49: 15000 | S49: 17.2 | T49: 4 | U49: 11100 | V49: 3.6 | W49: 4 | X49: 1-Stage | Y49: PSC | Z49: 2013-04-10
A50: ClimateMaster | B50: TR | C50: TRH/V018AE | D50: 018 | E50: Full | F50: 17300 | G50: 14.3 | H50: 4.5 | I50: 21500 | J50: 5 | K50: 4.5 | L50: 20600 | M50: 24.2 | N50: 4.5 | O50: 17200 | P50: 4.4 | Q50: 4.5 | R50: 18400 | S50: 16.3 | T50: 4.5 | U50: 13900 | V50: 3.4 | W50: 4.5 | X50: 1-Stage | Y50: PSC | Z50: 2013-04-10
A51: ClimateMaster | B51: TR | C51: TRH/V024AE | D51: 024 | E51: Full | F51: 23700 | G51: 13.4 | H51: 6.5 | I51: 28500 | J51: 4.7 | K51: 6.5 | L51: 26700 | M51: 20.9 | N51: 6.5 | O51: 24000 | P51: 4.1 | Q51: 6.5 | R51: 24900 | S51: 15.4 | T51: 6.5 | U51: 18500 | V51: 3.3 | W51: 6.5 | X51: 1-Stage | Y51: PSC | Z51: 2013-04-10
A52: ClimateMaster | B52: TR | C52: TRH/V030AF | D52: 030 | E52: Full | F52: 28100 | G52: 13.4 | H52: 8 | I52: 35100 | J52: 4.6 | K52: 8 | L52: 31700 | M52: 20.1 | N52: 8 | O52: 29600 | P52: 4.1 | Q52: 8 | R52: 28900 | S52: 15.1 | T52: 8 | U52: 23400 | V52: 3.4 | W52: 8 | X52: 1-Stage | Y52: PSC | Z52: 2013-04-10
A53: ClimateMaster | B53: TR | C53: TRH/V036AF | D53: 036 | E53: Full | F53: 34500 | G53: 13.5 | H53: 9.5 | I53: 45200 | J53: 4.4 | K53: 9.5 | L53: 38700 | M53: 20.7 | N53: 9.5 | O53: 37500 | P53: 4 | Q53: 9.5 | R53: 35300 | S53: 14.9 | T53: 9.5 | U53: 29600 | V53: 3.3 | W53: 9.5 | X53: 1-Stage | Y53: PSC | Z53: 2013-04-10
A54: ClimateMaster | B54: TR | C54: TRH/V042AF | D54: 042 | E54: Full | F54: 40100 | G54: 13.1 | H54: 11.25 | I54: 52700 | J54: 4.3 | K54: 11.25 | L54: 45900 | M54: 19.6 | N54: 11.25 | O54: 44000 | P54: 3.8 | Q54: 11.25 | R54: 40500 | S54: 14.4 | T54: 11.25 | U54: 34300 | V54: 3.3 | W54: 11.25 | X54: 1-Stage | Y54: PSC | Z54: 2013-04-10
A55: ClimateMaster | B55: TR | C55: TRH/V048AF | D55: 048 | E55: Full | F55: 47700 | G55: 13.3 | H55: 13 | I55: 55900 | J55: 4.7 | K55: 13 | L55: 54300 | M55: 20.5 | N55: 13 | O55: 46500 | P55: 4.1 | Q55: 13 | R55: 49000 | S55: 14.7 | T55: 13 | U55: 36400 | V55: 3.4 | W55: 13 | X55: 1-Stage | Y55: PSC | Z55: 2013-04-10
A56: ClimateMaster | B56: TR | C56: TRH/V060AF | D56: 060 | E56: Full | F56: 59400 | G56: 13.4 | H56: 16 | I56: 72000 | J56: 4.3 | K56: 8 | L56: 66600 | M56: 19.9 | N56: 16 | O56: 60000 | P56: 3.9 | Q56: 8 | R56: 60100 | S56: 14.8 | T56: 16 | U56: 47500 | V56: 3.3 | W56: 8 | X56: 1-Stage | Y56: PSC | Z56: 2013-04-10
A57: ClimateMaster | B57: TRC | C57: TRC09G | D57: 009 | E57: Full | F57: 8600 | G57: 13.3 | H57: 2.8 | I57: 11400 | J57: 4.6 | K57: 2.8 | L57: 9200 | M57: 18.6 | N57: 2.8 | O57: 9500 | P57: 4 | Q57: 2.8 | R57: 8800 | S57: 14.9 | T57: 2.8 | U57: 7300 | V57: 3.3 | W57: 2.8 | X57: 1-Stage | Y57: PSC | Z57: 2013-04-10
A58: ClimateMaster | B58: TRC | C58: TRC12G | D58: 012 | E58: Full | F58: 11300 | G58: 13.3 | H58: 3.5 | I58: 14900 | J58: 4.9 | K58: 3.5 | L58: 12500 | M58: 18.7 | N58: 3.5 | O58: 12100 | P58: 4.1 | Q58: 3.5 | R58: 11800 | S58: 15.1 | T58: 3.5 | U58: 9300 | V58: 3.3 | W58: 3.5 | X58: 1-Stage | Y58: PSC | Z58: 2013-04-10
A59: ClimateMaster | B59: TRC | C59: TRC15G | D59: 015 | E59: Full | F59: 14100 | G59: 13.5 | H59: 4.2 | I59: 18200 | J59: 5.1 | K59: 4.2 | L59: 16600 | M59: 21.3 | N59: 4.2 | O59: 14800 | P59: 4.3 | Q59: 4.2 | R59: 15100 | S59: 15.8 | T59: 4.2 | U59: 11400 | V59: 3.5 | W59: 4.2 | X59: 1-Stage | Y59: PSC | Z59: 2013-04-10
A60: ClimateMaster | B60: TRC | C60: TRC18G | D60: 018 | E60: Full | F60: 15600 | G60: 13 | H60: 5 | I60: 20100 | J60: 4.5 | K60: 5 | L60: 17600 | M60: 19.5 | N60: 5 | O60: 16500 | P60: 4 | Q60: 5 | R60: 16500 | S60: 15 | T60: 5 | U60: 13200 | V60: 3.4 | W60: 5 | X60: 1-Stage | Y60: PSC | Z60: 2013-04-10
A61: ClimateMaster | B61: TRE | C61: TRE036*F | D61: 036 | E61: Full | F61: 35000 | G61: 14.2 | H61: 9 | I61: 42700 | J61: 5 | K61: 9 | L61: 39800 | M61: 21.7 | N61: 9 | O61: 35400 | P61: 4.4 | Q61: 9 | R61: 35000 | S61: 16.5 | T61: 9 | U61: 28100 | V61: 3.6 | W61: 9 | X61: 1-Stage | Y61: Belt Drive | Z61: 2013-04-10
A62: ClimateMaster | B62: TRE | C62: TRE048*F | D62: 048 | E62: Full | F62: 48500 | G62: 14.4 | H62: 12 | I62: 59700 | J62: 4.7 | K62: 12 | L62: 54800 | M62: 21.1 | N62: 12 | O62: 48500 | P62: 4.1 | Q62: 12 | R62: 50000 | S62: 16 | T62: 12 | U62: 37800 | V62: 3.4 | W62: 12 | X62: 1-Stage | Y62: Belt Drive | Z62: 2013-04-10
A63: ClimateMaster | B63: TRE | C63: TRE060*F | D63: 060 | E63: Full | F63: 61100 | G63: 15.7 | H63: 16 | I63: 72800 | J63: 5.1 | K63: 16 | L63: 69800 | M63: 23.5 | N63: 16 | O63: 60100 | P63: 4.5 | Q63: 16 | R63: 62100 | S63: 17.6 | T63: 16 | U63: 45600 | V63: 3.6 | W63: 16 | X63: 1-Stage | Y63: Belt Drive | Z63: 2013-04-10
A64: ClimateMaster | B64: TRE | C64: TRE072*F | D64: 072 | E64: Full | F64: 71000 | G64: 15 | H64: 18 | I64: 88500 | J64: 5 | K64: 18 | L64: 79000 | M64: 23 | N64: 18 | O64: 72000 | P64: 4.4 | Q64: 18 | R64: 71000 | S64: 16.2 | T64: 18 | U64: 55000 | V64: 3.6 | W64: 18 | X64: 1-Stage | Y64: Belt Drive | Z64: 2013-04-10
A65: ClimateMaster | B65: TRE | C65: TRE096*F | D65: 096 | E65: Full | F65: 97000 | G65: 14 | H65: 24 | I65: 110600 | J65: 4.4 | K65: 24 | L65: 108600 | M65: 20.6 | N65: 24 | O65: 91700 | P65: 3.9 | Q65: 24 | R65: 101000 | S65: 15.6 | T65: 24 | U65: 74000 | V65: 3.2 | W65: 24 | X65: 1-Stage | Y65: Belt Drive | Z65: 2013-04-10
A66: ClimateMaster | B66: TRE | C66: TRE120*F | D66: 120 | E66: Full | F66: 122500 | G66: 13.9 | H66: 30 | I66: 149400 | J66: 4.4 | K66: 30 | L66: 135000 | M66: 20.6 | N66: 30 | O66: 122700 | P66: 3.9 | Q66: 30 | R66: 129000 | S66: 15.6 | T66: 30 | U66: 98000 | V66: 3.2 | W66: 30 | X66: 1-Stage | Y66: Belt Drive | Z66: 2013-04-10
A67: ClimateMaster | B67: TRE | C67: TRE144*F | D67: 144 | E67: Full | F67: 141000 | G67: 13.8 | H67: 36 | I67: 180000 | J67: 4.5 | K67: 36 | L67: 158000 | M67: 20 | N67: 36 | O67: 145000 | P67: 4 | Q67: 36 | R67: 144000 | S67: 15.2 | T67: 36 | U67: 113000 | V67: 3.3 | W67: 36 | X67: 1-Stage | Y67: Belt Drive | Z67: 2013-04-10
A68: ClimateMaster | B68: TRE | C68: TRE168*F | D68: 168 | E68: Full | F68: 175000 | G68: 15 | H68: 42 | I68: 206700 | J68: 5 | K68: 42 | L68: 187000 | M68: 20.9 | N68: 42 | O68: 168000 | P68: 4.5 | Q68: 42 | R68: 177500 | S68: 16.5 | T68: 42 | U68: 129500 | V68: 3.7 | W68: 42 | X68: 1-Stage | Y68: Belt Drive | Z68: 2013-04-10
A69: ClimateMaster | B69: TRE | C69: TRE240*F | D69: 240 | E69: Full | F69: 241000 | G69: 13.6 | H69: 60 | I69: 287000 | J69: 4.8 | K69: 60 | L69: 276000 | M69: 19.3 | N69: 60 | O69: 230000 | P69: 4.15 | Q69: 60 | R69: 249500 | S69: 15 | T69: 60 | U69: 182400 | V69: 3.4 | W69: 60 | X69: 1-Stage | Y69: Belt Drive | Z69: 2013-04-10
A70: ClimateMaster | B70: TRM | C70: TRM09G | D70: 009 | E70: Full | F70: 8800 | G70: 13 | H70: 3 | I70: 12500 | J70: 4.6 | K70: 3 | L70: 10100 | M70: 19.5 | N70: 3 | O70: 9800 | P70: 3.8 | Q70: 3 | R70: 9300 | S70: 14.7 | T70: 3 | U70: 7200 | V70: 3.1 | W70: 3 | X70: 1-Stage | Y70: PSC | Z70: 2013-04-10
A71: ClimateMaster | B71: TRM | C71: TRM12G | D71: 012 | E71: Full | F71: 11600 | G71: 13 | H71: 3.9 | I71: 15800 | J71: 4.5 | K71: 3.9 | L71: 13700 | M71: 20 | N71: 3.9 | O71: 12700 | P71: 3.8 | Q71: 3.9 | R71: 12200 | S71: 15 | T71: 3.9 | U71: 9500 | V71: 3.1 | W71: 3.9 | X71: 1-Stage | Y71: PSC | Z71: 2013-04-10
A72: ClimateMaster | B72: TRM | C72: TRM15G | D72: 015 | E72: Full | F72: 13800 | G72: 13 | H72: 5.4 | I72: 19600 | J72: 4.7 | K72: 5.4 | L72: 16500 | M72: 20 | N72: 5.4 | O72: 15500 | P72: 3.9 | Q72: 5.4 | R72: 15200 | S72: 14.6 | T72: 5.4 | U72: 11500 | V72: 3.1 | W72: 5.4 | X72: 1-Stage | Y72: PSC | Z72: 2013-04-10
A73: ClimateMaster | B73: TRM | C73: TRM18G | D73: 018 | E73: Full | F73: 16700 | G73: 13 | H73: 6.8 | I73: 22600 | J73: 4.7 | K73: 6.8 | L73: 19600 | M73: 19.5 | N73: 6.8 | O73: 18200 | P73: 3.8 | Q73: 6.8 | R73: 17600 | S73: 14.6 | T73: 6.8 | U73: 14000 | V73: 3.1 | W73: 6.8 | X73: 1-Stage | Y73: PSC | Z73: 2013-04-10
A74: ClimateMaster | B74: TRM | C74: TRM24G | D74: 024 | E74: Full | F74: 22100 | G74: 13 | H74: 8.2 | I74: 29400 | J74: 4.5 | K74: 8.2 | L74: 26400 | M74: 20 | N74: 8.2 | O74: 23100 | P74: 3.8 | Q74: 8.2 | R74: 23600 | S74: 14.8 | T74: 8.2 | U74: 18000 | V74: 3.1 | W74: 8.2 | X74: 1-Stage | Y74: PSC | Z74: 2013-04-10
A75: ClimateMaster | B75: TRM | C75: TRM30G | D75: 030 | E75: Full | F75: 27100 | G75: 13 | H75: 9.8 | I75: 33100 | J75: 4.6 | K75: 9.8 | L75: 30600 | M75: 18.6 | N75: 9.8 | O75: 27700 | P75: 4 | Q75: 9.8 | R75: 29200 | S75: 16 | T75: 9.8 | U75: 20600 | V75: 3.1 | W75: 9.8 | X75: 1-Stage | Y75: PSC | Z75: 2013-04-10
A76: ClimateMaster | B76: TRM | C76: TRM36G | D76: 036 | E76: Full | F76: 32000 | G76: 12.5 | H76: 10 | I76: 39500 | J76: 4.6 | K76: 10 | L76: 36700 | M76: 18.8 | N76: 10 | O76: 32000 | P76: 3.8 | Q76: 10 | R76: 33000 | S76: 14.3 | T76: 10 | U76: 25000 | V76: 3.1 | W76: 10 | X76: 1-Stage | Y76: PSC | Z76: 2013-04-10
A77: ClimateMaster | B77: TS | C77: TSV/TSH/TSD018BGK | D77: 018 | E77: Full | F77: 19200 | G77: 16.5 | H77: 5.5 | I77: 23300 | J77: 5.9 | K77: 5.5 | L77: 22100 | M77: 26.3 | N77: 5.5 | O77: 18900 | P77: 4.9 | Q77: 5.5 | R77: 20200 | S77: 19.4 | T77: 5.5 | U77: 14500 | V77: 3.9 | W77: 5.5 | X77: 1-Stage | Y77: ECM - CA | Z77: 2013-04-10
A78: ClimateMaster | B78: TS | C78: TSV/TSH/TSD024CGK | D78: 024 | E78: Full | F78: 23900 | G78: 17.9 | H78: 8 | I78: 30400 | J78: 6.1 | K78: 8 | L78: 26900 | M78: 28.5 | N78: 8 | O78: 23800 | P78: 5.2 | Q78: 8 | R78: 25500 | S78: 20.9 | T78: 8 | U78: 19100 | V78: 4.2 | W78: 8 | X78: 1-Stage | Y78: ECM - CA | Z78: 2013-04-10
A79: ClimateMaster | B79: TS | C79: TSV/TSH/TSD030CGK | D79: 030 | E79: Full | F79: 28000 | G79: 17.3 | H79: 8 | I79: 35100 | J79: 5.8 | K79: 8 | L79: 30800 | M79: 26.7 | N79: 8 | O79: 28000 | P79: 4.9 | Q79: 8 | R79: 29200 | S79: 19.4 | T79: 8 | U79: 22000 | V79: 4.1 | W79: 8 | X79: 1-Stage | Y79: ECM - CA | Z79: 2013-04-10
A80: ClimateMaster | B80: TS | C80: TSV/TSH/TSD036CGK | D80: 036 | E80: Full | F80: 33500 | G80: 18.1 | H80: 9 | I80: 39900 | J80: 5.9 | K80: 9 | L80: 35400 | M80: 24.9 | N80: 9 | O80: 32600 | P80: 4.9 | Q80: 9 | R80: 34600 | S80: 20.4 | T80: 9 | U80: 25600 | V80: 4.3 | W80: 9 | X80: 1-Stage | Y80: ECM - CA | Z80: 2013-04-10
A81: ClimateMaster | B81: TS | C81: TSV/TSH/TSD042CGK | D81: 042 | E81: Full | F81: 39400 | G81: 19.6 | H81: 11 | I81: 45100 | J81: 6 | K81: 11 | L81: 44400 | M81: 29.5 | N81: 11 | O81: 35200 | P81: 5.2 | Q81: 11 | R81: 40700 | S81: 21.9 | T81: 11 | U81: 27400 | V81: 4.1 | W81: 11 | X81: 1-Stage | Y81: ECM - CA | Z81: 2013-04-10
A82: ClimateMaster | B82: TS | C82: TSV/TSH/TSD048CGK | D82: 048 | E82: Full | F82: 48900 | G82: 17.2 | H82: 12 | I82: 57700 | J82: 5.2 | K82: 12 | L82: 53700 | M82: 23.9 | N82: 12 | O82: 45700 | P82: 4.4 | Q82: 12 | R82: 50600 | S82: 18.8 | T82: 12 | U82: 36100 | V82: 3.7 | W82: 12 | X82: 1-Stage | Y82: ECM - CA | Z82: 2013-04-10
A83: ClimateMaster | B83: TS | C83: TSV/TSH/TSD060CGK | D83: 060 | E83: Full | F83: 63200 | G83: 17.2 | H83: 15 | I83: 73200 | J83: 5.4 | K83: 15 | L83: 68900 | M83: 24.9 | N83: 15 | O83: 58200 | P83: 4.6 | Q83: 15 | R83: 64400 | S83: 18.4 | T83: 15 | U83: 46400 | V83: 3.9 | W83: 15 | X83: 1-Stage | Y83: ECM - CA | Z83: 2013-04-10
A84: ClimateMaster | B84: TS | C84: TSV/TSH/TSD070CGK | D84: 070 | E84: Full | F84: 71100 | G84: 15.7 | H84: 16.5 | I84: 82000 | J84: 4.8 | K84: 16.5 | L84: 78100 | M84: 23 | N84: 16.5 | O84: 65200 | P84: 4.1 | Q84: 16.5 | R84: 73000 | S84: 17.2 | T84: 16.5 | U84: 53000 | V84: 3.6 | W84: 16.5 | X84: 1-Stage | Y84: ECM - CA | Z84: 2013-04-10
A85: ClimateMaster | B85: TS | C85: TSV/TSH/TSD018BE | D85: 018 | E85: Full | F85: 18600 | G85: 15 | H85: 5.5 | I85: 23000 | J85: 5.2 | K85: 5.5 | L85: 21300 | M85: 24.8 | N85: 5.5 | O85: 18600 | P85: 4.5 | Q85: 5.5 | R85: 19500 | S85: 18.4 | T85: 5.5 | U85: 14500 | V85: 3.6 | W85: 5.5 | X85: 1-Stage | Y85: PSC | Z85: 2013-04-10
A86: ClimateMaster | B86: TS | C86: TSV/TSH/TSD024CF | D86: 024 | E86: Full | F86: 23800 | G86: 16.9 | H86: 8 | I86: 30800 | J86: 5.9 | K86: 8 | L86: 26500 | M86: 26.4 | N86: 8 | O86: 24100 | P86: 5 | Q86: 8 | R86: 25300 | S86: 18.9 | T86: 8 | U86: 19200 | V86: 4 | W86: 8 | X86: 1-Stage | Y86: PSC | Z86: 2013-04-10
A87: ClimateMaster | B87: TS | C87: TSV/TSH/TSD030CF | D87: 030 | E87: Full | F87: 28000 | G87: 16.3 | H87: 8 | I87: 35500 | J87: 5.5 | K87: 8 | L87: 31000 | M87: 24.9 | N87: 8 | O87: 28400 | P87: 4.7 | Q87: 8 | R87: 29200 | S87: 18.5 | T87: 8 | U87: 22200 | V87: 3.9 | W87: 8 | X87: 1-Stage | Y87: PSC | Z87: 2013-04-10
A88: ClimateMaster | B88: TS | C88: TSV/TSH/TSD036CF | D88: 036 | E88: Full | F88: 33400 | G88: 17 | H88: 9 | I88: 40400 | J88: 5.6 | K88: 9 | L88: 35400 | M88: 23.2 | N88: 9 | O88: 33200 | P88: 4.7 | Q88: 9 | R88: 34300 | S88: 19.2 | T88: 9 | U88: 25900 | V88: 4.1 | W88: 9 | X88: 1-Stage | Y88: PSC | Z88: 2013-04-10
A89: ClimateMaster | B89: TS | C89: TSV/TSH/TSD042CF | D89: 042 | E89: Full | F89: 38500 | G89: 17.2 | H89: 11 | I89: 46300 | J89: 5.6 | K89: 11 | L89: 43700 | M89: 25.4 | N89: 11 | O89: 36200 | P89: 4.7 | Q89: 11 | R89: 40100 | S89: 19.4 | T89: 11 | U89: 28700 | V89: 3.8 | W89: 11 | X89: 1-Stage | Y89: PSC | Z89: 2013-04-10
A90: ClimateMaster | B90: TS | C90: TSV/TSH/TSD048CF | D90: 048 | E90: Full | F90: 47100 | G90: 14.8 | H90: 12 | I90: 58000 | J90: 4.7 | K90: 12 | L90: 53600 | M90: 21.3 | N90: 12 | O90: 47500 | P90: 4 | Q90: 12 | R90: 49600 | S90: 16.8 | T90: 12 | U90: 36600 | V90: 3.4 | W90: 12 | X90: 1-Stage | Y90: PSC | Z90: 2013-04-10
A91: ClimateMaster | B91: TS | C91: TSV/TSH/TSD060CF | D91: 060 | E91: Full | F91: 62400 | G91: 15.9 | H91: 15 | I91: 73900 | J91: 5 | K91: 15 | L91: 68500 | M91: 23.1 | N91: 15 | O91: 58200 | P91: 4.2 | Q91: 15 | R91: 63900 | S91: 17.2 | T91: 15 | U91: 46900 | V91: 3.7 | W91: 15 | X91: 1-Stage | Y91: PSC | Z91: 2013-04-10
A92: ClimateMaster | B92: TS | C92: TSV/TSH/TSD070CF | D92: 070 | E92: Full | F92: 71000 | G92: 14.6 | H92: 16.5 | I92: 82100 | J92: 4.6 | K92: 16.5 | L92: 78000 | M92: 21.1 | N92: 16.5 | O92: 66100 | P92: 4 | Q92: 16.5 | R92: 72900 | S92: 16.2 | T92: 16.5 | U92: 53800 | V92: 3.4 | W92: 16.5 | X92: 1-Stage | Y92: PSC | Z92: 2013-04-10
A93: ClimateMaster | B93: TS | C93: TSV/TSH006AE | D93: 006 | E93: Full | F93: 6300 | G93: 15.7 | H93: 2 | I93: 8000 | J93: 5.4 | K93: 2 | L93: 7400 | M93: 25.5 | N93: 2 | O93: 6300 | P93: 4.4 | Q93: 2 | R93: 6700 | S93: 18.5 | T93: 2 | U93: 4800 | V93: 3.4 | W93: 2 | X93: 1-Stage | Y93: PSC | Z93: 2013-04-10
A94: ClimateMaster | B94: TS | C94: TSV/TSH009AE | D94: 009 | E94: Full | F94: 9300 | G94: 15.3 | H94: 2.75 | I94: 11100 | J94: 4.8 | K94: 2.75 | L94: 11100 | M94: 25.2 | N94: 2.75 | O94: 9400 | P94: 4.3 | Q94: 2.75 | R94: 10000 | S94: 18.1 | T94: 2.75 | U94: 7100 | V94: 3.4 | W94: 2.75 | X94: 1-Stage | Y94: PSC | Z94: 2013-04-10
A95: ClimateMaster | B95: TS | C95: TSV/TSH012AE | D95: 012 | E95: Full | F95: 11700 | G95: 15.4 | H95: 3.5 | I95: 13800 | J95: 4.5 | K95: 3.5 | L95: 13300 | M95: 24.6 | N95: 3.5 | O95: 11800 | P95: 4 | Q95: 3.5 | R95: 12300 | S95: 18.1 | T95: 3.5 | U95: 9500 | V95: 3.5 | W95: 3.5 | X95: 1-Stage | Y95: PSC | Z95: 2013-04-10
A96: ClimateMaster | B96: TSM | C96: TSM09G *B | D96: 009 | E96: Full | F96: 9800 | G96: 15 | H96: 3 | I96: 12900 | J96: 5.4 | K96: 3 | L96: 11700 | M96: 24.5 | N96: 3 | O96: 10300 | P96: 4.5 | Q96: 3 | R96: 10500 | S96: 17.8 | T96: 3 | U96: 7400 | V96: 3.4 | W96: 3 | X96: 1-Stage | Y96: ECM - CA | Z96: 2013-04-10
A97: ClimateMaster | B97: TSM | C97: TSM12G *B | D97: 012 | E97: Full | F97: 11600 | G97: 14.7 | H97: 3.5 | I97: 16000 | J97: 5.2 | K97: 3.5 | L97: 13600 | M97: 23.8 | N97: 3.5 | O97: 12900 | P97: 4.4 | Q97: 3.5 | R97: 12300 | S97: 17.2 | T97: 3.5 | U97: 9600 | V97: 3.4 | W97: 3.5 | X97: 1-Stage | Y97: ECM - CA | Z97: 2013-04-10
A98: ClimateMaster | B98: TSM | C98: TSM15G *B | D98: 015 | E98: Full | F98: 14600 | G98: 15.9 | H98: 4.5 | I98: 17500 | J98: 5.3 | K98: 4.5 | L98: 16800 | M98: 25.6 | N98: 4.5 | O98: 14500 | P98: 4.5 | Q98: 4.5 | R98: 15500 | S98: 18.8 | T98: 4.5 | U98: 11000 | V98: 3.6 | W98: 4.5 | X98: 1-Stage | Y98: ECM - CA | Z98: 2013-04-10
A99: ClimateMaster | B99: TSM | C99: TSM18G *B | D99: 018 | E99: Full | F99: 18000 | G99: 15.2 | H99: 6.8 | I99: 22200 | J99: 5.1 | K99: 6.8 | L99: 20000 | M99: 23.5 | N99: 6.8 | O99: 17700 | P99: 4.4 | Q99: 6.8 | R99: 18500 | S99: 17.3 | T99: 6.8 | U99: 13200 | V99: 3.3 | W99: 6.8 | X99: 1-Stage | Y99: ECM - CA | Z99: 2013-04-10
A100: ClimateMaster | B100: TSM | C100: TSM24G *B | D100: 024 | E100: Full | F100: 25000 | G100: 15.7 | H100: 8 | I100: 32500 | J100: 5.1 | K100: 8 | L100: 29500 | M100: 25.3 | N100: 8 | O100: 26000 | P100: 4.5 | Q100: 8 | R100: 26500 | S100: 18.5 | T100: 8 | U100: 18200 | V100: 3.5 | W100: 8 | X100: 1-Stage | Y100: ECM - CA | Z100: 2013-04-10
A101: ClimateMaster | B101: TSM | C101: TSM30G *B | D101: 030 | E101: Full | F101: 28000 | G101: 15.1 | H101: 8 | I101: 34500 | J101: 5 | K101: 8 | L101: 31500 | M101: 22.9 | N101: 8 | O101: 28500 | P101: 4.4 | Q101: 8 | R101: 29000 | S101: 17.6 | T101: 8 | U101: 22200 | V101: 3.6 | W101: 8 | X101: 1-Stage | Y101: ECM - CA | Z101: 2013-04-10
A102: ClimateMaster | B102: TSM | C102: TSM36G *B | D102: 036 | E102: Full | F102: 37500 | G102: 14.6 | H102: 9 | I102: 44000 | J102: 5 | K102: 9 | L102: 42500 | M102: 22.6 | N102: 9 | O102: 36000 | P102: 4.3 | Q102: 9 | R102: 38500 | S102: 16.5 | T102: 9 | U102: 28000 | V102: 3.5 | W102: 9 | X102: 1-Stage | Y102: ECM - CA | Z102: 2013-04-10
A103: ClimateMaster | B103: TSM | C103: TSM09G *A | D103: 009 | E103: Full | F103: 9700 | G103: 13.9 | H103: 3 | I103: 12700 | J103: 5.2 | K103: 3 | L103: 11500 | M103: 22.1 | N103: 3 | O103: 10400 | P103: 4.3 | Q103: 3 | R103: 10300 | S103: 16.2 | T103: 3 | U103: 7600 | V103: 3.2 | W103: 3 | X103: 1-Stage | Y103: PSC | Z103: 2013-04-10
A104: ClimateMaster | B104: TSM | C104: TSM12G *A | D104: 012 | E104: Full | F104: 11400 | G104: 13.8 | H104: 3.5 | I104: 16000 | J104: 5.1 | K104: 3.5 | L104: 13500 | M104: 21.8 | N104: 3.5 | O104: 13000 | P104: 4.3 | Q104: 3.5 | R104: 12200 | S104: 16 | T104: 3.5 | U104: 9700 | V104: 3.3 | W104: 3.5 | X104: 1-Stage | Y104: PSC | Z104: 2013-04-10
A105: ClimateMaster | B105: TSM | C105: TSM15G *A | D105: 015 | E105: Full | F105: 14300 | G105: 13.3 | H105: 4.5 | I105: 18000 | J105: 4.8 | K105: 4.5 | L105: 16500 | M105: 20.5 | N105: 4.5 | O105: 14500 | P105: 4.1 | Q105: 4.5 | R105: 15200 | S105: 15.6 | T105: 4.5 | U105: 11500 | V105: 3.3 | W105: 4.5 | X105: 1-Stage | Y105: PSC | Z105: 2013-04-10
A106: ClimateMaster | B106: TSM | C106: TSM18G *A | D106: 018 | E106: Full | F106: 17300 | G106: 13.2 | H106: 6.8 | I106: 22500 | J106: 4.8 | K106: 6.8 | L106: 20000 | M106: 20 | N106: 6.8 | O106: 18000 | P106: 4 | Q106: 6.8 | R106: 18400 | S106: 15.1 | T106: 6.8 | U106: 13500 | V106: 3.2 | W106: 6.8 | X106: 1-Stage | Y106: PSC | Z106: 2013-04-10
A107: ClimateMaster | B107: TSM | C107: TSM24G *A | D107: 024 | E107: Full | F107: 25000 | G107: 14.4 | H107: 8 | I107: 32500 | J107: 4.9 | K107: 8 | L107: 29000 | M107: 22.5 | N107: 8 | O107: 26500 | P107: 4.3 | Q107: 8 | R107: 26500 | S107: 16.8 | T107: 8 | U107: 18400 | V107: 3.4 | W107: 8 | X107: 1-Stage | Y107: PSC | Z107: 2013-04-10
A108: ClimateMaster | B108: TSM | C108: TSM30G *A | D108: 030 | E108: Full | F108: 27500 | G108: 13.4 | H108: 8 | I108: 34500 | J108: 4.7 | K108: 8 | L108: 31000 | M108: 19.5 | N108: 8 | O108: 28500 | P108: 4.1 | Q108: 8 | R108: 28500 | S108: 15.2 | T108: 8 | U108: 22000 | V108: 3.3 | W108: 8 | X108: 1-Stage | Y108: PSC | Z108: 2013-04-10
A109: ClimateMaster | B109: TSM | C109: TSM36G *A | D109: 036 | E109: Full | F109: 37500 | G109: 14.1 | H109: 9 | I109: 44500 | J109: 4.9 | K109: 9 | L109: 42500 | M109: 21.5 | N109: 9 | O109: 36500 | P109: 4.3 | Q109: 9 | R109: 38500 | S109: 16.2 | T109: 9 | U109: 28500 | V109: 3.4 | W109: 9 | X109: 1-Stage | Y109: PSC | Z109: 2013-04-10
A110: ClimateMaster | B110: TT 2-stage | C110: TTV/TTH/TTD026B | D110: 026 | E110: Full | F110: 25300 | G110: 17.7 | H110: 8 | I110: 30400 | J110: 5.7 | K110: 8 | L110: 28700 | M110: 27.3 | N110: 8 | O110: 24800 | P110: 5 | Q110: 8 | R110: 26300 | S110: 19.9 | T110: 8 | U110: 18900 | V110: 4 | W110: 8 | X110: 2-Stage | Y110: ECM - CA | Z110: 2013-04-10
A111: ClimateMaster | B111: TT 2-stage | C111: TTV/TTH/TTD038C | D111: 038 | E111: Full | F111: 38000 | G111: 17.8 | H111: 9 | I111: 45100 | J111: 5.8 | K111: 9 | L111: 43300 | M111: 27.1 | N111: 9 | O111: 37200 | P111: 5.2 | Q111: 9 | R111: 39900 | S111: 20.3 | T111: 9 | U111: 29200 | V111: 4.4 | W111: 9 | X111: 2-Stage | Y111: ECM - CA | Z111: 2013-04-10
A112: ClimateMaster | B112: TT 2-stage | C112: TTV/TTH/TTD049B | D112: 049 | E112: Full | F112: 48700 | G112: 17.3 | H112: 12 | I112: 59700 | J112: 5.5 | K112: 12 | L112: 55800 | M112: 26.1 | N112: 12 | O112: 48400 | P112: 4.8 | Q112: 12 | R112: 50800 | S112: 19.3 | T112: 12 | U112: 37200 | V112: 4 | W112: 12 | X112: 2-Stage | Y112: ECM - CA | Z112: 2013-04-10
A113: ClimateMaster | B113: TT 2-stage | C113: TTV/TTH/TTD064B | D113: 064 | E113: Full | F113: 61500 | G113: 16.2 | H113: 15 | I113: 77400 | J113: 5.4 | K113: 15 | L113: 71500 | M113: 24.4 | N113: 15 | O113: 63200 | P113: 4.8 | Q113: 15 | R113: 66200 | S113: 18.8 | T113: 15 | U113: 48700 | V113: 3.9 | W113: 15 | X113: 2-Stage | Y113: ECM - CA | Z113: 2013-04-10
A114: ClimateMaster | B114: TT 2-stage | C114: TTV/TTH/TTD072B | D114: 072 | E114: Full | F114: 68300 | G114: 15.1 | H114: 17 | I114: 85300 | J114: 4.8 | K114: 17 | L114: 77700 | M114: 22.5 | N114: 17 | O114: 71400 | P114: 4.4 | Q114: 17 | R114: 71700 | S114: 16.9 | T114: 17 | U114: 55800 | V114: 3.7 | W114: 17 | X114: 2-Stage | Y114: ECM - CA | Z114: 2013-04-10
A115: ClimateMaster | B115: TY 2-stage | C115: TYV/TYH024B | D115: 024 | E115: Full | F115: 24100 | G115: 14.6 | H115: 6 | I115: 28600 | J115: 4.7 | K115: 6 | L115: 27000 | M115: 22.1 | N115: 6 | O115: 23400 | P115: 4.2 | Q115: 6 | R115: 25100 | S115: 16.4 | T115: 6 | U115: 18100 | V115: 3.6 | W115: 6 | X115: 2-Stage | Y115: ECM - CA | Z115: 2013-04-10
A116: ClimateMaster | B116: TY 2-stage | C116: TYV/TYH030 | D116: 030 | E116: Full | F116: 28500 | G116: 14 | H116: 8 | I116: 35800 | J116: 4.6 | K116: 8 | L116: 32300 | M116: 20.7 | N116: 8 | O116: 30000 | P116: 4.2 | Q116: 8 | R116: 29900 | S116: 15.7 | T116: 8 | U116: 23800 | V116: 3.6 | W116: 8 | X116: 2-Stage | Y116: ECM - CA | Z116: 2013-04-10
A117: ClimateMaster | B117: TY 2-stage | C117: TYV/TYH036B | D117: 036 | E117: Full | F117: 35000 | G117: 15.5 | H117: 9 | I117: 43000 | J117: 4.7 | K117: 9 | L117: 39000 | M117: 23.1 | N117: 9 | O117: 35400 | P117: 4.3 | Q117: 9 | R117: 35600 | S117: 17 | T117: 9 | U117: 27900 | V117: 3.7 | W117: 9 | X117: 2-Stage | Y117: ECM - CA | Z117: 2013-04-10
A118: ClimateMaster | B118: TY 2-stage | C118: TYV/TYH042 | D118: 042 | E118: Full | F118: 41100 | G118: 14.3 | H118: 10.5 | I118: 50200 | J118: 4.6 | K118: 10.5 | L118: 46300 | M118: 21.3 | N118: 10.5 | O118: 42300 | P118: 4.1 | Q118: 10.5 | R118: 43100 | S118: 16.1 | T118: 10.5 | U118: 33300 | V118: 3.4 | W118: 10.5 | X118: 2-Stage | Y118: ECM - CA | Z118: 2013-04-10
A119: ClimateMaster | B119: TY 2-stage | C119: TYV/TYH048 | D119: 048 | E119: Full | F119: 45900 | G119: 14 | H119: 12 | I119: 53800 | J119: 4.9 | K119: 12 | L119: 51800 | M119: 20.9 | N119: 12 | O119: 45000 | P119: 4.4 | Q119: 12 | R119: 48100 | S119: 15.5 | T119: 12 | U119: 35600 | V119: 3.7 | W119: 12 | X119: 2-Stage | Y119: ECM - CA | Z119: 2013-04-10
A120: ClimateMaster | B120: TY 2-stage | C120: TYV/TYH060B | D120: 060 | E120: Full | F120: 61700 | G120: 15.7 | H120: 14 | I120: 67500 | J120: 4.8 | K120: 14 | L120: 68000 | M120: 22.7 | N120: 14 | O120: 55400 | P120: 4.3 | Q120: 14 | R120: 63200 | S120: 17.3 | T120: 14 | U120: 43700 | V120: 3.6 | W120: 14 | X120: 2-Stage | Y120: ECM - CA | Z120: 2013-04-10
A121: ClimateMaster | B121: TZ 2-stage | C121: TZV/TZH024B | D121: 024 | E121: Full | F121: 24100 | G121: 14.6 | H121: 6 | I121: 28600 | J121: 4.7 | K121: 6 | L121: 27000 | M121: 22.1 | N121: 6 | O121: 23400 | P121: 4.2 | Q121: 6 | R121: 25100 | S121: 16.4 | T121: 6 | U121: 18100 | V121: 3.6 | W121: 6 | X121: 2-Stage | Y121: ECM - CA | Z121: 2013-04-10
A122: ClimateMaster | B122: TZ 2-stage | C122: TZV/TZH030 | D122: 030 | E122: Full | F122: 28500 | G122: 14 | H122: 8 | I122: 35800 | J122: 4.6 | K122: 8 | L122: 32300 | M122: 20.7 | N122: 8 | O122: 30000 | P122: 4.2 | Q122: 8 | R122: 29900 | S122: 15.7 | T122: 8 | U122: 23800 | V122: 3.6 | W122: 8 | X122: 2-Stage | Y122: ECM - CA | Z122: 2013-04-10
A123: ClimateMaster | B123: TZ 2-stage | C123: TZV/TZH036B | D123: 036 | E123: Full | F123: 35000 | G123: 15.5 | H123: 9 | I123: 43000 | J123: 4.7 | K123: 9 | L123: 39000 | M123: 23.1 | N123: 9 | O123: 35400 | P123: 4.3 | Q123: 9 | R123: 35600 | S123: 17 | T123: 9 | U123: 27900 | V123: 3.7 | W123: 9 | X123: 2-Stage | Y123: ECM - CA | Z123: 2013-04-10
A124: ClimateMaster | B124: TZ 2-stage | C124: TZV/TZH042 | D124: 042 | E124: Full | F124: 41100 | G124: 14.3 | H124: 10.5 | I124: 50200 | J124: 4.6 | K124: 10.5 | L124: 46300 | M124: 21.3 | N124: 10.5 | O124: 42300 | P124: 4.1 | Q124: 10.5 | R124: 43100 | S124: 16.1 | T124: 10.5 | U124: 33300 | V124: 3.4 | W124: 10.5 | X124: 2-Stage | Y124: ECM - CA | Z124: 2013-04-10
A125: ClimateMaster | B125: TZ 2-stage | C125: TZV/TZH048 | D125: 048 | E125: Full | F125: 45900 | G125: 14 | H125: 12 | I125: 53800 | J125: 4.9 | K125: 12 | L125: 51800 | M125: 20.9 | N125: 12 | O125: 45000 | P125: 4.4 | Q125: 12 | R125: 48100 | S125: 15.5 | T125: 12 | U125: 35600 | V125: 3.7 | W125: 12 | X125: 2-Stage | Y125: ECM - CA | Z125: 2013-04-10
A126: ClimateMaster | B126: TZ 2-stage | C126: TZV/TZH060B | D126: 060 | E126: Full | F126: 61700 | G126: 15.7 | H126: 14 | I126: 67500 | J126: 4.8 | K126: 14 | L126: 68000 | M126: 22.7 | N126: 14 | O126: 55400 | P126: 4.3 | Q126: 14 | R126: 63200 | S126: 17.3 | T126: 14 | U126: 43700 | V126: 3.6 | W126: 14 | X126: 2-Stage | Y126: ECM - CA | Z126: 2013-04-10
A127: Florida Heat Pump | B127: CA | C127: CA009-2 | D127: 009 | E127: Full | F127: 8200 | G127: 12.9 | H127: 2 | I127: 9400 | J127: 4.6 | K127: 2 | L127: 10200 | M127: 22.3 | N127: 2 | O127: 7400 | P127: 3.8 | Q127: 2 | R127: 9000 | S127: 16 | T127: 2 | U127: 5400 | V127: 3.3 | W127: 2 | X127: 1-Stage | Y127: PSC | Z127: 2013-04-10
A128: Florida Heat Pump | B128: CA | C128: CA012-2 | D128: 012 | E128: Full | F128: 10500 | G128: 12 | H128: 2.5 | I128: 12400 | J128: 4.3 | K128: 2.5 | L128: 13000 | M128: 19.4 | N128: 2.5 | O128: 10900 | P128: 3.8 | Q128: 2.5 | R128: 11500 | S128: 14.2 | T128: 2.5 | U128: 8400 | V128: 3.3 | W128: 2.5 | X128: 1-Stage | Y128: PSC | Z128: 2013-04-10
A129: Florida Heat Pump | B129: CA | C129: CA015-2 | D129: 015 | E129: Full | F129: 14400 | G129: 13.3 | H129: 4 | I129: 15000 | J129: 4.3 | K129: 4 | L129: 16400 | M129: 19.8 | N129: 4 | O129: 11800 | P129: 3.6 | Q129: 4 | R129: 14700 | S129: 14.5 | T129: 4 | U129: 9800 | V129: 3.3 | W129: 4 | X129: 1-Stage | Y129: PSC | Z129: 2013-04-10
A130: Florida Heat Pump | B130: CA | C130: CA018-1 | D130: 018 | E130: Full | F130: 16400 | G130: 12.3 | H130: 5 | I130: 17500 | J130: 4.2 | K130: 5 | L130: 18300 | M130: 17.6 | N130: 5 | O130: 14600 | P130: 3.4 | Q130: 5 | R130: 17000 | S130: 14 | T130: 5 | U130: 12000 | V130: 3.1 | W130: 5 | X130: 1-Stage | Y130: PSC | Z130: 2013-04-10
A131: Florida Heat Pump | B131: EC | C131: EC007-2CF/HZ/VT | D131: 007 | E131: Full | F131: 6200 | G131: 12.5 | H131: 2 | I131: 8000 | J131: 5.1 | K131: 2 | L131: 7200 | M131: 20 | N131: 2 | O131: 6000 | P131: 4 | Q131: 2 | R131: 6500 | S131: 15 | T131: 2 | U131: 4500 | V131: 3.2 | W131: 2 | X131: 1-Stage | Y131: PSC | Z131: 2013-04-10
A132: Florida Heat Pump | B132: EC | C132: EC009-2CF/HZ/VT | D132: 009 | E132: Full | F132: 7800 | G132: 13.7 | H132: 2.5 | I132: 11400 | J132: 4.7 | K132: 2.5 | L132: 9000 | M132: 20 | N132: 2.5 | O132: 8600 | P132: 3.8 | Q132: 2.5 | R132: 8100 | S132: 14.8 | T132: 2.5 | U132: 6400 | V132: 3.2 | W132: 2.5 | X132: 1-Stage | Y132: PSC | Z132: 2013-04-10
A133: Florida Heat Pump | B133: EC | C133: EC012-2CF/HZ/VT | D133: 012 | E133: Full | F133: 11000 | G133: 13 | H133: 3 | I133: 14500 | J133: 4.5 | K133: 3 | L133: 12400 | M133: 19 | N133: 3 | O133: 11500 | P133: 3.6 | Q133: 3 | R133: 11500 | S133: 14.5 | T133: 3 | U133: 8700 | V133: 3.1 | W133: 3 | X133: 1-Stage | Y133: PSC | Z133: 2013-04-10
A134: Florida Heat Pump | B134: EC | C134: EC015-2CF/HZ/VT | D134: 015 | E134: Full | F134: 14000 | G134: 13 | H134: 4 | I134: 18000 | J134: 4.6 | K134: 4 | L134: 15800 | M134: 19 | N134: 4 | O134: 13500 | P134: 3.8 | Q134: 4 | R134: 14500 | S134: 15 | T134: 4 | U134: 10100 | V134: 3.3 | W134: 4 | X134: 1-Stage | Y134: PSC | Z134: 2013-04-10
A135: Florida Heat Pump | B135: EC | C135: EC018-2CF/HZ/VT | D135: 018 | E135: Full | F135: 18500 | G135: 13 | H135: 5 | I135: 24000 | J135: 4.4 | K135: 5 | L135: 21400 | M135: 19 | N135: 5 | O135: 18000 | P135: 3.8 | Q135: 5 | R135: 19800 | S135: 14.1 | T135: 5 | U135: 13400 | V135: 3.3 | W135: 5 | X135: 1-Stage | Y135: PSC | Z135: 2013-04-10
A136: Florida Heat Pump | B136: EC | C136: EC024-4CF/HZ/VT | D136: 024 | E136: Full | F136: 25000 | G136: 13.8 | H136: 6 | I136: 30000 | J136: 4.5 | K136: 6 | L136: 28200 | M136: 20.6 | N136: 6 | O136: 23800 | P136: 3.8 | Q136: 6 | R136: 26500 | S136: 15.2 | T136: 6 | U136: 17900 | V136: 3.3 | W136: 6 | X136: 1-Stage | Y136: PSC | Z136: 2013-04-10
A137: Florida Heat Pump | B137: EC | C137: EC030-4CF/HZ/VT | D137: 030 | E137: Full | F137: 29000 | G137: 13 | H137: 7 | I137: 35000 | J137: 4.3 | K137: 7 | L137: 33000 | M137: 18.6 | N137: 7 | O137: 28400 | P137: 3.8 | Q137: 7 | R137: 31000 | S137: 14.4 | T137: 7 | U137: 21000 | V137: 3.3 | W137: 7 | X137: 1-Stage | Y137: PSC | Z137: 2013-04-10
A138: Florida Heat Pump | B138: EC | C138: EC036-4CF/HZ/VT | D138: 036 | E138: Full | F138: 36000 | G138: 13.8 | H138: 9 | I138: 46000 | J138: 4.5 | K138: 9 | L138: 40200 | M138: 19.5 | N138: 9 | O138: 36200 | P138: 4 | Q138: 9 | R138: 37800 | S138: 15.5 | T138: 9 | U138: 27400 | V138: 3.3 | W138: 9 | X138: 1-Stage | Y138: PSC | Z138: 2013-04-10
A139: Florida Heat Pump | B139: EC | C139: EC041-4CF/HZ/VT | D139: 041 | E139: Full | F139: 38000 | G139: 12.5 | H139: 9 | I139: 49000 | J139: 4.2 | K139: 9 | L139: 40400 | M139: 16.1 | N139: 9 | O139: 39000 | P139: 3.7 | Q139: 9 | R139: 39200 | S139: 14.1 | T139: 9 | U139: 28500 | V139: 3.1 | W139: 9 | X139: 1-Stage | Y139: PSC | Z139: 2013-04-10
A140: Florida Heat Pump | B140: EC | C140: EC042-4CF/HZ/VT | D140: 042 | E140: Full | F140: 42000 | G140: 13 | H140: 10 | I140: 53000 | J140: 4.2 | K140: 10 | L140: 44500 | M140: 18.5 | N140: 10 | O140: 42000 | P140: 3.8 | Q140: 10 | R140: 43800 | S140: 14.2 | T140: 10 | U140: 32200 | V140: 3.3 | W140: 10 | X140: 1-Stage | Y140: PSC | Z140: 2013-04-10
A141: Florida Heat Pump | B141: EC | C141: EC048-4CF/HZ/VT | D141: 048 | E141: Full | F141: 48000 | G141: 14 | H141: 12 | I141: 58000 | J141: 4.8 | K141: 12 | L141: 58000 | M141: 20.6 | N141: 12 | O141: 46600 | P141: 4.2 | Q141: 12 | R141: 52000 | S141: 15.4 | T141: 12 | U141: 36800 | V141: 3.5 | W141: 12 | X141: 1-Stage | Y141: PSC | Z141: 2013-04-10
A142: Florida Heat Pump | B142: EC | C142: EC051-4CF/HZ/VT | D142: 051 | E142: Full | F142: 47500 | G142: 13.8 | H142: 12 | I142: 53500 | J142: 4.7 | K142: 12 | L142: 58000 | M142: 20.6 | N142: 12 | O142: 46600 | P142: 4.2 | Q142: 12 | R142: 51000 | S142: 15.5 | T142: 12 | U142: 37800 | V142: 3.6 | W142: 12 | X142: 1-Stage | Y142: PSC | Z142: 2013-04-10
A143: Florida Heat Pump | B143: EC | C143: EC060-4CF/HZ/VT | D143: 060 | E143: Full | F143: 62000 | G143: 13.2 | H143: 15 | I143: 79000 | J143: 4.4 | K143: 15 | L143: 67000 | M143: 18.3 | N143: 15 | O143: 61500 | P143: 3.9 | Q143: 15 | R143: 63600 | S143: 14.7 | T143: 15 | U143: 50000 | V143: 3.3 | W143: 15 | X143: 1-Stage | Y143: PSC | Z143: 2013-04-10
A144: Florida Heat Pump | B144: EC | C144: EC061-4CF/HZ/VT | D144: 061 | E144: Full | F144: 59000 | G144: 13.9 | H144: 15 | I144: 68000 | J144: 4.6 | K144: 15 | L144: 63000 | M144: 19.7 | N144: 15 | O144: 55400 | P144: 4.1 | Q144: 15 | R144: 61000 | S144: 15.8 | T144: 15 | U144: 44600 | V144: 3.5 | W144: 15 | X144: 1-Stage | Y144: PSC | Z144: 2013-04-10
A145: Florida Heat Pump | B145: EC | C145: EC070-4CF/HZ/VT | D145: 070 | E145: Full | F145: 68000 | G145: 13.5 | H145: 16 | I145: 80000 | J145: 4.5 | K145: 16 | L145: 76000 | M145: 19.8 | N145: 16 | O145: 68000 | P145: 4 | Q145: 16 | R145: 70000 | S145: 15.2 | T145: 16 | U145: 53000 | V145: 3.3 | W145: 16 | X145: 1-Stage | Y145: PSC | Z145: 2013-04-10
A146: Florida Heat Pump | B146: EC | C146: EC072-4HZ/VT | D146: 072 | E146: Full | F146: 72000 | G146: 13 | H146: 16 | I146: 92000 | J146: 4.5 | K146: 16 | L146: 80400 | M146: 18.6 | N146: 16 | O146: 72400 | P146: 3.8 | Q146: 16 | R146: 75600 | S146: 14.2 | T146: 16 | U146: 54800 | V146: 3.2 | W146: 16 | X146: 1-Stage | Y146: Belt Drive | Z146: 2013-04-10
A147: Florida Heat Pump | B147: EC | C147: EC096-4HZ/VT | D147: 096 | E147: Full | F147: 96000 | G147: 14 | H147: 21 | I147: 116000 | J147: 4.8 | K147: 21 | L147: 116000 | M147: 20.6 | N147: 21 | O147: 93200 | P147: 4.2 | Q147: 21 | R147: 104000 | S147: 15.4 | T147: 21 | U147: 73600 | V147: 3.5 | W147: 21 | X147: 1-Stage | Y147: Belt Drive | Z147: 2013-04-10
A148: Florida Heat Pump | B148: EC | C148: EC120-4HZ/VT | D148: 120 | E148: Full | F148: 124000 | G148: 13.2 | H148: 28 | I148: 158000 | J148: 4.4 | K148: 28 | L148: 134000 | M148: 18.3 | N148: 28 | O148: 123000 | P148: 3.9 | Q148: 28 | R148: 127000 | S148: 14.7 | T148: 28 | U148: 100000 | V148: 3.2 | W148: 28 | X148: 1-Stage | Y148: Belt Drive | Z148: 2013-04-10
A149: Florida Heat Pump | B149: EC | C149: EC150-4HZ | D149: 150 | E149: Full | F149: 157000 | G149: 16 | H149: 35 | I149: 181000 | J149: 5.6 | K149: 35 | L149: 185000 | M149: 24 | N149: 35 | O149: 140000 | P149: 5 | Q149: 35 | R149: 166000 | S149: 17.9 | T149: 35 | U149: 107000 | V149: 4.2 | W149: 35 | X149: 1-Stage | Y149: Belt Drive | Z149: 2013-04-10
A150: Florida Heat Pump | B150: EC | C150: EC151-4VT | D150: 151 | E150: Full | F150: 147000 | G150: 16 | H150: 35 | I150: 181000 | J150: 5.6 | K150: 35 | L150: 175000 | M150: 24 | N150: 35 | O150: 140000 | P150: 5 | Q150: 35 | R150: 155000 | S150: 17.9 | T150: 35 | U150: 107000 | V150: 4.2 | W150: 35 | X150: 1-Stage | Y150: Belt Drive | Z150: 2013-04-10
A151: Florida Heat Pump | B151: EC | C151: EC180-4HZ | D151: 180 | E151: Full | F151: 182000 | G151: 14.2 | H151: 42 | I151: 204000 | J151: 5 | K151: 42 | L151: 195000 | M151: 20 | N151: 42 | O151: 156000 | P151: 4.2 | Q151: 42 | R151: 185000 | S151: 15.4 | T151: 42 | U151: 118000 | V151: 3.5 | W151: 42 | X151: 1-Stage | Y151: Belt Drive | Z151: 2013-04-10
A152: Florida Heat Pump | B152: EC | C152: EC181-4VT | D152: 181 | E152: Full | F152: 170000 | G152: 14.2 | H152: 42 | I152: 204000 | J152: 5 | K152: 42 | L152: 185000 | M152: 20 | N152: 42 | O152: 156000 | P152: 4.2 | Q152: 42 | R152: 175000 | S152: 15.4 | T152: 42 | U152: 118000 | V152: 3.5 | W152: 42 | X152: 1-Stage | Y152: Belt Drive | Z152: 2013-04-10
A153: Florida Heat Pump | B153: EC | C153: EC210-4VT | D153: 210 | E153: Full | F153: 220000 | G153: 14.6 | H153: 50 | I153: 270000 | J153: 5.1 | K153: 50 | L153: 292000 | M153: 22.5 | N153: 50 | O153: 204000 | P153: 4.5 | Q153: 50 | R153: 250000 | S153: 17.2 | T153: 50 | U153: 152000 | V153: 3.9 | W153: 50 | X153: 1-Stage | Y153: Belt Drive | Z153: 2013-04-10
A154: Florida Heat Pump | B154: EC | C154: EC240-4VT | D154: 240 | E154: Full | F154: 248000 | G154: 14.4 | H154: 60 | I154: 315000 | J154: 5 | K154: 60 | L154: 310000 | M154: 21.1 | N154: 60 | O154: 250000 | P154: 4.5 | Q154: 60 | R154: 275000 | S154: 16 | T154: 60 | U154: 180000 | V154: 3.9 | W154: 60 | X154: 1-Stage | Y154: Belt Drive | Z154: 2013-04-10
A155: Florida Heat Pump | B155: EC | C155: EC242-4HZ | D155: 242 | E155: Full | F155: 248000 | G155: 14.4 | H155: 60 | I155: 315000 | J155: 5 | K155: 60 | L155: 310000 | M155: 21.1 | N155: 60 | O155: 250000 | P155: 4.5 | Q155: 60 | R155: 275000 | S155: 16 | T155: 60 | U155: 180000 | V155: 3.9 | W155: 60 | X155: 1-Stage | Y155: Belt Drive | Z155: 2013-04-10
A156: Florida Heat Pump | B156: EC | C156: EC300-4VT | D156: 300 | E156: Full | F156: 295000 | G156: 13 | H156: 75 | I156: 376000 | J156: 4.2 | K156: 75 | L156: 365000 | M156: 18.8 | N156: 75 | O156: 300000 | P156: 3.8 | Q156: 75 | R156: 318000 | S156: 14 | T156: 75 | U156: 222000 | V156: 3.2 | W156: 75 | X156: 1-Stage | Y156: Belt Drive | Z156: 2013-04-10
A157: Florida Heat Pump | B157: EC | C157: EC360-4VT | D157: 360 | E157: Full | F157: 386000 | G157: 14.8 | H157: 90 | I157: 435000 | J157: 4.4 | K157: 90 | L157: 472000 | M157: 22 | N157: 90 | O157: 342000 | P157: 4 | Q157: 90 | R157: 412000 | S157: 16.4 | T157: 90 | U157: 252000 | V157: 3.3 | W157: 90 | X157: 1-Stage | Y157: Belt Drive | Z157: 2013-04-10
A158: Florida Heat Pump | B158: EP | C158: EP015 | D158: 015 | E158: Full | F158: 15200 | G158: 17.5 | H158: 4 | I158: 17500 | J158: 5.6 | K158: 4 | L158: 17000 | M158: 28.8 | N158: 4 | O158: 13000 | P158: 4.6 | Q158: 4 | R158: 16200 | S158: 20.6 | T158: 4 | U158: 11000 | V158: 3.9 | W158: 4 | X158: 1-Stage | Y158: ECM - CA | Z158: 2014-05-08
A159: Florida Heat Pump | B159: EP | C159: EP018 | D159: 018 | E159: Full | F159: 19500 | G159: 16.4 | H159: 5 | I159: 21300 | J159: 5.3 | K159: 5 | L159: 21300 | M159: 25.6 | N159: 5 | O159: 17700 | P159: 4.5 | Q159: 5 | R159: 20500 | S159: 19 | T159: 5 | U159: 14800 | V159: 3.8 | W159: 5 | X159: 1-Stage | Y159: ECM - CA | Z159: 2014-05-08
A160: Florida Heat Pump | B160: EP | C160: EP024 | D160: 024 | E160: Full | F160: 24500 | G160: 18.2 | H160: 6 | I160: 28500 | J160: 5.7 | K160: 6 | L160: 28400 | M160: 28.1 | N160: 6 | O160: 23700 | P160: 4.6 | Q160: 6 | R160: 26000 | S160: 21.1 | T160: 6 | U160: 18000 | V160: 4 | W160: 6 | X160: 1-Stage | Y160: ECM - CA | Z160: 2014-05-08
A161: Florida Heat Pump | B161: EP | C161: EP030 | D161: 030 | E161: Full | F161: 27000 | G161: 16.6 | H161: 7 | I161: 31000 | J161: 5.9 | K161: 7 | L161: 31700 | M161: 27 | N161: 7 | O161: 25000 | P161: 5.2 | Q161: 7 | R161: 28500 | S161: 19.4 | T161: 7 | U161: 20500 | V161: 4.3 | W161: 7 | X161: 1-Stage | Y161: ECM - CA | Z161: 2014-05-08
A162: Florida Heat Pump | B162: EP | C162: EP036 | D162: 036 | E162: Full | F162: 36000 | G162: 17.2 | H162: 10 | I162: 41000 | J162: 5.6 | K162: 10 | L162: 40200 | M162: 25.9 | N162: 10 | O162: 34400 | P162: 4.9 | Q162: 10 | R162: 37500 | S162: 19.7 | T162: 10 | U162: 26000 | V162: 4.1 | W162: 10 | X162: 1-Stage | Y162: ECM - CA | Z162: 2014-05-08
A163: Florida Heat Pump | B163: EP | C163: EP042 | D163: 042 | E163: Full | F163: 40600 | G163: 18.2 | H163: 10.5 | I163: 42400 | J163: 6 | K163: 10.5 | L163: 45000 | M163: 25.7 | N163: 10.5 | O163: 35000 | P163: 5.1 | Q163: 10.5 | R163: 42200 | S163: 21.7 | T163: 10.5 | U163: 26800 | V163: 4.1 | W163: 10.5 | X163: 1-Stage | Y163: ECM - CA | Z163: 2014-05-08
A164: Florida Heat Pump | B164: EP | C164: EP048 | D164: 048 | E164: Full | F164: 47400 | G164: 17.2 | H164: 12 | I164: 50000 | J164: 5.3 | K164: 12 | L164: 52900 | M164: 26.1 | N164: 12 | O164: 40500 | P164: 4.3 | Q164: 12 | R164: 49500 | S164: 20 | T164: 12 | U164: 33400 | V164: 3.7 | W164: 12 | X164: 1-Stage | Y164: ECM - CA | Z164: 2014-05-08
A165: Florida Heat Pump | B165: EP | C165: EP060 | D165: 060 | E165: Full | F165: 60400 | G165: 16.2 | H165: 15 | I165: 71500 | J165: 5.7 | K165: 15 | L165: 66500 | M165: 24.1 | N165: 15 | O165: 56700 | P165: 4.9 | Q165: 15 | R165: 61500 | S165: 18.5 | T165: 15 | U165: 47000 | V165: 4.2 | W165: 15 | X165: 1-Stage | Y165: ECM - CA | Z165: 2014-05-08
A166: Florida Heat Pump | B166: EP | C166: EP070 | D166: 070 | E166: Full | F166: 68000 | G166: 16.2 | H166: 17 | I166: 86000 | J166: 5.6 | K166: 17 | L166: 71400 | M166: 22.4 | N166: 17 | O166: 71400 | P166: 5 | Q166: 17 | R166: 70500 | S166: 18.5 | T166: 17 | U166: 56500 | V166: 4.2 | W166: 17 | X166: 1-Stage | Y166: ECM - CA | Z166: 2014-05-08
A167: Florida Heat Pump | B167: EP | C167: EP007 | D167: 007 | E167: Full | F167: 6800 | G167: 15.7 | H167: 2 | I167: 8800 | J167: 5.7 | K167: 2 | L167: 8400 | M167: 25.1 | N167: 2 | O167: 7000 | P167: 4.9 | Q167: 2 | R167: 7400 | S167: 18.5 | T167: 2 | U167: 5100 | V167: 3.6 | W167: 2 | X167: 1-Stage | Y167: PSC | Z167: 2014-05-08
A168: Florida Heat Pump | B168: EP | C168: EP009 | D168: 009 | E168: Full | F168: 9000 | G168: 16.2 | H168: 2.5 | I168: 11200 | J168: 5.5 | K168: 2.5 | L168: 10500 | M168: 25.5 | N168: 2.5 | O168: 9000 | P168: 4.5 | Q168: 2.5 | R168: 9500 | S168: 19.3 | T168: 2.5 | U168: 6800 | V168: 3.6 | W168: 2.5 | X168: 1-Stage | Y168: PSC | Z168: 2014-05-08
A169: Florida Heat Pump | B169: EP | C169: EP012 | D169: 012 | E169: Full | F169: 12200 | G169: 14.9 | H169: 4 | I169: 16500 | J169: 5.1 | K169: 4 | L169: 114600 | M169: 22.7 | N169: 4 | O169: 13000 | P169: 4.3 | Q169: 4 | R169: 13000 | S169: 17.5 | T169: 4 | U169: 10000 | V169: 3.6 | W169: 4 | X169: 1-Stage | Y169: PSC | Z169: 2014-05-08
A170: Florida Heat Pump | B170: ES | C170: ES018-2CF/HZ/VT | D170: 018 | E170: Full | F170: 19000 | G170: 15.9 | H170: 4 | I170: 22500 | J170: 5.2 | K170: 4 | L170: 20100 | M170: 25.1 | N170: 4 | O170: 18000 | P170: 4.5 | Q170: 4 | R170: 19000 | S170: 18.6 | T170: 4 | U170: 14500 | V170: 3.7 | W170: 4 | X170: 1-Stage | Y170: ECM - CA | Z170: 2013-04-10
A171: Florida Heat Pump | B171: ES | C171: ES024-3CF/HZ/VT | D171: 024 | E171: Full | F171: 25000 | G171: 14.2 | H171: 5 | I171: 32500 | J171: 4.3 | K171: 5 | L171: 29500 | M171: 21.9 | N171: 5 | O171: 26500 | P171: 3.7 | Q171: 5 | R171: 27000 | S171: 15.9 | T171: 5 | U171: 20500 | V171: 3.4 | W171: 5 | X171: 1-Stage | Y171: ECM - CA | Z171: 2013-04-10
A172: Florida Heat Pump | B172: ES | C172: ES024-4CF/HZ/VT | D172: 024 | E172: Full | F172: 24000 | G172: 13.5 | H172: 5 | I172: 30500 | J172: 4.5 | K172: 5 | L172: 27500 | M172: 21.1 | N172: 5 | O172: 25500 | P172: 4.1 | Q172: 5 | R172: 26000 | S172: 16.1 | T172: 5 | U172: 20000 | V172: 3.5 | W172: 5 | X172: 1-Stage | Y172: ECM - CA | Z172: 2013-04-10
A173: Florida Heat Pump | B173: ES | C173: ES030-4CF/HZ/VT | D173: 030 | E173: Full | F173: 30000 | G173: 16 | H173: 7.5 | I173: 34500 | J173: 5.2 | K173: 7.5 | L173: 33000 | M173: 23.4 | N173: 7.5 | O173: 28500 | P173: 4.6 | Q173: 7.5 | R173: 30500 | S173: 18 | T173: 7.5 | U173: 22500 | V173: 3.8 | W173: 7.5 | X173: 1-Stage | Y173: ECM - CA | Z173: 2013-04-10
A174: Florida Heat Pump | B174: ES | C174: ES036-4CF/HZ/VT | D174: 036 | E174: Full | F174: 34000 | G174: 15.2 | H174: 9 | I174: 41500 | J174: 5.3 | K174: 9 | L174: 38500 | M174: 22.8 | N174: 9 | O174: 33500 | P174: 4.6 | Q174: 9 | R174: 35500 | S174: 17.6 | T174: 9 | U174: 26500 | V174: 3.8 | W174: 9 | X174: 1-Stage | Y174: ECM - CA | Z174: 2013-04-10
A175: Florida Heat Pump | B175: ES | C175: ES042-4CF/HZ/VT | D175: 042 | E175: Full | F175: 43000 | G175: 14.4 | H175: 9 | I175: 49000 | J175: 4.8 | K175: 9 | L175: 48000 | M175: 22 | N175: 9 | O175: 41000 | P175: 4.2 | Q175: 9 | R175: 45500 | S175: 16.8 | T175: 9 | U175: 33500 | V175: 3.6 | W175: 9 | X175: 1-Stage | Y175: ECM - CA | Z175: 2013-04-10
A176: Florida Heat Pump | B176: ES | C176: ES048-3CF/HZ/VT | D176: 048 | E176: Full | F176: 48500 | G176: 13.85 | H176: 12 | I176: 56500 | J176: 4.9 | K176: 12 | L176: 54500 | M176: 22 | N176: 12 | O176: 47500 | P176: 4.4 | Q176: 12 | R176: 51000 | S176: 17 | T176: 12 | U176: 38000 | V176: 3.7 | W176: 12 | X176: 1-Stage | Y176: ECM - CA | Z176: 2013-04-10
A177: Florida Heat Pump | B177: ES | C177: ES060-3CF/HZ/VT | D177: 060 | E177: Full | F177: 61000 | G177: 14 | H177: 12 | I177: 72000 | J177: 4.8 | K177: 12 | L177: 69000 | M177: 20.9 | N177: 12 | O177: 61500 | P177: 4.4 | Q177: 12 | R177: 64000 | S177: 16.3 | T177: 12 | U177: 50000 | V177: 3.7 | W177: 12 | X177: 1-Stage | Y177: ECM - CA | Z177: 2013-04-10
A178: Florida Heat Pump | B178: ES | C178: ES070-3CF/HZ/VT | D178: 070 | E178: Full | F178: 68000 | G178: 14 | H178: 16 | I178: 80000 | J178: 4.6 | K178: 16 | L178: 76000 | M178: 20.3 | N178: 16 | O178: 68000 | P178: 4.1 | Q178: 16 | R178: 70000 | S178: 15.6 | T178: 16 | U178: 53000 | V178: 3.3 | W178: 16 | X178: 1-Stage | Y178: ECM - CA | Z178: 2013-04-10
A179: Florida Heat Pump | B179: ES 2-stage | C179: ES025-1CF/HZ/VT | D179: 025 | E179: Full | F179: 26000 | G179: 16 | H179: 6 | I179: 30000 | J179: 5 | K179: 6 | L179: 29000 | M179: 24 | N179: 6 | O179: 25000 | P179: 4.6 | Q179: 6 | R179: 27500 | S179: 18.7 | T179: 6 | U179: 19000 | V179: 3.8 | W179: 6 | X179: 2-Stage | Y179: ECM - CA | Z179: 2013-04-10
A180: Florida Heat Pump | B180: ES 2-stage | C180: ES035-4CF/HZ/VT | D180: 035 | E180: Full | F180: 36000 | G180: 14.6 | H180: 9 | I180: 43000 | J180: 4.8 | K180: 9 | L180: 42000 | M180: 21.6 | N180: 9 | O180: 36000 | P180: 4.2 | Q180: 9 | R180: 38000 | S180: 17.2 | T180: 9 | U180: 28000 | V180: 3.8 | W180: 9 | X180: 2-Stage | Y180: ECM - CA | Z180: 2013-04-10
A181: Florida Heat Pump | B181: ES 2-stage | C181: ES049-4CF/HZ/VT | D181: 049 | E181: Full | F181: 48000 | G181: 12.6 | H181: 12 | I181: 58000 | J181: 4.8 | K181: 12 | L181: 54000 | M181: 19 | N181: 12 | O181: 48000 | P181: 4.2 | Q181: 12 | R181: 49000 | S181: 15.5 | T181: 12 | U181: 38000 | V181: 3.6 | W181: 12 | X181: 2-Stage | Y181: ECM - CA | Z181: 2013-04-10
A182: Florida Heat Pump | B182: ES 2-stage | C182: ES061-4CF/HZ/VT | D182: 061 | E182: Full | F182: 60000 | G182: 14 | H182: 14 | I182: 72000 | J182: 4.7 | K182: 14 | L182: 68000 | M182: 19.7 | N182: 14 | O182: 61000 | P182: 4.3 | Q182: 14 | R182: 62000 | S182: 15.7 | T182: 14 | U182: 49000 | V182: 3.6 | W182: 14 | X182: 2-Stage | Y182: ECM - CA | Z182: 2013-04-10
A183: Florida Heat Pump | B183: ES 2-stage | C183: ES071-4CF/HZ/VT | D183: 071 | E183: Full | F183: 72000 | G183: 14.5 | H183: 18 | I183: 80000 | J183: 4.5 | K183: 18 | L183: 77000 | M183: 19.6 | N183: 18 | O183: 68000 | P183: 4.2 | Q183: 18 | R183: 74000 | S183: 16.3 | T183: 18 | U183: 53000 | V183: 3.5 | W183: 18 | X183: 2-Stage | Y183: ECM - CA | Z183: 2013-04-10
A184: Florida Heat Pump | B184: EV | C184: EV030-4HZ | D184: 030 | E184: Full | F184: 30000 | G184: 15.5 | H184: 7.5 | I184: 33500 | J184: 4.7 | K184: 7.5 | L184: 34500 | M184: 24 | N184: 7.5 | O184: 27500 | P184: 4.1 | Q184: 7.5 | R184: 31000 | S184: 18 | T184: 7.5 | U184: 22000 | V184: 3.4 | W184: 7.5 | X184: 1-Stage | Y184: PSC | Z184: 2013-04-10
A185: Florida Heat Pump | B185: EV | C185: EV036-4HZ | D185: 036 | E185: Full | F185: 33000 | G185: 14.8 | H185: 9 | I185: 39000 | J185: 5 | K185: 9 | L185: 38500 | M185: 22.6 | N185: 9 | O185: 31500 | P185: 4.3 | Q185: 9 | R185: 34000 | S185: 17.4 | T185: 9 | U185: 24000 | V185: 3.4 | W185: 9 | X185: 1-Stage | Y185: PSC | Z185: 2013-04-10
A186: Florida Heat Pump | B186: EV | C186: EV042-4HZ | D186: 042 | E186: Full | F186: 43000 | G186: 13.5 | H186: 9 | I186: 47000 | J186: 4.6 | K186: 9 | L186: 47000 | M186: 20 | N186: 9 | O186: 39000 | P186: 4 | Q186: 9 | R186: 44500 | S186: 15.3 | T186: 9 | U186: 30500 | V186: 3.3 | W186: 9 | X186: 1-Stage | Y186: PSC | Z186: 2013-04-10
A187: Florida Heat Pump | B187: EV | C187: EV048-4HZ | D187: 048 | E187: Full | F187: 48500 | G187: 12.7 | H187: 12 | I187: 58000 | J187: 4.8 | K187: 12 | L187: 55000 | M187: 20.6 | N187: 12 | O187: 47000 | P187: 4.2 | Q187: 12 | R187: 49000 | S187: 16.4 | T187: 12 | U187: 37500 | V187: 3.4 | W187: 12 | X187: 1-Stage | Y187: PSC | Z187: 2013-04-10
A188: Florida Heat Pump | B188: EV | C188: EV060-4HZ/VT | D188: 060 | E188: Full | F188: 57500 | G188: 13 | H188: 12 | I188: 66000 | J188: 4.3 | K188: 12 | L188: 68000 | M188: 19.2 | N188: 12 | O188: 56000 | P188: 3.8 | Q188: 12 | R188: 60000 | S188: 15 | T188: 12 | U188: 45000 | V188: 3.3 | W188: 12 | X188: 1-Stage | Y188: PSC | Z188: 2013-04-10
A189: Florida Heat Pump | B189: LM 2-stage | C189: LM024 | D189: 024 | E189: Full | F189: 25500 | G189: 17.4 | H189: 6 | I189: 29200 | J189: 5.6 | K189: 6 | L189: 29000 | M189: 26.5 | N189: 6 | O189: 23500 | P189: 4.9 | Q189: 6 | R189: 26600 | S189: 19.9 | T189: 6 | U189: 18000 | V189: 4.1 | W189: 6 | X189: 2-Stage | Y189: ECM - CA | Z189: 2014-04-15
A190: Florida Heat Pump | B190: LM 2-stage | C190: LM036 | D190: 036 | E190: Full | F190: 39000 | G190: 19 | H190: 9 | I190: 42800 | J190: 5.6 | K190: 9 | L190: 43300 | M190: 28 | N190: 9 | O190: 35900 | P190: 5.1 | Q190: 9 | R190: 40800 | S190: 22 | T190: 9 | U190: 28400 | V190: 4.3 | W190: 9 | X190: 2-Stage | Y190: ECM - CA | Z190: 2014-04-15
A191: Florida Heat Pump | B191: LM 2-stage | C191: LM048 | D191: 048 | E191: Full | F191: 49200 | G191: 16.6 | H191: 12 | I191: 56100 | J191: 5.3 | K191: 12 | L191: 55300 | M191: 25.3 | N191: 12 | O191: 46300 | P191: 4.7 | Q191: 12 | R191: 51300 | S191: 19.3 | T191: 12 | U191: 36900 | V191: 4 | W191: 12 | X191: 2-Stage | Y191: ECM - CA | Z191: 2014-04-15
A192: Florida Heat Pump | B192: LM 2-stage | C192: LM060 | D192: 060 | E192: Full | F192: 63800 | G192: 17 | H192: 15 | I192: 73300 | J192: 5.2 | K192: 15 | L192: 70200 | M192: 24.4 | N192: 15 | O192: 60300 | P192: 4.6 | Q192: 15 | R192: 65100 | S192: 18.9 | T192: 15 | U192: 48000 | V192: 3.9 | W192: 15 | X192: 2-Stage | Y192: ECM - CA | Z192: 2014-04-15
A193: Florida Heat Pump | B193: LM 2-stage | C193: LM070 | D193: 070 | E193: Full | F193: 71600 | G193: 16.3 | H193: 18 | I193: 84000 | J193: 5.1 | K193: 18 | L193: 78700 | M193: 23.1 | N193: 18 | O193: 70000 | P193: 4.5 | Q193: 18 | R193: 73700 | S193: 18.5 | T193: 18 | U193: 55300 | V193: 3.8 | W193: 18 | X193: 2-Stage | Y193: ECM - CA | Z193: 2014-04-15
A194: Florida Heat Pump | B194: LV | C194: LV015-1VT/CF/HZ*-***A | D194: 015 | E194: Full | F194: 13700 | G194: 14 | H194: 4 | I194: 15500 | J194: 4.4 | K194: 4 | R194: 14400 | S194: 16.2 | T194: 4 | U194: 10700 | V194: 3.3 | W194: 4 | X194: 1-Stage | Y194: ECM - CA | Z194: 2013-04-10
A195: Florida Heat Pump | B195: LV | C195: LV018-1VT/CF/HZ*-***A | D195: 018 | E195: Full | F195: 19700 | G195: 14.2 | H195: 5 | I195: 21900 | J195: 4.7 | K195: 5 | R195: 21500 | S195: 17 | T195: 5 | U195: 14100 | V195: 3.6 | W195: 5 | X195: 1-Stage | Y195: ECM - CA | Z195: 2013-04-10
A196: Florida Heat Pump | B196: LV | C196: LV024-1VT/CF/HZ*-***A | D196: 024 | E196: Full | F196: 23800 | G196: 14.3 | H196: 6 | I196: 26200 | J196: 4.6 | K196: 6 | R196: 25400 | S196: 16.5 | T196: 6 | U196: 16700 | V196: 3.5 | W196: 6 | X196: 1-Stage | Y196: ECM - CA | Z196: 2013-04-10
A197: Florida Heat Pump | B197: LV | C197: LV030-1VT/CF/HZ*-***A | D197: 030 | E197: Full | F197: 30000 | G197: 14.8 | H197: 7 | I197: 32800 | J197: 4.6 | K197: 7 | R197: 31600 | S197: 17.4 | T197: 7 | U197: 20400 | V197: 3.4 | W197: 7 | X197: 1-Stage | Y197: ECM - CA | Z197: 2013-04-10
A198: Florida Heat Pump | B198: LV | C198: LV036-1VT/CF/HZ*-***A | D198: 036 | E198: Full | F198: 38200 | G198: 15.4 | H198: 9 | I198: 41400 | J198: 4.7 | K198: 9 | R198: 40200 | S198: 17.7 | T198: 9 | U198: 26500 | V198: 3.6 | W198: 9 | X198: 1-Stage | Y198: ECM - CA | Z198: 2013-04-10
A199: Florida Heat Pump | B199: LV | C199: LV041-1VT/CF*-***A | D199: 041 | E199: Full | F199: 40500 | G199: 15.7 | H199: 9 | I199: 43700 | J199: 4.4 | K199: 9 | R199: 42200 | S199: 17.7 | T199: 9 | U199: 28500 | V199: 3.6 | W199: 9 | X199: 1-Stage | Y199: ECM - CA | Z199: 2013-04-10
A200: Florida Heat Pump | B200: LV | C200: LV042-1VT/CF/HZ*-***A | D200: 042 | E200: Full | F200: 40900 | G200: 14.1 | H200: 10 | I200: 45300 | J200: 4.4 | K200: 10 | R200: 43500 | S200: 16.3 | T200: 10 | U200: 30100 | V200: 3.5 | W200: 10 | X200: 1-Stage | Y200: ECM - CA | Z200: 2013-04-10
... 709 more rows

Sheet AHRI Part Load Ratings (hidden)
A1: Manufacturer | B1: Series | C1: Model | D1: Size | E1: Stages | F1: WLHP Cooling Capacity (Btuh) | G1: WLHP Cooling EER (Btuh/Watt) | H1: WLHP Cooling Fluid Flow Rate (Gpm) | I1: WLHP Heating Capacity (Btuh) | J1: WLHP Heating COP | K1: WLHP Heating Fluid Flow Rate (Gpm) | L1: GWHP Cooling Capacity (Btuh) | M1: GWHP Cooling EER (Btuh/Watt) | N1: GWHP Cooling Fluid Flow Rate (Gpm) | O1: GWHP Heating Capacity (Btuh) | P1: GWHP Heating COP | Q1: GWHP Heating Fluid Flow Rate (Gpm) | R1: GLHP Cooling Capacity (Btuh) | S1: GLHP Cooling EER (Btuh/Watt) | T1: GLHP Cooling Fluid Flow Rate (Gpm) | U1: GLHP Heating Capacity (Btuh) | V1: GLHP Heating COP | W1: GLHP Heating Fluid Flow Rate (Gpm) | X1: # of Stages | Y1: Motor Type | Z1: Last Date Modified
A2: ClimateMaster | B2: TE 2-stage | C2: TEV/H/D026 | D2: 026 | E2: Full | F2: 25300 | G2: 17.7 | H2: 8 | I2: 30400 | J2: 5.7 | K2: 8 | L2: 28700 | M2: 27.3 | N2: 8 | O2: 24800 | P2: 5 | Q2: 8 | R2: 26300 | S2: 19.9 | T2: 8 | U2: 18900 | V2: 4 | W2: 8 | X2: 2-Stage | Y2: ECM - CA | Z2: 2013-04-10
A3: ClimateMaster | B3: TE 2-stage | C3: TEV/H/D026 | D3: 026 | E3: Part | F3: 19100 | G3: 19.6 | H3: 7 | I3: 22100 | J3: 6.5 | K3: 7 | L3: 22000 | M3: 35.3 | N3: 7 | O3: 17700 | P3: 5.3 | Q3: 7 | R3: 20900 | S3: 28 | T3: 7 | U3: 15300 | V3: 4.6 | W3: 7 | X3: 2-Stage | Y3: ECM - CA | Z3: 2013-04-10
A4: ClimateMaster | B4: TE 2-stage | C4: TEV/H/D038 | D4: 038 | E4: Full | F4: 38000 | G4: 17.8 | H4: 9 | I4: 45100 | J4: 5.8 | K4: 9 | L4: 43300 | M4: 27.1 | N4: 9 | O4: 37200 | P4: 5.2 | Q4: 9 | R4: 39900 | S4: 20.3 | T4: 9 | U4: 29200 | V4: 4.4 | W4: 9 | X4: 2-Stage | Y4: ECM - CA | Z4: 2013-04-10
A5: ClimateMaster | B5: TE 2-stage | C5: TEV/H/D038 | D5: 038 | E5: Part | F5: 27000 | G5: 19.5 | H5: 8 | I5: 31800 | J5: 6.4 | K5: 8 | L5: 31300 | M5: 34.4 | N5: 8 | O5: 26100 | P5: 5.4 | Q5: 8 | R5: 30400 | S5: 29.6 | T5: 8 | U5: 23200 | V5: 4.8 | W5: 8 | X5: 2-Stage | Y5: ECM - CA | Z5: 2013-04-10
A6: ClimateMaster | B6: TE 2-stage | C6: TEV/H/D049 | D6: 049 | E6: Full | F6: 48700 | G6: 17.3 | H6: 12 | I6: 59700 | J6: 5.5 | K6: 12 | L6: 55800 | M6: 26.1 | N6: 12 | O6: 48400 | P6: 4.8 | Q6: 12 | R6: 50800 | S6: 19.3 | T6: 12 | U6: 37200 | V6: 4 | W6: 12 | X6: 2-Stage | Y6: ECM - CA | Z6: 2013-04-10
A7: ClimateMaster | B7: TE 2-stage | C7: TEV/H/D049 | D7: 049 | E7: Part | F7: 36500 | G7: 19.4 | H7: 11 | I7: 43600 | J7: 6.3 | K7: 11 | L7: 42000 | M7: 34.3 | N7: 11 | O7: 35000 | P7: 5.1 | Q7: 11 | R7: 40300 | S7: 27.9 | T7: 11 | U7: 30100 | V7: 4.4 | W7: 11 | X7: 2-Stage | Y7: ECM - CA | Z7: 2013-04-10
A8: ClimateMaster | B8: TE 2-stage | C8: TEV/H/D064 | D8: 064 | E8: Full | F8: 61500 | G8: 16.2 | H8: 15 | I8: 77400 | J8: 5.4 | K8: 15 | L8: 71500 | M8: 24.4 | N8: 15 | O8: 63200 | P8: 4.8 | Q8: 15 | R8: 66200 | S8: 18.8 | T8: 15 | U8: 48700 | V8: 3.9 | W8: 15 | X8: 2-Stage | Y8: ECM - CA | Z8: 2013-04-10
A9: ClimateMaster | B9: TE 2-stage | C9: TEV/H/D064 | D9: 064 | E9: Part | F9: 46300 | G9: 18.7 | H9: 14 | I9: 54700 | J9: 6 | K9: 14 | L9: 53100 | M9: 32.4 | N9: 14 | O9: 44000 | P9: 5 | Q9: 14 | R9: 51200 | S9: 26.7 | T9: 14 | U9: 38100 | V9: 4.4 | W9: 14 | X9: 2-Stage | Y9: ECM - CA | Z9: 2013-04-10
A10: ClimateMaster | B10: TE 2-stage | C10: TEV/H/D072 | D10: 072 | E10: Full | F10: 68300 | G10: 15.1 | H10: 17 | I10: 85300 | J10: 4.8 | K10: 17 | L10: 77700 | M10: 22.5 | N10: 17 | O10: 71400 | P10: 4.4 | Q10: 17 | R10: 71700 | S10: 16.9 | T10: 17 | U10: 55800 | V10: 3.7 | W10: 17 | X10: 2-Stage | Y10: ECM - CA | Z10: 2013-04-10
A11: ClimateMaster | B11: TE 2-stage | C11: TEV/H/D072 | D11: 072 | E11: Part | F11: 53000 | G11: 16.8 | H11: 15 | I11: 64600 | J11: 5.2 | K11: 15 | L11: 60800 | M11: 28.6 | N11: 15 | O11: 53200 | P11: 4.5 | Q11: 15 | R11: 58100 | S11: 23.2 | T11: 15 | U11: 46000 | V11: 3.9 | W11: 15 | X11: 2-Stage | Y11: ECM - CA | Z11: 2013-04-10
A12: ClimateMaster | B12: TT 2-stage | C12: TTV/TTH/TTD026B | D12: 026 | E12: Full | F12: 25300 | G12: 17.7 | H12: 8 | I12: 30400 | J12: 5.7 | K12: 8 | L12: 28700 | M12: 27.3 | N12: 8 | O12: 24800 | P12: 5 | Q12: 8 | R12: 26300 | S12: 19.9 | T12: 8 | U12: 18900 | V12: 4 | W12: 8 | X12: 2-Stage | Y12: ECM - CA | Z12: 2013-04-10
A13: ClimateMaster | B13: TT 2-stage | C13: TTV/TTH/TTD026B | D13: 026 | E13: Part | F13: 19100 | G13: 19.6 | H13: 7 | I13: 22100 | J13: 6.5 | K13: 7 | L13: 22000 | M13: 35.3 | N13: 7 | O13: 17700 | P13: 5.3 | Q13: 7 | R13: 20900 | S13: 28 | T13: 7 | U13: 15300 | V13: 4.6 | W13: 7 | X13: 2-Stage | Y13: ECM - CA | Z13: 2013-04-10
A14: ClimateMaster | B14: TT 2-stage | C14: TTV/TTH/TTD038C | D14: 038 | E14: Full | F14: 38000 | G14: 17.8 | H14: 9 | I14: 45100 | J14: 5.8 | K14: 9 | L14: 43300 | M14: 27.1 | N14: 9 | O14: 37200 | P14: 5.2 | Q14: 9 | R14: 39900 | S14: 20.3 | T14: 9 | U14: 29200 | V14: 4.4 | W14: 9 | X14: 2-Stage | Y14: ECM - CA | Z14: 2013-04-10
A15: ClimateMaster | B15: TT 2-stage | C15: TTV/TTH/TTD038C | D15: 038 | E15: Part | F15: 27000 | G15: 19.5 | H15: 8 | I15: 31800 | J15: 6.4 | K15: 8 | L15: 31300 | M15: 34.4 | N15: 8 | O15: 26100 | P15: 5.4 | Q15: 8 | R15: 30400 | S15: 29.6 | T15: 8 | U15: 23200 | V15: 4.8 | W15: 8 | X15: 2-Stage | Y15: ECM - CA | Z15: 2013-04-10
A16: ClimateMaster | B16: TT 2-stage | C16: TTV/TTH/TTD049B | D16: 049 | E16: Full | F16: 48700 | G16: 17.3 | H16: 12 | I16: 59700 | J16: 5.5 | K16: 12 | L16: 55800 | M16: 26.1 | N16: 12 | O16: 48400 | P16: 4.8 | Q16: 12 | R16: 50800 | S16: 19.3 | T16: 12 | U16: 37200 | V16: 4 | W16: 12 | X16: 2-Stage | Y16: ECM - CA | Z16: 2013-04-10
A17: ClimateMaster | B17: TT 2-stage | C17: TTV/TTH/TTD049B | D17: 049 | E17: Part | F17: 36500 | G17: 19.4 | H17: 11 | I17: 43600 | J17: 6.3 | K17: 11 | L17: 42000 | M17: 34.3 | N17: 11 | O17: 35000 | P17: 5.1 | Q17: 11 | R17: 40300 | S17: 27.9 | T17: 11 | U17: 30100 | V17: 4.4 | W17: 11 | X17: 2-Stage | Y17: ECM - CA | Z17: 2013-04-10
A18: ClimateMaster | B18: TT 2-stage | C18: TTV/TTH/TTD064B | D18: 064 | E18: Full | F18: 61500 | G18: 16.2 | H18: 15 | I18: 77400 | J18: 5.4 | K18: 15 | L18: 71500 | M18: 24.4 | N18: 15 | O18: 63200 | P18: 4.8 | Q18: 15 | R18: 66200 | S18: 18.8 | T18: 15 | U18: 48700 | V18: 3.9 | W18: 15 | X18: 2-Stage | Y18: ECM - CA | Z18: 2013-04-10
A19: ClimateMaster | B19: TT 2-stage | C19: TTV/TTH/TTD064B | D19: 064 | E19: Part | F19: 46300 | G19: 18.7 | H19: 14 | I19: 54700 | J19: 6 | K19: 14 | L19: 53100 | M19: 32.4 | N19: 14 | O19: 44000 | P19: 5 | Q19: 14 | R19: 51200 | S19: 26.7 | T19: 14 | U19: 38100 | V19: 4.4 | W19: 14 | X19: 2-Stage | Y19: ECM - CA | Z19: 2013-04-10
A20: ClimateMaster | B20: TT 2-stage | C20: TTV/TTH/TTD072B | D20: 072 | E20: Full | F20: 68300 | G20: 15.1 | H20: 17 | I20: 85300 | J20: 4.8 | K20: 17 | L20: 77700 | M20: 22.5 | N20: 17 | O20: 71400 | P20: 4.4 | Q20: 17 | R20: 71700 | S20: 16.9 | T20: 17 | U20: 55800 | V20: 3.7 | W20: 17 | X20: 2-Stage | Y20: ECM - CA | Z20: 2013-04-10
A21: ClimateMaster | B21: TT 2-stage | C21: TTV/TTH/TTD072B | D21: 072 | E21: Part | F21: 53000 | G21: 16.8 | H21: 15 | I21: 64600 | J21: 5.2 | K21: 15 | L21: 60800 | M21: 28.6 | N21: 15 | O21: 53200 | P21: 4.5 | Q21: 15 | R21: 58100 | S21: 23.2 | T21: 15 | U21: 46000 | V21: 3.9 | W21: 15 | X21: 2-Stage | Y21: ECM - CA | Z21: 2013-04-10
A22: ClimateMaster | B22: TY 2-stage | C22: TYV/TYH024B | D22: 024 | E22: Full | F22: 24100 | G22: 14.6 | H22: 6 | I22: 28600 | J22: 4.7 | K22: 6 | L22: 27000 | M22: 22.1 | N22: 6 | O22: 23400 | P22: 4.2 | Q22: 6 | R22: 25100 | S22: 16.4 | T22: 6 | U22: 18100 | V22: 3.6 | W22: 6 | X22: 2-Stage | Y22: ECM - CA | Z22: 2013-04-10
A23: ClimateMaster | B23: TY 2-stage | C23: TYV/TYH024B | D23: 024 | E23: Part | F23: 18400 | G23: 16.4 | H23: 5 | I23: 21000 | J23: 5.3 | K23: 5 | L23: 20700 | M23: 27.7 | N23: 5 | O23: 17000 | P23: 4.5 | Q23: 5 | R23: 20000 | S23: 22.9 | T23: 5 | U23: 15000 | V23: 4 | W23: 5 | X23: 2-Stage | Y23: ECM - CA | Z23: 2013-04-10
A24: ClimateMaster | B24: TY 2-stage | C24: TYV/TYH030 | D24: 030 | E24: Full | F24: 28500 | G24: 14 | H24: 8 | I24: 35800 | J24: 4.6 | K24: 8 | L24: 32300 | M24: 20.7 | N24: 8 | O24: 30000 | P24: 4.2 | Q24: 8 | R24: 29900 | S24: 15.7 | T24: 8 | U24: 23800 | V24: 3.6 | W24: 8 | X24: 2-Stage | Y24: ECM - CA | Z24: 2013-04-10
A25: ClimateMaster | B25: TY 2-stage | C25: TYV/TYH030 | D25: 030 | E25: Part | F25: 21900 | G25: 15.2 | H25: 7 | I25: 26300 | J25: 5 | K25: 7 | L25: 24900 | M25: 24.8 | N25: 7 | O25: 22000 | P25: 4.3 | Q25: 7 | R25: 24200 | S25: 20.9 | T25: 7 | U25: 19400 | V25: 3.9 | W25: 7 | X25: 2-Stage | Y25: ECM - CA | Z25: 2013-04-10
A26: ClimateMaster | B26: TY 2-stage | C26: TYV/TYH036B | D26: 036 | E26: Full | F26: 35000 | G26: 15.5 | H26: 9 | I26: 43000 | J26: 4.7 | K26: 9 | L26: 39000 | M26: 23.1 | N26: 9 | O26: 35400 | P26: 4.3 | Q26: 9 | R26: 35600 | S26: 17 | T26: 9 | U26: 27900 | V26: 3.7 | W26: 9 | X26: 2-Stage | Y26: ECM - CA | Z26: 2013-04-10
A27: ClimateMaster | B27: TY 2-stage | C27: TYV/TYH036B | D27: 036 | E27: Part | F27: 26200 | G27: 17.5 | H27: 8 | I27: 30500 | J27: 5.4 | K27: 8 | L27: 29500 | M27: 30 | N27: 8 | O27: 25400 | P27: 4.7 | Q27: 8 | R27: 27700 | S27: 23.9 | T27: 8 | U27: 22300 | V27: 4.1 | W27: 8 | X27: 2-Stage | Y27: ECM - CA | Z27: 2013-04-10
A28: ClimateMaster | B28: TY 2-stage | C28: TYV/TYH042 | D28: 042 | E28: Full | F28: 41100 | G28: 14.3 | H28: 10.5 | I28: 50200 | J28: 4.6 | K28: 10.5 | L28: 46300 | M28: 21.3 | N28: 10.5 | O28: 42300 | P28: 4.1 | Q28: 10.5 | R28: 43100 | S28: 16.1 | T28: 10.5 | U28: 33300 | V28: 3.4 | W28: 10.5 | X28: 2-Stage | Y28: ECM - CA | Z28: 2013-04-10
A29: ClimateMaster | B29: TY 2-stage | C29: TYV/TYH042 | D29: 042 | E29: Part | F29: 31000 | G29: 15.8 | H29: 9 | I29: 36800 | J29: 5.1 | K29: 9 | L29: 35200 | M29: 26.4 | N29: 9 | O29: 30500 | P29: 4.3 | Q29: 9 | R29: 34000 | S29: 22 | T29: 9 | U29: 26900 | V29: 3.8 | W29: 9 | X29: 2-Stage | Y29: ECM - CA | Z29: 2013-04-10
A30: ClimateMaster | B30: TY 2-stage | C30: TYV/TYH048 | D30: 048 | E30: Full | F30: 45900 | G30: 14 | H30: 12 | I30: 53800 | J30: 4.9 | K30: 12 | L30: 51800 | M30: 20.9 | N30: 12 | O30: 45000 | P30: 4.4 | Q30: 12 | R30: 48100 | S30: 15.5 | T30: 12 | U30: 35600 | V30: 3.7 | W30: 12 | X30: 2-Stage | Y30: ECM - CA | Z30: 2013-04-10
A31: ClimateMaster | B31: TY 2-stage | C31: TYV/TYH048 | D31: 048 | E31: Part | F31: 34100 | G31: 15.2 | H31: 11 | I31: 39500 | J31: 5.5 | K31: 11 | L31: 39200 | M31: 26.8 | N31: 11 | O31: 32600 | P31: 4.6 | Q31: 11 | R31: 37600 | S31: 21.2 | T31: 11 | U31: 29200 | V31: 4.1 | W31: 11 | X31: 2-Stage | Y31: ECM - CA | Z31: 2013-04-10
A32: ClimateMaster | B32: TY 2-stage | C32: TYV/TYH060B | D32: 060 | E32: Full | F32: 61700 | G32: 15.7 | H32: 14 | I32: 67500 | J32: 4.8 | K32: 14 | L32: 68000 | M32: 22.7 | N32: 14 | O32: 55400 | P32: 4.3 | Q32: 14 | R32: 63200 | S32: 17.3 | T32: 14 | U32: 43700 | V32: 3.6 | W32: 14 | X32: 2-Stage | Y32: ECM - CA | Z32: 2013-04-10
A33: ClimateMaster | B33: TY 2-stage | C33: TYV/TYH060B | D33: 060 | E33: Part | F33: 45500 | G33: 17.7 | H33: 12 | I33: 49000 | J33: 5.3 | K33: 12 | L33: 50400 | M33: 28.9 | N33: 12 | O33: 39800 | P33: 4.5 | Q33: 12 | R33: 48600 | S33: 23.7 | T33: 12 | U33: 34800 | V33: 4 | W33: 12 | X33: 2-Stage | Y33: ECM - CA | Z33: 2013-04-10
A34: ClimateMaster | B34: TZ 2-stage | C34: TZV/TZH024B | D34: 024 | E34: Full | F34: 24100 | G34: 14.6 | H34: 6 | I34: 28600 | J34: 4.7 | K34: 6 | L34: 27000 | M34: 22.1 | N34: 6 | O34: 23400 | P34: 4.2 | Q34: 6 | R34: 25100 | S34: 16.4 | T34: 6 | U34: 18100 | V34: 3.6 | W34: 6 | X34: 2-Stage | Y34: ECM - CA | Z34: 2013-04-10
A35: ClimateMaster | B35: TZ 2-stage | C35: TZV/TZH024B | D35: 024 | E35: Part | F35: 18400 | G35: 16.4 | H35: 5 | I35: 21000 | J35: 5.3 | K35: 5 | L35: 20700 | M35: 27.7 | N35: 5 | O35: 17000 | P35: 4.5 | Q35: 5 | R35: 20000 | S35: 22.9 | T35: 5 | U35: 15000 | V35: 4 | W35: 5 | X35: 2-Stage | Y35: ECM - CA | Z35: 2013-04-10
A36: ClimateMaster | B36: TZ 2-stage | C36: TZV/TZH030 | D36: 030 | E36: Full | F36: 28500 | G36: 14 | H36: 8 | I36: 35800 | J36: 4.6 | K36: 8 | L36: 32300 | M36: 20.7 | N36: 8 | O36: 30000 | P36: 4.2 | Q36: 8 | R36: 29900 | S36: 15.7 | T36: 8 | U36: 23800 | V36: 3.6 | W36: 8 | X36: 2-Stage | Y36: ECM - CA | Z36: 2013-04-10
A37: ClimateMaster | B37: TZ 2-stage | C37: TZV/TZH030 | D37: 030 | E37: Part | F37: 21900 | G37: 15.2 | H37: 7 | I37: 26300 | J37: 5 | K37: 7 | L37: 24900 | M37: 24.8 | N37: 7 | O37: 22000 | P37: 4.3 | Q37: 7 | R37: 24200 | S37: 20.9 | T37: 7 | U37: 19400 | V37: 3.9 | W37: 7 | X37: 2-Stage | Y37: ECM - CA | Z37: 2013-04-10
A38: ClimateMaster | B38: TZ 2-stage | C38: TZV/TZH036B | D38: 036 | E38: Full | F38: 35000 | G38: 15.5 | H38: 9 | I38: 43000 | J38: 4.7 | K38: 9 | L38: 39000 | M38: 23.1 | N38: 9 | O38: 35400 | P38: 4.3 | Q38: 9 | R38: 35600 | S38: 17 | T38: 9 | U38: 27900 | V38: 3.7 | W38: 9 | X38: 2-Stage | Y38: ECM - CA | Z38: 2013-04-10
A39: ClimateMaster | B39: TZ 2-stage | C39: TZV/TZH036B | D39: 036 | E39: Part | F39: 26200 | G39: 17.5 | H39: 8 | I39: 30500 | J39: 5.4 | K39: 8 | L39: 29500 | M39: 30 | N39: 8 | O39: 25400 | P39: 4.7 | Q39: 8 | R39: 27700 | S39: 23.9 | T39: 8 | U39: 22300 | V39: 4.1 | W39: 8 | X39: 2-Stage | Y39: ECM - CA | Z39: 2013-04-10
A40: ClimateMaster | B40: TZ 2-stage | C40: TZV/TZH042 | D40: 042 | E40: Full | F40: 41100 | G40: 14.3 | H40: 10.5 | I40: 50200 | J40: 4.6 | K40: 10.5 | L40: 46300 | M40: 21.3 | N40: 10.5 | O40: 42300 | P40: 4.1 | Q40: 10.5 | R40: 43100 | S40: 16.1 | T40: 10.5 | U40: 33300 | V40: 3.4 | W40: 10.5 | X40: 2-Stage | Y40: ECM - CA | Z40: 2013-04-10
A41: ClimateMaster | B41: TZ 2-stage | C41: TZV/TZH042 | D41: 042 | E41: Part | F41: 31000 | G41: 15.8 | H41: 9 | I41: 36800 | J41: 5.1 | K41: 9 | L41: 35200 | M41: 26.4 | N41: 9 | O41: 30500 | P41: 4.3 | Q41: 9 | R41: 34000 | S41: 22 | T41: 9 | U41: 26900 | V41: 3.8 | W41: 9 | X41: 2-Stage | Y41: ECM - CA | Z41: 2013-04-10
A42: ClimateMaster | B42: TZ 2-stage | C42: TZV/TZH048 | D42: 048 | E42: Full | F42: 45900 | G42: 14 | H42: 12 | I42: 53800 | J42: 4.9 | K42: 12 | L42: 51800 | M42: 20.9 | N42: 12 | O42: 45000 | P42: 4.4 | Q42: 12 | R42: 48100 | S42: 15.5 | T42: 12 | U42: 35600 | V42: 3.7 | W42: 12 | X42: 2-Stage | Y42: ECM - CA | Z42: 2013-04-10
A43: ClimateMaster | B43: TZ 2-stage | C43: TZV/TZH048 | D43: 048 | E43: Part | F43: 34100 | G43: 15.2 | H43: 11 | I43: 39500 | J43: 5.5 | K43: 11 | L43: 39200 | M43: 26.8 | N43: 11 | O43: 32600 | P43: 4.6 | Q43: 11 | R43: 37600 | S43: 21.2 | T43: 11 | U43: 29200 | V43: 4.1 | W43: 11 | X43: 2-Stage | Y43: ECM - CA | Z43: 2013-04-10
A44: ClimateMaster | B44: TZ 2-stage | C44: TZV/TZH060B | D44: 060 | E44: Full | F44: 61700 | G44: 15.7 | H44: 14 | I44: 67500 | J44: 4.8 | K44: 14 | L44: 68000 | M44: 22.7 | N44: 14 | O44: 55400 | P44: 4.3 | Q44: 14 | R44: 63200 | S44: 17.3 | T44: 14 | U44: 43700 | V44: 3.6 | W44: 14 | X44: 2-Stage | Y44: ECM - CA | Z44: 2013-04-10
A45: ClimateMaster | B45: TZ 2-stage | C45: TZV/TZH060B | D45: 060 | E45: Part | F45: 45500 | G45: 17.7 | H45: 12 | I45: 49000 | J45: 5.3 | K45: 12 | L45: 50400 | M45: 28.9 | N45: 12 | O45: 39800 | P45: 4.5 | Q45: 12 | R45: 48600 | S45: 23.7 | T45: 12 | U45: 34800 | V45: 4 | W45: 12 | X45: 2-Stage | Y45: ECM - CA | Z45: 2013-04-10
A46: Florida Heat Pump | B46: ES 2-stage | C46: ES025-1CF/HZ/VT | D46: 025 | E46: Full | F46: 26000 | G46: 16 | H46: 6 | I46: 30000 | J46: 5 | K46: 6 | L46: 29000 | M46: 24 | N46: 6 | O46: 25000 | P46: 4.6 | Q46: 6 | R46: 27500 | S46: 18.7 | T46: 6 | U46: 19000 | V46: 3.8 | W46: 6 | X46: 2-Stage | Y46: ECM - CA | Z46: 2013-04-10
A47: Florida Heat Pump | B47: ES 2-stage | C47: ES025-1CF/HZ/VT | D47: 025 | E47: Part | F47: 18800 | G47: 17.5 | H47: 6 | I47: 20500 | J47: 5.1 | K47: 6 | L47: 21000 | M47: 30 | N47: 6 | O47: 18000 | P47: 4.6 | Q47: 6 | R47: 20000 | S47: 24.5 | T47: 6 | U47: 15500 | V47: 4 | W47: 6 | X47: 2-Stage | Y47: ECM - CA | Z47: 2013-04-10
A48: Florida Heat Pump | B48: ES 2-stage | C48: ES035-4CF/HZ/VT | D48: 035 | E48: Full | F48: 36000 | G48: 14.6 | H48: 9 | I48: 43000 | J48: 4.8 | K48: 9 | L48: 42000 | M48: 21.6 | N48: 9 | O48: 36000 | P48: 4.2 | Q48: 9 | R48: 38000 | S48: 17.2 | T48: 9 | U48: 28000 | V48: 3.8 | W48: 9 | X48: 2-Stage | Y48: ECM - CA | Z48: 2013-04-10
A49: Florida Heat Pump | B49: ES 2-stage | C49: ES035-4CF/HZ/VT | D49: 035 | E49: Part | F49: 24000 | G49: 17 | H49: 9 | I49: 27000 | J49: 5.3 | K49: 9 | L49: 27000 | M49: 28 | N49: 9 | O49: 22500 | P49: 4.5 | Q49: 9 | R49: 27000 | S49: 24.5 | T49: 9 | U49: 20500 | V49: 4 | W49: 9 | X49: 2-Stage | Y49: ECM - CA | Z49: 2013-04-10
A50: Florida Heat Pump | B50: ES 2-stage | C50: ES049-4CF/HZ/VT | D50: 049 | E50: Full | F50: 48000 | G50: 12.6 | H50: 12 | I50: 58000 | J50: 4.8 | K50: 12 | L50: 54000 | M50: 19 | N50: 12 | O50: 48000 | P50: 4.2 | Q50: 12 | R50: 49000 | S50: 15.5 | T50: 12 | U50: 38000 | V50: 3.6 | W50: 12 | X50: 2-Stage | Y50: ECM - CA | Z50: 2013-04-10
A51: Florida Heat Pump | B51: ES 2-stage | C51: ES049-4CF/HZ/VT | D51: 049 | E51: Part | F51: 34000 | G51: 16 | H51: 12 | I51: 39000 | J51: 5.4 | K51: 12 | L51: 38000 | M51: 24 | N51: 12 | O51: 32000 | P51: 4.6 | Q51: 12 | R51: 36000 | S51: 21.8 | T51: 12 | U51: 28500 | V51: 4 | W51: 12 | X51: 2-Stage | Y51: ECM - CA | Z51: 2013-04-10
A52: Florida Heat Pump | B52: ES 2-stage | C52: ES061-4CF/HZ/VT | D52: 061 | E52: Full | F52: 60000 | G52: 14 | H52: 14 | I52: 72000 | J52: 4.7 | K52: 14 | L52: 68000 | M52: 19.7 | N52: 14 | O52: 61000 | P52: 4.3 | Q52: 14 | R52: 62000 | S52: 15.7 | T52: 14 | U52: 49000 | V52: 3.6 | W52: 14 | X52: 2-Stage | Y52: ECM - CA | Z52: 2013-04-10
A53: Florida Heat Pump | B53: ES 2-stage | C53: ES061-4CF/HZ/VT | D53: 061 | E53: Part | F53: 42000 | G53: 17 | H53: 14 | I53: 48000 | J53: 5.4 | K53: 14 | L53: 48000 | M53: 26 | N53: 14 | O53: 40000 | P53: 4.6 | Q53: 14 | R53: 45000 | S53: 23.5 | T53: 14 | U53: 36500 | V53: 4 | W53: 14 | X53: 2-Stage | Y53: ECM - CA | Z53: 2013-04-10
A54: Florida Heat Pump | B54: ES 2-stage | C54: ES071-4CF/HZ/VT | D54: 071 | E54: Full | F54: 72000 | G54: 14.5 | H54: 18 | I54: 80000 | J54: 4.5 | K54: 18 | L54: 77000 | M54: 19.6 | N54: 18 | O54: 68000 | P54: 4.2 | Q54: 18 | R54: 74000 | S54: 16.3 | T54: 18 | U54: 53000 | V54: 3.5 | W54: 18 | X54: 2-Stage | Y54: ECM - CA | Z54: 2013-04-10
A55: Florida Heat Pump | B55: ES 2-stage | C55: ES071-4CF/HZ/VT | D55: 071 | E55: Part | F55: 51000 | G55: 15.8 | H55: 18 | I55: 55000 | J55: 4.4 | K55: 18 | L55: 57000 | M55: 25.2 | N55: 18 | O55: 47000 | P55: 4 | Q55: 18 | R55: 56000 | S55: 21.8 | T55: 18 | U55: 42000 | V55: 3.6 | W55: 18 | X55: 2-Stage | Y55: ECM - CA | Z55: 2013-04-10
A56: Florida Heat Pump | B56: LM 2-stage | C56: LM024 | D56: 024 | E56: Full | F56: 25500 | G56: 17.4 | H56: 6 | I56: 29200 | J56: 5.6 | K56: 6 | L56: 29000 | M56: 26.5 | N56: 6 | O56: 23500 | P56: 4.9 | Q56: 6 | R56: 26600 | S56: 19.9 | T56: 6 | U56: 18000 | V56: 4.1 | W56: 6 | X56: 2-Stage | Y56: ECM - CA | Z56: 2014-04-15
A57: Florida Heat Pump | B57: LM 2-stage | C57: LM024 | D57: 024 | E57: Part | F57: 18500 | G57: 18.9 | H57: 6 | I57: 21200 | J57: 6.5 | K57: 6 | L57: 21700 | M57: 33.6 | N57: 6 | O57: 16700 | P57: 5.1 | Q57: 6 | R57: 21000 | S57: 28.1 | T57: 6 | U57: 14400 | V57: 4.4 | W57: 6 | X57: 2-Stage | Y57: ECM - CA | Z57: 2014-04-15
A58: Florida Heat Pump | B58: LM 2-stage | C58: LM036 | D58: 036 | E58: Full | F58: 39000 | G58: 19 | H58: 9 | I58: 42800 | J58: 5.6 | K58: 9 | L58: 43300 | M58: 28 | N58: 9 | O58: 35900 | P58: 5.1 | Q58: 9 | R58: 40800 | S58: 22 | T58: 9 | U58: 28400 | V58: 4.3 | W58: 9 | X58: 2-Stage | Y58: ECM - CA | Z58: 2014-04-15
A59: Florida Heat Pump | B59: LM 2-stage | C59: LM036 | D59: 036 | E59: Part | F59: 29000 | G59: 22.2 | H59: 9 | I59: 31000 | J59: 6.5 | K59: 9 | L59: 32600 | M59: 37 | N59: 9 | O59: 25200 | P59: 5.2 | Q59: 9 | R59: 31900 | S59: 32 | T59: 9 | U59: 22400 | V59: 4.7 | W59: 9 | X59: 2-Stage | Y59: ECM - CA | Z59: 2014-04-15
A60: Florida Heat Pump | B60: LM 2-stage | C60: LM048 | D60: 048 | E60: Full | F60: 49200 | G60: 16.6 | H60: 12 | I60: 56100 | J60: 5.3 | K60: 12 | L60: 55300 | M60: 25.3 | N60: 12 | O60: 46300 | P60: 4.7 | Q60: 12 | R60: 51300 | S60: 19.3 | T60: 12 | U60: 36900 | V60: 4 | W60: 12 | X60: 2-Stage | Y60: ECM - CA | Z60: 2014-04-15
A61: Florida Heat Pump | B61: LM 2-stage | C61: LM048 | D61: 048 | E61: Part | F61: 36700 | G61: 18.9 | H61: 12 | I61: 40900 | J61: 6.2 | K61: 12 | L61: 42000 | M61: 33.8 | N61: 12 | O61: 33700 | P61: 5.2 | Q61: 12 | R61: 39900 | S61: 27.8 | T61: 12 | U61: 29800 | V61: 4.5 | W61: 12 | X61: 2-Stage | Y61: ECM - CA | Z61: 2014-04-15
A62: Florida Heat Pump | B62: LM 2-stage | C62: LM060 | D62: 060 | E62: Full | F62: 63800 | G62: 17 | H62: 15 | I62: 73300 | J62: 5.2 | K62: 15 | L62: 70200 | M62: 24.4 | N62: 15 | O62: 60300 | P62: 4.6 | Q62: 15 | R62: 65100 | S62: 18.9 | T62: 15 | U62: 48000 | V62: 3.9 | W62: 15 | X62: 2-Stage | Y62: ECM - CA | Z62: 2014-04-15
A63: Florida Heat Pump | B63: LM 2-stage | C63: LM060 | D63: 060 | E63: Part | F63: 47500 | G63: 18.7 | H63: 15 | I63: 53600 | J63: 5.8 | K63: 15 | L63: 53300 | M63: 31.2 | N63: 15 | O63: 44300 | P63: 4.8 | Q63: 15 | R63: 51600 | S63: 26.5 | T63: 15 | U63: 39800 | V63: 4.4 | W63: 15 | X63: 2-Stage | Y63: ECM - CA | Z63: 2014-04-15
A64: Florida Heat Pump | B64: LM 2-stage | C64: LM070 | D64: 070 | E64: Full | F64: 71600 | G64: 16.3 | H64: 18 | I64: 84000 | J64: 5.1 | K64: 18 | L64: 78700 | M64: 23.1 | N64: 18 | O64: 70000 | P64: 4.5 | Q64: 18 | R64: 73700 | S64: 18.5 | T64: 18 | U64: 55300 | V64: 3.8 | W64: 18 | X64: 2-Stage | Y64: ECM - CA | Z64: 2014-04-15
A65: Florida Heat Pump | B65: LM 2-stage | C65: LM070 | D65: 070 | E65: Part | F65: 55200 | G65: 17.8 | H65: 18 | I65: 64900 | J65: 5.7 | K65: 18 | L65: 60800 | M65: 28.5 | N65: 18 | O65: 52900 | P65: 4.8 | Q65: 18 | R65: 60300 | S65: 25.4 | T65: 18 | U65: 46900 | V65: 4.3 | W65: 18 | X65: 2-Stage | Y65: ECM - CA | Z65: 2014-04-15
A66: Johnson Controls | B66: RJT 2-stage | C66: RJTV/RJTH026**4 | D66: 026 | E66: Full | F66: 26000 | G66: 16 | H66: 8 | I66: 31000 | J66: 5.5 | K66: 8 | L66: 29000 | M66: 24 | N66: 8 | O66: 25300 | P66: 5 | Q66: 8 | R66: 27200 | S66: 18.6 | T66: 8 | U66: 19500 | V66: 4.2 | W66: 8 | X66: 2-Stage | Y66: ECM - CA | Z66: 2013-04-10
A67: Johnson Controls | B67: RJT 2-stage | C67: RJTV/RJTH026**4 | D67: 026 | E67: Part | F67: 19500 | G67: 18.6 | H67: 7 | I67: 22600 | J67: 6.3 | K67: 7 | L67: 22000 | M67: 31.2 | N67: 7 | O67: 18100 | P67: 5.1 | Q67: 7 | R67: 21500 | S67: 26.8 | T67: 7 | U67: 16200 | V67: 4.7 | W67: 7 | X67: 2-Stage | Y67: ECM - CA | Z67: 2013-04-10
A68: Johnson Controls | B68: RJT 2-stage | C68: RJTV/RJTH038**4 | D68: 038 | E68: Full | F68: 39000 | G68: 17.2 | H68: 9 | I68: 42200 | J68: 5.5 | K68: 9 | L68: 39400 | M68: 24.1 | N68: 9 | O68: 34800 | P68: 5 | Q68: 9 | R68: 40200 | S68: 20.1 | T68: 9 | U68: 27000 | V68: 4.2 | W68: 9 | X68: 2-Stage | Y68: ECM - CA | Z68: 2013-04-10
A69: Johnson Controls | B69: RJT 2-stage | C69: RJTV/RJTH038**4 | D69: 038 | E69: Part | F69: 28000 | G69: 20.1 | H69: 8 | I69: 30300 | J69: 6.4 | K69: 8 | L69: 30500 | M69: 32.1 | N69: 8 | O69: 24800 | P69: 5.4 | Q69: 8 | R69: 30100 | S69: 30 | T69: 8 | U69: 22300 | V69: 5 | W69: 8 | X69: 2-Stage | Y69: ECM - CA | Z69: 2013-04-10
A70: Johnson Controls | B70: RJT 2-stage | C70: RJTV/RJTH049**4 | D70: 049 | E70: Full | F70: 48300 | G70: 15.8 | H70: 12 | I70: 57400 | J70: 5.1 | K70: 12 | L70: 53200 | M70: 22.7 | N70: 12 | O70: 47200 | P70: 4.7 | Q70: 12 | R70: 50000 | S70: 18 | T70: 12 | U70: 37400 | V70: 4.1 | W70: 12 | X70: 2-Stage | Y70: ECM - CA | Z70: 2013-04-10
A71: Johnson Controls | B71: RJT 2-stage | C71: RJTV/RJTH049**4 | D71: 049 | E71: Part | F71: 35900 | G71: 18.1 | H71: 11 | I71: 41900 | J71: 6.1 | K71: 11 | L71: 37800 | M71: 28.3 | N71: 11 | O71: 34000 | P71: 5.2 | Q71: 11 | R71: 38700 | S71: 25.1 | T71: 11 | U71: 31000 | V71: 4.7 | W71: 11 | X71: 2-Stage | Y71: ECM - CA | Z71: 2013-04-10
A72: Johnson Controls | B72: RJT 2-stage | C72: RJTV/RJTH064**4 | D72: 064 | E72: Full | F72: 64500 | G72: 16.2 | H72: 16 | I72: 72500 | J72: 5.1 | K72: 16 | L72: 70700 | M72: 22.7 | N72: 16 | O72: 56800 | P72: 4.6 | Q72: 16 | R72: 67600 | S72: 18 | T72: 16 | U72: 45800 | V72: 3.9 | W72: 16 | X72: 2-Stage | Y72: ECM - CA | Z72: 2013-04-10
A73: Johnson Controls | B73: RJT 2-stage | C73: RJTV/RJTH064**4 | D73: 064 | E73: Part | F73: 47000 | G73: 18.2 | H73: 14 | I73: 51500 | J73: 5.8 | K73: 14 | L73: 51500 | M73: 29.3 | N73: 14 | O73: 39600 | P73: 4.8 | Q73: 14 | R73: 51100 | S73: 25.6 | T73: 14 | U73: 36000 | V73: 4.2 | W73: 14 | X73: 2-Stage | Y73: ECM - CA | Z73: 2013-04-10
A74: Johnson Controls | B74: RJT 2-stage | C74: RJTV/RJTH072**4 | D74: 072 | E74: Full | F74: 71000 | G74: 15 | H74: 18 | I74: 86700 | J74: 5 | K74: 18 | L74: 79900 | M74: 20.4 | N74: 18 | O74: 67900 | P74: 4.4 | Q74: 18 | R74: 73600 | S74: 16.8 | T74: 18 | U74: 54100 | V74: 3.8 | W74: 18 | X74: 2-Stage | Y74: ECM - CA | Z74: 2013-04-10
A75: Johnson Controls | B75: RJT 2-stage | C75: RJTV/RJTH072**4 | D75: 072 | E75: Part | F75: 54000 | G75: 16.6 | H75: 16 | I75: 63400 | J75: 5.4 | K75: 16 | L75: 62200 | M75: 26 | N75: 16 | O75: 51000 | P75: 4.6 | Q75: 16 | R75: 58800 | S75: 23.1 | T75: 16 | U75: 45000 | V75: 4.3 | W75: 16 | X75: 2-Stage | Y75: ECM - CA | Z75: 2013-04-10
A76: Johnson Controls | B76: RKT 2-stage | C76: RKTV/RKTH026**4*1 | D76: 026 | E76: Full | F76: 26000 | G76: 16 | H76: 8 | I76: 31000 | J76: 5.5 | K76: 8 | L76: 29000 | M76: 24 | N76: 8 | O76: 25300 | P76: 5 | Q76: 8 | R76: 27200 | S76: 18.6 | T76: 8 | U76: 19500 | V76: 4.2 | W76: 8 | X76: 2-Stage | Y76: ECM - CA | Z76: 2014-04-11
A77: Johnson Controls | B77: RKT 2-stage | C77: RKTV/RKTH026**4*1 | D77: 026 | E77: Part | F77: 19500 | G77: 18.6 | H77: 7 | I77: 22600 | J77: 6.3 | K77: 7 | L77: 22000 | M77: 31.2 | N77: 7 | O77: 18100 | P77: 5.1 | Q77: 7 | R77: 21500 | S77: 26.8 | T77: 7 | U77: 16200 | V77: 4.7 | W77: 7 | X77: 2-Stage | Y77: ECM - CA | Z77: 2014-04-11
A78: Johnson Controls | B78: RKT 2-stage | C78: RKTV/RKTH026G1*4 | D78: 026 | E78: Full | F78: 26000 | G78: 17.3 | H78: 8 | I78: 30300 | J78: 5.5 | K78: 8 | L78: 29000 | M78: 24 | N78: 8 | O78: 25100 | P78: 5 | Q78: 8 | R78: 27700 | S78: 20.4 | T78: 8 | U78: 19500 | V78: 4.3 | W78: 8 | X78: 2-Stage | Y78: ECM - CA | Z78: 2014-04-11
A79: Johnson Controls | B79: RKT 2-stage | C79: RKTV/RKTH026G1*4 | D79: 026 | E79: Part | F79: 20000 | G79: 19.5 | H79: 7 | I79: 22300 | J79: 6.4 | K79: 7 | L79: 22600 | M79: 32.7 | N79: 7 | O79: 18300 | P79: 5.3 | Q79: 7 | R79: 22000 | S79: 27.9 | T79: 7 | U79: 16300 | V79: 4.8 | W79: 7 | X79: 2-Stage | Y79: ECM - CA | Z79: 2014-04-11
A80: Johnson Controls | B80: RKT 2-stage | C80: RKTV/RKTH038**4*1 | D80: 038 | E80: Full | F80: 39000 | G80: 17.2 | H80: 9 | I80: 42200 | J80: 5.5 | K80: 9 | L80: 39400 | M80: 24.1 | N80: 9 | O80: 34800 | P80: 5 | Q80: 9 | R80: 40200 | S80: 20.1 | T80: 9 | U80: 27000 | V80: 4.2 | W80: 9 | X80: 2-Stage | Y80: ECM - CA | Z80: 2014-04-11
A81: Johnson Controls | B81: RKT 2-stage | C81: RKTV/RKTH038**4*1 | D81: 038 | E81: Part | F81: 28000 | G81: 20.1 | H81: 8 | I81: 30300 | J81: 6.4 | K81: 8 | L81: 30500 | M81: 32.1 | N81: 8 | O81: 24800 | P81: 5.4 | Q81: 8 | R81: 30100 | S81: 30 | T81: 8 | U81: 22300 | V81: 5 | W81: 8 | X81: 2-Stage | Y81: ECM - CA | Z81: 2014-04-11
A82: Johnson Controls | B82: RKT 2-stage | C82: RKTV/RKTH038G1*4 | D82: 038 | E82: Full | F82: 39000 | G82: 18 | H82: 9 | I82: 40300 | J82: 5.4 | K82: 9 | L82: 39400 | M82: 24.1 | N82: 9 | O82: 33600 | P82: 4.8 | Q82: 9 | R82: 40200 | S82: 21 | T82: 9 | U82: 26700 | V82: 4.1 | W82: 9 | X82: 2-Stage | Y82: ECM - CA | Z82: 2014-04-11
A83: Johnson Controls | B83: RKT 2-stage | C83: RKTV/RKTH038G1*4 | D83: 038 | E83: Part | F83: 28500 | G83: 20.3 | H83: 8 | I83: 29100 | J83: 6.3 | K83: 8 | L83: 31500 | M83: 35.4 | N83: 8 | O83: 24000 | P83: 5.1 | Q83: 8 | R83: 30100 | S83: 30 | T83: 8 | U83: 22000 | V83: 4.8 | W83: 8 | X83: 2-Stage | Y83: ECM - CA | Z83: 2014-04-11
A84: Johnson Controls | B84: RKT 2-stage | C84: RKTV/RKTH049**4*1 | D84: 049 | E84: Full | F84: 48300 | G84: 15.8 | H84: 12 | I84: 57400 | J84: 5.1 | K84: 12 | L84: 53200 | M84: 22.7 | N84: 12 | O84: 47200 | P84: 4.7 | Q84: 12 | R84: 50000 | S84: 18 | T84: 12 | U84: 37400 | V84: 4.1 | W84: 12 | X84: 2-Stage | Y84: ECM - CA | Z84: 2014-04-11
A85: Johnson Controls | B85: RKT 2-stage | C85: RKTV/RKTH049**4*1 | D85: 049 | E85: Part | F85: 35900 | G85: 18.1 | H85: 11 | I85: 41900 | J85: 6.1 | K85: 11 | L85: 37800 | M85: 28.3 | N85: 11 | O85: 34000 | P85: 5.2 | Q85: 11 | R85: 38700 | S85: 25.1 | T85: 11 | U85: 31000 | V85: 4.7 | W85: 11 | X85: 2-Stage | Y85: ECM - CA | Z85: 2014-04-11
A86: Johnson Controls | B86: RKT 2-stage | C86: RKTV/RKTH049F1*4 | D86: 049 | E86: Part | F86: 37200 | G86: 19.2 | H86: 11 | I86: 39800 | J86: 5.8 | K86: 11 | L86: 41500 | M86: 33 | N86: 11 | O86: 32300 | P86: 4.7 | Q86: 11 | R86: 40600 | S86: 28.5 | T86: 11 | U86: 30000 | V86: 4.6 | W86: 11 | X86: 2-Stage | Y86: ECM - CA | Z86: 2014-04-11
A87: Johnson Controls | B87: RKT 2-stage | C87: RKTV/RKTH049G1*4 | D87: 049 | E87: Full | F87: 50300 | G87: 17.1 | H87: 12 | I87: 56100 | J87: 5.2 | K87: 12 | L87: 56200 | M87: 24.5 | N87: 12 | O87: 46300 | P87: 4.6 | Q87: 12 | R87: 52000 | S87: 20 | T87: 12 | U87: 37400 | V87: 4 | W87: 12 | X87: 2-Stage | Y87: ECM - CA | Z87: 2014-04-11
A88: Johnson Controls | B88: RKT 2-stage | C88: RKTV/RKTH049G1*4 | D88: 049 | E88: Part | F88: 32700 | G88: 19.2 | H88: 11 | I88: 39800 | J88: 5.8 | K88: 11 | L88: 41500 | M88: 33 | N88: 11 | O88: 32300 | P88: 4.7 | Q88: 11 | R88: 40600 | S88: 28.5 | T88: 11 | U88: 30000 | V88: 4.6 | W88: 11 | X88: 2-Stage | Y88: ECM - CA | Z88: 2014-04-11
A89: Johnson Controls | B89: RKT 2-stage | C89: RKTV/RKTH064**4*1 | D89: 064 | E89: Full | F89: 64500 | G89: 16.2 | H89: 16 | I89: 72500 | J89: 5.1 | K89: 16 | L89: 70700 | M89: 22.7 | N89: 16 | O89: 56800 | P89: 4.6 | Q89: 16 | R89: 67600 | S89: 18 | T89: 16 | U89: 45800 | V89: 3.9 | W89: 16 | X89: 2-Stage | Y89: ECM - CA | Z89: 2014-04-11
A90: Johnson Controls | B90: RKT 2-stage | C90: RKTV/RKTH064**4*1 | D90: 064 | E90: Part | F90: 47000 | G90: 18.2 | H90: 14 | I90: 51500 | J90: 5.8 | K90: 14 | L90: 51500 | M90: 29.3 | N90: 14 | O90: 39600 | P90: 4.8 | Q90: 14 | R90: 51100 | S90: 25.6 | T90: 14 | U90: 36000 | V90: 4.2 | W90: 14 | X90: 2-Stage | Y90: ECM - CA | Z90: 2014-04-11
A91: Johnson Controls | B91: RKT 2-stage | C91: RKTV/RKTH064G1*4 | D91: 064 | E91: Full | F91: 62000 | G91: 16.3 | H91: 16 | I91: 70600 | J91: 5.2 | K91: 16 | L91: 70100 | M91: 23.9 | N91: 16 | O91: 58000 | P91: 4.7 | Q91: 16 | R91: 65100 | S91: 18.7 | T91: 16 | U91: 47100 | V91: 4 | W91: 16 | X91: 2-Stage | Y91: ECM - CA | Z91: 2014-04-11
A92: Johnson Controls | B92: RKT 2-stage | C92: RKTV/RKTH064G1*4 | D92: 064 | E92: Part | F92: 45000 | G92: 18 | H92: 14 | I92: 50100 | J92: 5.8 | K92: 14 | L92: 51500 | M92: 29.9 | N92: 14 | O92: 41300 | P92: 5 | Q92: 14 | R92: 50000 | S92: 25.9 | T92: 14 | U92: 37000 | V92: 4.4 | W92: 14 | X92: 2-Stage | Y92: ECM - CA | Z92: 2014-04-11
A93: Johnson Controls | B93: RKT 2-stage | C93: RKTV/RKTH072**4*1 | D93: 072 | E93: Full | F93: 71000 | G93: 15 | H93: 18 | I93: 86700 | J93: 5 | K93: 18 | L93: 79900 | M93: 20.4 | N93: 18 | O93: 67900 | P93: 4.4 | Q93: 18 | R93: 73600 | S93: 16.8 | T93: 18 | U93: 54100 | V93: 3.8 | W93: 18 | X93: 2-Stage | Y93: ECM - CA | Z93: 2014-04-11
A94: Johnson Controls | B94: RKT 2-stage | C94: RKTV/RKTH072**4*1 | D94: 072 | E94: Part | F94: 54000 | G94: 16.6 | H94: 16 | I94: 63400 | J94: 5.4 | K94: 16 | L94: 62200 | M94: 26 | N94: 16 | O94: 51000 | P94: 4.6 | Q94: 16 | R94: 58800 | S94: 23.1 | T94: 16 | U94: 45000 | V94: 4.3 | W94: 16 | X94: 2-Stage | Y94: ECM - CA | Z94: 2014-04-11
A95: Johnson Controls | B95: RKT 2-stage | C95: RKTV/RKTH072G1*4 | D95: 072 | E95: Full | F95: 69000 | G95: 15 | H95: 18 | I95: 81900 | J95: 4.8 | K95: 18 | L95: 78500 | M95: 22 | N95: 18 | O95: 67500 | P95: 4.3 | Q95: 18 | R95: 71600 | S95: 17 | T95: 18 | U95: 54200 | V95: 3.7 | W95: 18 | X95: 2-Stage | Y95: ECM - CA | Z95: 2014-04-11
A96: Johnson Controls | B96: RKT 2-stage | C96: RKTV/RKTH072G1*4 | D96: 072 | E96: Part | F96: 52800 | G96: 16 | H96: 16 | I96: 61400 | J96: 5.2 | K96: 16 | L96: 61000 | M96: 27 | N96: 16 | O96: 49400 | P96: 4.4 | Q96: 16 | R96: 59000 | S96: 23.4 | T96: 16 | U96: 45000 | V96: 4.1 | W96: 16 | X96: 2-Stage | Y96: ECM - CA | Z96: 2014-04-11
A97: Mammoth | B97: HHA / HLA 2-stage | C97: D024HHA | D97: 024 | E97: Full | F97: 27800 | G97: 17.2 | H97: 6.5 | I97: 28700 | J97: 4.9 | K97: 6.5 | L97: 0 | M97: 0 | N97: 0 | O97: 0 | P97: 0 | Q97: 0 | R97: 28600 | S97: 18.8 | T97: 6.5 | U97: 16400 | V97: 3.1 | W97: 6.5 | X97: 2-Stage | Y97: ECM - CA | Z97: 2013-04-10
A98: Mammoth | B98: HHA / HLA 2-stage | C98: D024HHA | D98: 024 | E98: Part | F98: 19500 | G98: 18.3 | H98: 6.5 | I98: 20200 | J98: 5.1 | K98: 6.5 | L98: 0 | M98: 0 | N98: 0 | O98: 0 | P98: 0 | Q98: 0 | R98: 0 | S98: 0 | T98: 0 | U98: 0 | V98: 0 | W98: 0 | X98: 2-Stage | Y98: ECM - CA | Z98: 2013-04-10
A99: Mammoth | B99: HHA / HLA 2-stage | C99: D030HHA | D99: 030 | E99: Full | F99: 33200 | G99: 17.1 | H99: 9 | I99: 37600 | J99: 4.9 | K99: 9 | L99: 0 | M99: 0 | N99: 0 | O99: 0 | P99: 0 | Q99: 0 | R99: 34100 | S99: 18.6 | T99: 9 | U99: 21500 | V99: 3.1 | W99: 9 | X99: 2-Stage | Y99: ECM - CA | Z99: 2013-04-10
A100: Mammoth | B100: HHA / HLA 2-stage | C100: D030HHA | D100: 030 | E100: Part | F100: 22800 | G100: 17.8 | H100: 9 | I100: 26200 | J100: 5.3 | K100: 9 | L100: 0 | M100: 0 | N100: 0 | O100: 0 | P100: 0 | Q100: 0 | R100: 0 | S100: 0 | T100: 0 | U100: 0 | V100: 0 | W100: 0 | X100: 2-Stage | Y100: ECM - CA | Z100: 2013-04-10
A101: Mammoth | B101: HHA / HLA 2-stage | C101: D036HHA | D101: 036 | E101: Full | F101: 38500 | G101: 16 | H101: 10.5 | I101: 40100 | J101: 4.7 | K101: 10.5 | L101: 0 | M101: 0 | N101: 0 | O101: 0 | P101: 0 | Q101: 0 | R101: 40400 | S101: 17.9 | T101: 10.5 | U101: 23500 | V101: 3 | W101: 10.5 | X101: 2-Stage | Y101: ECM - CA | Z101: 2013-04-10
A102: Mammoth | B102: HHA / HLA 2-stage | C102: D036HHA | D102: 036 | E102: Part | F102: 28000 | G102: 18.1 | H102: 10.5 | I102: 27400 | J102: 5.1 | K102: 10.5 | L102: 0 | M102: 0 | N102: 0 | O102: 0 | P102: 0 | Q102: 0 | R102: 0 | S102: 0 | T102: 0 | U102: 0 | V102: 0 | W102: 0 | X102: 2-Stage | Y102: ECM - CA | Z102: 2013-04-10
A103: Mammoth | B103: HHA / HLA 2-stage | C103: D042HHA | D103: 042 | E103: Full | F103: 47100 | G103: 15.55 | H103: 12 | I103: 47100 | J103: 4.5 | K103: 12 | L103: 0 | M103: 0 | N103: 0 | O103: 0 | P103: 0 | Q103: 0 | R103: 48300 | S103: 18.1 | T103: 12 | U103: 27000 | V103: 2.9 | W103: 12 | X103: 2-Stage | Y103: ECM - CA | Z103: 2013-04-10
A104: Mammoth | B104: HHA / HLA 2-stage | C104: D042HHA | D104: 042 | E104: Part | F104: 32200 | G104: 17.55 | H104: 12 | I104: 32700 | J104: 4.9 | K104: 12 | L104: 0 | M104: 0 | N104: 0 | O104: 0 | P104: 0 | Q104: 0 | R104: 0 | S104: 0 | T104: 0 | U104: 0 | V104: 0 | W104: 0 | X104: 2-Stage | Y104: ECM - CA | Z104: 2013-04-10
A105: Mammoth | B105: HHA / HLA 2-stage | C105: D048HHA | D105: 048 | E105: Full | F105: 45500 | G105: 15.5 | H105: 14 | I105: 58900 | J105: 5 | K105: 14 | L105: 0 | M105: 0 | N105: 0 | O105: 0 | P105: 0 | Q105: 0 | R105: 52200 | S105: 18.9 | T105: 14 | U105: 33800 | V105: 3.2 | W105: 14 | X105: 2-Stage | Y105: ECM - CA | Z105: 2013-04-10
A106: Mammoth | B106: HHA / HLA 2-stage | C106: D048HHA | D106: 048 | E106: Part | F106: 33600 | G106: 16.25 | H106: 14 | I106: 40600 | J106: 5.5 | K106: 14 | L106: 0 | M106: 0 | N106: 0 | O106: 0 | P106: 0 | Q106: 0 | R106: 0 | S106: 0 | T106: 0 | U106: 0 | V106: 0 | W106: 0 | X106: 2-Stage | Y106: ECM - CA | Z106: 2013-04-10
A107: Mammoth | B107: HHA / HLA 2-stage | C107: D060HHA | D107: 060 | E107: Full | F107: 63000 | G107: 15.8 | H107: 17 | I107: 70000 | J107: 4.8 | K107: 17 | L107: 0 | M107: 0 | N107: 0 | O107: 0 | P107: 0 | Q107: 0 | R107: 66300 | S107: 17.7 | T107: 17 | U107: 41000 | V107: 3.1 | W107: 17 | X107: 2-Stage | Y107: ECM - CA | Z107: 2013-04-10
A108: Mammoth | B108: HHA / HLA 2-stage | C108: D060HHA | D108: 060 | E108: Part | F108: 44800 | G108: 16.9 | H108: 17 | I108: 49500 | J108: 4.6 | K108: 17 | L108: 0 | M108: 0 | N108: 0 | O108: 0 | P108: 0 | Q108: 0 | R108: 0 | S108: 0 | T108: 0 | U108: 0 | V108: 0 | W108: 0 | X108: 2-Stage | Y108: ECM - CA | Z108: 2013-04-10
A109: Mammoth | B109: HHA / HLA 2-stage | C109: D072HHA | D109: 072 | E109: Full | F109: 75800 | G109: 16 | H109: 20 | I109: 81800 | J109: 4.3 | K109: 20 | L109: 0 | M109: 0 | N109: 0 | O109: 0 | P109: 0 | Q109: 0 | R109: 75700 | S109: 17.4 | T109: 20 | U109: 47900 | V109: 2.8 | W109: 20 | X109: 2-Stage | Y109: ECM - CA | Z109: 2013-04-10
A110: Mammoth | B110: HHA / HLA 2-stage | C110: D072HHA | D110: 072 | E110: Part | F110: 55100 | G110: 16.3 | H110: 20 | I110: 60900 | J110: 4.5 | K110: 20 | L110: 0 | M110: 0 | N110: 0 | O110: 0 | P110: 0 | Q110: 0 | R110: 0 | S110: 0 | T110: 0 | U110: 0 | V110: 0 | W110: 0 | X110: 2-Stage | Y110: ECM - CA | Z110: 2013-04-10
A111: Mammoth | B111: VHA / VLA 2-stage | C111: D024VHA | D111: 024 | E111: Full | F111: 28000 | G111: 17.5 | H111: 7 | I111: 28000 | J111: 5.1 | K111: 7 | L111: 0 | M111: 0 | N111: 0 | O111: 0 | P111: 0 | Q111: 0 | R111: 28500 | S111: 19.5 | T111: 6.5 | U111: 16400 | V111: 3.2 | W111: 6.5 | X111: 2-Stage | Y111: ECM - CA | Z111: 2014-04-11
A112: Mammoth | B112: VHA / VLA 2-stage | C112: D024VHA | D112: 024 | E112: Part | F112: 19200 | G112: 18.8 | H112: 7 | I112: 19900 | J112: 5.5 | K112: 7 | L112: 0 | M112: 0 | N112: 0 | O112: 0 | P112: 0 | Q112: 0 | R112: 0 | S112: 0 | T112: 0 | U112: 0 | V112: 0 | W112: 0 | X112: 2-Stage | Y112: ECM - CA | Z112: 2014-04-11
A113: Mammoth | B113: VHA / VLA 2-stage | C113: D030VHA | D113: 030 | E113: Full | F113: 34700 | G113: 16.4 | H113: 9 | I113: 35700 | J113: 5.1 | K113: 9 | L113: 0 | M113: 0 | N113: 0 | O113: 0 | P113: 0 | Q113: 0 | R113: 35200 | S113: 18.5 | T113: 9 | U113: 22100 | V113: 3.3 | W113: 9 | X113: 2-Stage | Y113: ECM - CA | Z113: 2014-04-11
A114: Mammoth | B114: VHA / VLA 2-stage | C114: D030VHA | D114: 030 | E114: Part | F114: 22400 | G114: 17.6 | H114: 9 | I114: 25400 | J114: 5.4 | K114: 9 | L114: 0 | M114: 0 | N114: 0 | O114: 0 | P114: 0 | Q114: 0 | R114: 0 | S114: 0 | T114: 0 | U114: 0 | V114: 0 | W114: 0 | X114: 2-Stage | Y114: ECM - CA | Z114: 2014-04-11
A115: Mammoth | B115: VHA / VLA 2-stage | C115: D036VHA | D115: 036 | E115: Full | F115: 38500 | G115: 15.5 | H115: 10.5 | I115: 40000 | J115: 4.8 | K115: 10.5 | L115: 0 | M115: 0 | N115: 0 | O115: 0 | P115: 0 | Q115: 0 | R115: 39400 | S115: 17.4 | T115: 10.5 | U115: 21500 | V115: 3.1 | W115: 10.5 | X115: 2-Stage | Y115: ECM - CA | Z115: 2014-04-11
A116: Mammoth | B116: VHA / VLA 2-stage | C116: D036VHA | D116: 036 | E116: Part | F116: 27500 | G116: 18.8 | H116: 10.5 | I116: 28500 | J116: 5.5 | K116: 10.5 | L116: 0 | M116: 0 | N116: 0 | O116: 0 | P116: 0 | Q116: 0 | R116: 0 | S116: 0 | T116: 0 | U116: 0 | V116: 0 | W116: 0 | X116: 2-Stage | Y116: ECM - CA | Z116: 2014-04-11
A117: Mammoth | B117: VHA / VLA 2-stage | C117: D042VHA | D117: 042 | E117: Full | F117: 44600 | G117: 14.05 | H117: 12 | I117: 49000 | J117: 4.6 | K117: 12 | L117: 0 | M117: 0 | N117: 0 | O117: 0 | P117: 0 | Q117: 0 | R117: 45500 | S117: 16.6 | T117: 12 | U117: 28500 | V117: 2.9 | W117: 12 | X117: 2-Stage | Y117: ECM - CA | Z117: 2014-04-11
A118: Mammoth | B118: VHA / VLA 2-stage | C118: D042VHA | D118: 042 | E118: Part | F118: 30500 | G118: 16.15 | H118: 12 | I118: 35100 | J118: 5.1 | K118: 12 | L118: 0 | M118: 0 | N118: 0 | O118: 0 | P118: 0 | Q118: 0 | R118: 0 | S118: 0 | T118: 0 | U118: 0 | V118: 0 | W118: 0 | X118: 2-Stage | Y118: ECM - CA | Z118: 2014-04-11
A119: Mammoth | B119: VHA / VLA 2-stage | C119: D048VHA | D119: 048 | E119: Full | F119: 49700 | G119: 15.1 | H119: 14 | I119: 54200 | J119: 4.9 | K119: 14 | L119: 0 | M119: 0 | N119: 0 | O119: 0 | P119: 0 | Q119: 0 | R119: 57000 | S119: 20.5 | T119: 14 | U119: 33500 | V119: 3.2 | W119: 14 | X119: 2-Stage | Y119: ECM - CA | Z119: 2014-04-11
A120: Mammoth | B120: VHA / VLA 2-stage | C120: D048VHA | D120: 048 | E120: Part | F120: 37300 | G120: 18 | H120: 14 | I120: 37600 | J120: 5.4 | K120: 14 | L120: 0 | M120: 0 | N120: 0 | O120: 0 | P120: 0 | Q120: 0 | R120: 0 | S120: 0 | T120: 0 | U120: 0 | V120: 0 | W120: 0 | X120: 2-Stage | Y120: ECM - CA | Z120: 2014-04-11
A121: Mammoth | B121: VHA / VLA 2-stage | C121: D060VHA | D121: 060 | E121: Full | F121: 63000 | G121: 15.8 | H121: 17 | I121: 68800 | J121: 4.5 | K121: 17 | L121: 0 | M121: 0 | N121: 0 | O121: 0 | P121: 0 | Q121: 0 | R121: 66200 | S121: 17.7 | T121: 17 | U121: 40100 | V121: 2.9 | W121: 17 | X121: 2-Stage | Y121: ECM - CA | Z121: 2014-04-11
A122: Mammoth | B122: VHA / VLA 2-stage | C122: D060VHA | D122: 060 | E122: Part | F122: 46000 | G122: 17 | H122: 17 | I122: 48800 | J122: 4.6 | K122: 17 | L122: 0 | M122: 0 | N122: 0 | O122: 0 | P122: 0 | Q122: 0 | R122: 0 | S122: 0 | T122: 0 | U122: 0 | V122: 0 | W122: 0 | X122: 2-Stage | Y122: ECM - CA | Z122: 2014-04-11
A123: Mammoth | B123: VHA / VLA 2-stage | C123: D072VHA | D123: 072 | E123: Full | F123: 76700 | G123: 16 | H123: 20 | I123: 80500 | J123: 4.5 | K123: 20 | L123: 0 | M123: 0 | N123: 0 | O123: 0 | P123: 0 | Q123: 0 | R123: 73800 | S123: 15.9 | T123: 20 | U123: 47000 | V123: 2.9 | W123: 20 | X123: 2-Stage | Y123: ECM - CA | Z123: 2014-04-11
A124: Mammoth | B124: VHA / VLA 2-stage | C124: D072VHA | D124: 072 | E124: Part | F124: 53500 | G124: 14.6 | H124: 20 | I124: 58800 | J124: 4.7 | K124: 20 | L124: 0 | M124: 0 | N124: 0 | O124: 0 | P124: 0 | Q124: 0 | R124: 0 | S124: 0 | T124: 0 | U124: 0 | V124: 0 | W124: 0 | X124: 2-Stage | Y124: ECM - CA | Z124: 2014-04-11
A125: McQuay | B125: WGT 2-stage | C125: WGTV/WGTH026B*K | D125: 026 | E125: Full | F125: 26400 | G125: 18 | H125: 6.5 | I125: 29300 | J125: 5.7 | K125: 6.5 | L125: 29700 | M125: 26.9 | N125: 6.5 | O125: 23400 | P125: 5 | Q125: 6.5 | R125: 27600 | S125: 20.7 | T125: 6.5 | U125: 18100 | V125: 4.1 | W125: 6.5 | X125: 2-Stage | Y125: ECM - CA | Z125: 2013-04-10
A126: McQuay | B126: WGT 2-stage | C126: WGTV/WGTH026B*K | D126: 026 | E126: Part | F126: 19800 | G126: 20.3 | H126: 6.5 | I126: 21800 | J126: 6.4 | K126: 6.5 | L126: 22800 | M126: 35.3 | N126: 6.5 | O126: 17200 | P126: 5.1 | Q126: 6.5 | R126: 22000 | S126: 29.8 | T126: 6.5 | U126: 15100 | V126: 4.6 | W126: 6.5 | X126: 2-Stage | Y126: ECM - CA | Z126: 2013-04-10
A127: McQuay | B127: WGT 2-stage | C127: WGTV/WGTH032B*K | D127: 032 | E127: Full | F127: 32500 | G127: 16.5 | H127: 7.5 | I127: 36400 | J127: 5.3 | K127: 7.5 | L127: 35800 | M127: 24 | N127: 7.5 | O127: 30100 | P127: 4.8 | Q127: 7.5 | R127: 33800 | S127: 18.9 | T127: 7.5 | U127: 23700 | V127: 4.1 | W127: 7.5 | X127: 2-Stage | Y127: ECM - CA | Z127: 2013-04-10
A128: McQuay | B128: WGT 2-stage | C128: WGTV/WGTH032B*K | D128: 032 | E128: Part | F128: 24700 | G128: 18.5 | H128: 7.5 | I128: 27800 | J128: 6 | K128: 7.5 | L128: 27600 | M128: 30.1 | N128: 7.5 | O128: 22500 | P128: 5 | Q128: 7.5 | R128: 26800 | S128: 25.9 | T128: 7.5 | U128: 19800 | V128: 4.5 | W128: 7.5 | X128: 2-Stage | Y128: ECM - CA | Z128: 2013-04-10
A129: McQuay | B129: WGT 2-stage | C129: WGTV/WGTH038B*K | D129: 038 | E129: Full | F129: 39000 | G129: 17.6 | H129: 9 | I129: 44400 | J129: 5.6 | K129: 9 | L129: 42000 | M129: 25.4 | N129: 9 | O129: 36200 | P129: 5 | Q129: 9 | R129: 40200 | S129: 20.1 | T129: 9 | U129: 28100 | V129: 4.2 | W129: 9 | X129: 2-Stage | Y129: ECM - CA | Z129: 2013-04-10
A130: McQuay | B130: WGT 2-stage | C130: WGTV/WGTH038B*K | D130: 038 | E130: Part | F130: 28300 | G130: 20.2 | H130: 9 | I130: 32600 | J130: 6.4 | K130: 9 | L130: 31400 | M130: 34.2 | N130: 9 | O130: 26000 | P130: 5.3 | Q130: 9 | R130: 30500 | S130: 28.9 | T130: 9 | U130: 22500 | V130: 4.7 | W130: 9 | X130: 2-Stage | Y130: ECM - CA | Z130: 2013-04-10
A131: McQuay | B131: WGT 2-stage | C131: WGTV/WGTH044B*K | D131: 044 | E131: Full | F131: 44400 | G131: 17.3 | H131: 10.5 | I131: 50100 | J131: 5.4 | K131: 10.5 | L131: 48300 | M131: 25.4 | N131: 10.5 | O131: 40600 | P131: 4.7 | Q131: 10.5 | R131: 45900 | S131: 19.8 | T131: 10.5 | U131: 31700 | V131: 4 | W131: 10.5 | X131: 2-Stage | Y131: ECM - CA | Z131: 2013-04-10
A132: McQuay | B132: WGT 2-stage | C132: WGTV/WGTH044B*K | D132: 044 | E132: Part | F132: 32900 | G132: 19.7 | H132: 10.5 | I132: 36600 | J132: 6 | K132: 10.5 | L132: 36400 | M132: 33.6 | N132: 10.5 | O132: 29000 | P132: 4.9 | Q132: 10.5 | R132: 35500 | S132: 28.3 | T132: 10.5 | U132: 25600 | V132: 4.4 | W132: 10.5 | X132: 2-Stage | Y132: ECM - CA | Z132: 2013-04-10
A133: McQuay | B133: WGT 2-stage | C133: WGTV/WGTH049B*K | D133: 049 | E133: Full | F133: 48900 | G133: 16.7 | H133: 12.2 | I133: 55300 | J133: 5.3 | K133: 12.2 | L133: 53800 | M133: 24.8 | N133: 12.2 | O133: 45900 | P133: 4.7 | Q133: 12.2 | R133: 50600 | S133: 19.2 | T133: 12.2 | U133: 35900 | V133: 4 | W133: 12.2 | X133: 2-Stage | Y133: ECM - CA | Z133: 2013-04-10
A134: McQuay | B134: WGT 2-stage | C134: WGTV/WGTH049B*K | D134: 049 | E134: Part | F134: 36900 | G134: 19.6 | H134: 12.2 | I134: 40800 | J134: 6 | K134: 12.2 | L134: 40700 | M134: 33.5 | N134: 12.2 | O134: 32900 | P134: 4.9 | Q134: 12.2 | R134: 39600 | S134: 28.2 | T134: 12.2 | U134: 29200 | V134: 4.4 | W134: 12.2 | X134: 2-Stage | Y134: ECM - CA | Z134: 2013-04-10
A135: McQuay | B135: WGT 2-stage | C135: WGTV/WGTH064B*K | D135: 064 | E135: Full | F135: 64800 | G135: 17.4 | H135: 16 | I135: 76100 | J135: 5.2 | K135: 16 | L135: 71000 | M135: 24.7 | N135: 16 | O135: 60600 | P135: 4.6 | Q135: 16 | R135: 67100 | S135: 19.7 | T135: 16 | U135: 47000 | V135: 3.9 | W135: 16 | X135: 2-Stage | Y135: ECM - CA | Z135: 2013-04-10
A136: McQuay | B136: WGT 2-stage | C136: WGTV/WGTH064B*K | D136: 064 | E136: Part | F136: 48200 | G136: 19.7 | H136: 16 | I136: 53800 | J136: 5.8 | K136: 16 | L136: 53500 | M136: 32.8 | N136: 16 | O136: 43200 | P136: 4.8 | Q136: 16 | R136: 52200 | S136: 28 | T136: 16 | U136: 38300 | V136: 4.3 | W136: 16 | X136: 2-Stage | Y136: ECM - CA | Z136: 2013-04-10
A137: McQuay | B137: WGT 2-stage | C137: WGTV/WGTH072B*K | D137: 072 | E137: Full | F137: 72700 | G137: 15.9 | H137: 17.5 | I137: 88400 | J137: 5 | K137: 17.5 | L137: 78900 | M137: 22.6 | N137: 17.5 | O137: 70900 | P137: 4.4 | Q137: 17.5 | R137: 75300 | S137: 18.1 | T137: 17.5 | U137: 55200 | V137: 3.7 | W137: 17.5 | X137: 2-Stage | Y137: ECM - CA | Z137: 2013-04-10
A138: McQuay | B138: WGT 2-stage | C138: WGTV/WGTH072B*K | D138: 072 | E138: Part | F138: 56400 | G138: 18.5 | H138: 17.5 | I138: 64600 | J138: 5.5 | K138: 17.5 | L138: 62400 | M138: 30.8 | N138: 17.5 | O138: 52300 | P138: 4.6 | Q138: 17.5 | R138: 60700 | S138: 26.1 | T138: 17.5 | U138: 46200 | V138: 4.2 | W138: 17.5 | X138: 2-Stage | Y138: ECM - CA | Z138: 2013-04-10
A139: Trane | B139: DXH 2-stage | C139: DXHF024 | D139: 024 | E139: Full | F139: 26200 | G139: 17.7 | H139: 5.6 | I139: 31700 | J139: 5.4 | K139: 5.6 | L139: 29100 | M139: 26 | N139: 5.6 | O139: 25600 | P139: 4.7 | Q139: 5.6 | R139: 27400 | S139: 20.4 | T139: 5.6 | U139: 18700 | V139: 3.8 | W139: 5.6 | X139: 2-Stage | Y139: ECM - CA | Z139: 2014-05-08
A140: Trane | B140: DXH 2-stage | C140: DXHF024 | D140: 024 | E140: Part | F140: 19600 | G140: 19.4 | H140: 5.6 | I140: 23800 | J140: 5.9 | K140: 5.6 | L140: 22200 | M140: 32.2 | N140: 5.6 | O140: 18900 | P140: 4.9 | Q140: 5.6 | R140: 21500 | S140: 27.7 | T140: 5.6 | U140: 16000 | V140: 4.2 | W140: 5.6 | X140: 2-Stage | Y140: ECM - CA | Z140: 2014-05-08
A141: Trane | B141: DXH 2-stage | C141: DXHF036 | D141: 036 | E141: Full | F141: 37400 | G141: 16.3 | H141: 8.4 | I141: 47500 | J141: 5.1 | K141: 8.4 | L141: 41800 | M141: 24.1 | N141: 8.4 | O141: 39500 | P141: 4.7 | Q141: 8.4 | R141: 39100 | S141: 18.7 | T141: 8.4 | U141: 29200 | V141: 3.8 | W141: 8.4 | X141: 2-Stage | Y141: ECM - CA | Z141: 2014-05-08
A142: Trane | B142: DXH 2-stage | C142: DXHF036 | D142: 036 | E142: Part | F142: 27700 | G142: 18.8 | H142: 8.4 | I142: 34400 | J142: 5.7 | K142: 8.4 | L142: 31200 | M142: 31.5 | N142: 8.4 | O142: 28200 | P142: 5.1 | Q142: 8.4 | R142: 30200 | S142: 27.2 | T142: 8.4 | U142: 24000 | V142: 4.3 | W142: 8.4 | X142: 2-Stage | Y142: ECM - CA | Z142: 2014-05-08
A143: Trane | B143: DXH 2-stage | C143: DXHF048 | D143: 048 | E143: Full | F143: 51200 | G143: 17.2 | H143: 11.2 | I143: 62400 | J143: 5.4 | K143: 11.2 | L143: 56600 | M143: 24.7 | N143: 11.2 | O143: 50800 | P143: 4.8 | Q143: 11.2 | R143: 53000 | S143: 19.5 | T143: 11.2 | U143: 38800 | V143: 3.9 | W143: 11.2 | X143: 2-Stage | Y143: ECM - CA | Z143: 2014-05-08
A144: Trane | B144: DXH 2-stage | C144: DXHF048 | D144: 048 | E144: Part | F144: 38200 | G144: 19.2 | H144: 11.2 | I144: 46400 | J144: 5.9 | K144: 11.2 | L144: 42800 | M144: 31.6 | N144: 11.2 | O144: 37500 | P144: 4.9 | Q144: 11.2 | R144: 41100 | S144: 26.7 | T144: 11.2 | U144: 32700 | V144: 4.4 | W144: 11.2 | X144: 2-Stage | Y144: ECM - CA | Z144: 2014-05-08
A145: Trane | B145: DXH 2-stage | C145: DXHF060 | D145: 060 | E145: Full | F145: 59300 | G145: 15.1 | H145: 14 | I145: 82000 | J145: 5.1 | K145: 14 | L145: 66800 | M145: 20.9 | N145: 14 | O145: 67400 | P145: 4.6 | Q145: 14 | R145: 62100 | S145: 17.2 | T145: 14 | U145: 50800 | V145: 3.8 | W145: 14 | X145: 2-Stage | Y145: ECM - CA | Z145: 2014-05-08
A146: Trane | B146: DXH 2-stage | C146: DXHF060 | D146: 060 | E146: Part | F146: 44100 | G146: 17 | H146: 14 | I146: 59700 | J146: 5.6 | K146: 14 | L146: 50400 | M146: 27.2 | N146: 14 | O146: 48100 | P146: 4.8 | Q146: 14 | R146: 48800 | S146: 23.8 | T146: 14 | U146: 41100 | V146: 4.2 | W146: 14 | X146: 2-Stage | Y146: ECM - CA | Z146: 2014-05-08
A147: Trane | B147: DXH 2-stage | C147: DXHF070 | D147: 070 | E147: Full | F147: 67800 | G147: 15.5 | H147: 15.4 | I147: 88300 | J147: 4.9 | K147: 15.4 | L147: 74100 | M147: 22.1 | N147: 15.4 | O147: 72700 | P147: 4.5 | Q147: 15.4 | R147: 70400 | S147: 17.6 | T147: 15.4 | U147: 56800 | V147: 3.8 | W147: 15.4 | X147: 2-Stage | Y147: ECM - CA | Z147: 2014-05-08
A148: Trane | B148: DXH 2-stage | C148: DXHF070 | D148: 070 | E148: Part | F148: 52500 | G148: 17 | H148: 15.4 | I148: 67100 | J148: 5.2 | K148: 15.4 | L148: 58300 | M148: 27.6 | N148: 15.4 | O148: 54600 | P148: 4.5 | Q148: 15.4 | R148: 56600 | S148: 23.7 | T148: 15.4 | U148: 47900 | V148: 4.1 | W148: 15.4 | X148: 2-Stage | Y148: ECM - CA | Z148: 2014-05-08
A149: Trane | B149: DXV 2-stage | C149: DXVF024 | D149: 024 | E149: Full | F149: 25700 | G149: 17.7 | H149: 5.6 | I149: 31300 | J149: 5.3 | K149: 5.6 | L149: 28000 | M149: 25.8 | N149: 5.6 | O149: 25400 | P149: 4.9 | Q149: 5.6 | R149: 26400 | S149: 20.2 | T149: 5.6 | U149: 19300 | V149: 4 | W149: 5.6 | X149: 2-Stage | Y149: ECM - CA | Z149: 2014-05-08
A150: Trane | B150: DXV 2-stage | C150: DXVF024 | D150: 024 | E150: Part | F150: 19400 | G150: 19.6 | H150: 5.6 | I150: 23600 | J150: 6 | K150: 5.6 | L150: 21400 | M150: 32.5 | N150: 5.6 | O150: 19000 | P150: 5.1 | Q150: 5.6 | R150: 21000 | S150: 28 | T150: 5.6 | U150: 16300 | V150: 4.4 | W150: 5.6 | X150: 2-Stage | Y150: ECM - CA | Z150: 2014-05-08
A151: Trane | B151: DXV 2-stage | C151: DXVF036 | D151: 036 | E151: Full | F151: 37200 | G151: 16.6 | H151: 8.4 | I151: 47100 | J151: 5.1 | K151: 8.4 | L151: 40700 | M151: 24.1 | N151: 8.4 | O151: 38800 | P151: 4.7 | Q151: 8.4 | R151: 38400 | S151: 19.1 | T151: 8.4 | U151: 30200 | V151: 4 | W151: 8.4 | X151: 2-Stage | Y151: ECM - CA | Z151: 2014-05-08
A152: Trane | B152: DXV 2-stage | C152: DXVF036 | D152: 036 | E152: Part | F152: 27100 | G152: 18.9 | H152: 8.4 | I152: 34100 | J152: 5.8 | K152: 8.4 | L152: 30100 | M152: 30.8 | N152: 8.4 | O152: 27700 | P152: 5 | Q152: 8.4 | R152: 29300 | S152: 26.3 | T152: 8.4 | U152: 24200 | V152: 4.4 | W152: 8.4 | X152: 2-Stage | Y152: ECM - CA | Z152: 2014-05-08
A153: Trane | B153: DXV 2-stage | C153: DXVF048 | D153: 048 | E153: Full | F153: 49500 | G153: 17.1 | H153: 11.2 | I153: 61100 | J153: 5.5 | K153: 11.2 | L153: 54200 | M153: 24.8 | N153: 11.2 | O153: 50400 | P153: 4.9 | Q153: 11.2 | R153: 51100 | S153: 19.4 | T153: 11.2 | U153: 39300 | V153: 4.1 | W153: 11.2 | X153: 2-Stage | Y153: ECM - CA | Z153: 2014-05-08
A154: Trane | B154: DXV 2-stage | C154: DXVF048 | D154: 048 | E154: Part | F154: 36500 | G154: 18.6 | H154: 11.2 | I154: 45500 | J154: 6.1 | K154: 11.2 | L154: 41000 | M154: 31 | N154: 11.2 | O154: 37000 | P154: 5.1 | Q154: 11.2 | R154: 39800 | S154: 26.5 | T154: 11.2 | U154: 32200 | V154: 4.5 | W154: 11.2 | X154: 2-Stage | Y154: ECM - CA | Z154: 2014-05-08
A155: Trane | B155: DXV 2-stage | C155: DXVF060 | D155: 060 | E155: Full | F155: 59800 | G155: 16.1 | H155: 14 | I155: 79000 | J155: 5.3 | K155: 14 | L155: 65700 | M155: 22.7 | N155: 14 | O155: 65400 | P155: 4.8 | Q155: 14 | R155: 62100 | S155: 18.2 | T155: 14 | U155: 51100 | V155: 4 | W155: 14 | X155: 2-Stage | Y155: ECM - CA | Z155: 2014-05-08
A156: Trane | B156: DXV 2-stage | C156: DXVF060 | D156: 060 | E156: Part | F156: 43000 | G156: 17.2 | H156: 14 | I156: 56100 | J156: 5.7 | K156: 14 | L156: 48700 | M156: 28.4 | N156: 14 | O156: 45500 | P156: 4.8 | Q156: 14 | R156: 47200 | S156: 24.3 | T156: 14 | U156: 39100 | V156: 4.3 | W156: 14 | X156: 2-Stage | Y156: ECM - CA | Z156: 2014-05-08
A157: Trane | B157: DXV 2-stage | C157: DXVF070 | D157: 070 | E157: Full | F157: 68300 | G157: 15.6 | H157: 15.4 | I157: 90300 | J157: 4.9 | K157: 15.4 | L157: 74600 | M157: 22.5 | N157: 15.4 | O157: 75000 | P157: 4.5 | Q157: 15.4 | R157: 70700 | S157: 17.8 | T157: 15.4 | U157: 58500 | V157: 3.9 | W157: 15.4 | X157: 2-Stage | Y157: ECM - CA | Z157: 2014-05-08
A158: Trane | B158: DXV 2-stage | C158: DXVF070 | D158: 070 | E158: Part | F158: 52100 | G158: 16.9 | H158: 15.4 | I158: 69600 | J158: 5.3 | K158: 15.4 | L158: 58400 | M158: 27.8 | N158: 15.4 | O158: 56700 | P158: 4.6 | Q158: 15.4 | R158: 56800 | S158: 23.9 | T158: 15.4 | U158: 49700 | V158: 4.2 | W158: 15.4 | X158: 2-Stage | Y158: ECM - CA | Z158: 2014-05-08
A159: Trane | B159: TCT 2-stage | C159: TCT026**4 | D159: 026 | E159: Full | F159: 25600 | G159: 15.7 | H159: 9 | I159: 30400 | J159: 5.4 | K159: 9 | L159: 29000 | M159: 24 | N159: 8 | O159: 25300 | P159: 5 | Q159: 8 | R159: 27000 | S159: 18.4 | T159: 8 | U159: 18900 | V159: 4.1 | W159: 8 | X159: 2-Stage | Y159: ECM - CA | Z159: 2013-04-10
A160: Trane | B160: TCT 2-stage | C160: TCT026**4 | D160: 026 | E160: Part | F160: 19400 | G160: 18.5 | H160: 7 | I160: 22600 | J160: 6.2 | K160: 7 | L160: 21700 | M160: 30.8 | N160: 7 | O160: 18100 | P160: 5.2 | Q160: 7 | R160: 21300 | S160: 26.4 | T160: 7 | U160: 16000 | V160: 4.6 | W160: 7 | X160: 2-Stage | Y160: ECM - CA | Z160: 2013-04-10
A161: Trane | B161: TCT 2-stage | C161: TCT038**4 | D161: 038 | E161: Full | F161: 38600 | G161: 17.1 | H161: 9 | I161: 41800 | J161: 5.5 | K161: 9 | L161: 39400 | M161: 24 | N161: 9 | O161: 34700 | P161: 4.9 | Q161: 9 | R161: 40000 | S161: 19.8 | T161: 9 | U161: 26600 | V161: 4.1 | W161: 9 | X161: 2-Stage | Y161: ECM - CA | Z161: 2013-04-10
A162: Trane | B162: TCT 2-stage | C162: TCT038**4 | D162: 038 | E162: Part | F162: 27500 | G162: 19.4 | H162: 8 | I162: 29600 | J162: 6.4 | K162: 8 | L162: 30200 | M162: 31.7 | N162: 8 | O162: 24800 | P162: 5.3 | Q162: 8 | R162: 30000 | S162: 28 | T162: 8 | U162: 22200 | V162: 4.8 | W162: 8 | X162: 2-Stage | Y162: ECM - CA | Z162: 2013-04-10
A163: Trane | B163: TCT 2-stage | C163: TCT049**4 | D163: 049 | E163: Full | F163: 47900 | G163: 15.8 | H163: 12 | I163: 57000 | J163: 5.1 | K163: 12 | L163: 53000 | M163: 22.6 | N163: 12 | O163: 47000 | P163: 4.7 | Q163: 12 | R163: 49600 | S163: 18 | T163: 12 | U163: 37300 | V163: 4 | W163: 12 | X163: 2-Stage | Y163: ECM - CA | Z163: 2013-04-10
A164: Trane | B164: TCT 2-stage | C164: TCT049**4 | D164: 049 | E164: Part | F164: 35800 | G164: 18 | H164: 11 | I164: 41800 | J164: 6 | K164: 11 | L164: 37600 | M164: 28.3 | N164: 11 | O164: 34000 | P164: 5.2 | Q164: 11 | R164: 38700 | S164: 25 | T164: 11 | U164: 31000 | V164: 4.5 | W164: 11 | X164: 2-Stage | Y164: ECM - CA | Z164: 2013-04-10
A165: Trane | B165: TCT 2-stage | C165: TCT064**4 | D165: 064 | E165: Full | F165: 64100 | G165: 16 | H165: 16 | I165: 72100 | J165: 5 | K165: 16 | L165: 70700 | M165: 22.2 | N165: 16 | O165: 56200 | P165: 4.5 | Q165: 16 | R165: 67600 | S165: 17.8 | T165: 16 | U165: 45400 | V165: 3.8 | W165: 16 | X165: 2-Stage | Y165: ECM - CA | Z165: 2013-04-10
A166: Trane | B166: TCT 2-stage | C166: TCT064**4 | D166: 064 | E166: Part | F166: 47000 | G166: 18.1 | H166: 14 | I166: 50500 | J166: 5.7 | K166: 14 | L166: 51500 | M166: 29 | N166: 14 | O166: 39400 | P166: 4.7 | Q166: 14 | R166: 51100 | S166: 25.6 | T166: 14 | U166: 34000 | V166: 4.1 | W166: 14 | X166: 2-Stage | Y166: ECM - CA | Z166: 2013-04-10
A167: Trane | B167: TCT 2-stage | C167: TCT072**4 | D167: 072 | E167: Full | F167: 71000 | G167: 14.9 | H167: 18 | I167: 86400 | J167: 5 | K167: 18 | L167: 79200 | M167: 20.1 | N167: 18 | O167: 67500 | P167: 4.3 | Q167: 18 | R167: 73000 | S167: 16.8 | T167: 18 | U167: 54000 | V167: 3.7 | W167: 18 | X167: 2-Stage | Y167: ECM - CA | Z167: 2013-04-10
A168: Trane | B168: TCT 2-stage | C168: TCT072**4 | D168: 072 | E168: Part | F168: 54000 | G168: 16.6 | H168: 16 | I168: 62900 | J168: 5.2 | K168: 16 | L168: 62000 | M168: 25 | N168: 16 | O168: 50500 | P168: 4.4 | Q168: 16 | R168: 58400 | S168: 22.7 | T168: 16 | U168: 44200 | V168: 4 | W168: 16 | X168: 2-Stage | Y168: ECM - CA | Z168: 2013-04-10
A169: Waterfurnace | B169: NB 2-stage | C169: NBV/NBH026**4*4 | D169: 026 | E169: Full | F169: 26000 | G169: 17.3 | H169: 8 | I169: 30300 | J169: 5.5 | K169: 8 | L169: 29000 | M169: 24 | N169: 8 | O169: 25100 | P169: 5 | Q169: 8 | R169: 27700 | S169: 20.4 | T169: 8 | U169: 19500 | V169: 4.3 | W169: 8 | X169: 2-Stage | Y169: ECM - CA | Z169: 2013-04-10
A170: Waterfurnace | B170: NB 2-stage | C170: NBV/NBH026**4*4 | D170: 026 | E170: Part | F170: 20000 | G170: 19.5 | H170: 7 | I170: 22300 | J170: 6.4 | K170: 7 | L170: 22600 | M170: 32.7 | N170: 7 | O170: 18300 | P170: 5.3 | Q170: 7 | R170: 22000 | S170: 27.9 | T170: 7 | U170: 16300 | V170: 4.8 | W170: 7 | X170: 2-Stage | Y170: ECM - CA | Z170: 2013-04-10
A171: Waterfurnace | B171: NB 2-stage | C171: NBV/NBH038**4*4 | D171: 038 | E171: Full | F171: 39000 | G171: 18 | H171: 9 | I171: 40300 | J171: 5.4 | K171: 9 | L171: 39400 | M171: 24.1 | N171: 9 | O171: 33600 | P171: 4.8 | Q171: 9 | R171: 40200 | S171: 21 | T171: 9 | U171: 26700 | V171: 4.1 | W171: 9 | X171: 2-Stage | Y171: ECM - CA | Z171: 2013-04-10
A172: Waterfurnace | B172: NB 2-stage | C172: NBV/NBH038**4*4 | D172: 038 | E172: Part | F172: 28500 | G172: 20.3 | H172: 8 | I172: 29100 | J172: 6.3 | K172: 8 | L172: 31500 | M172: 35.4 | N172: 8 | O172: 24000 | P172: 5.1 | Q172: 8 | R172: 30100 | S172: 30 | T172: 8 | U172: 22000 | V172: 4.8 | W172: 7 | X172: 2-Stage | Y172: ECM - CA | Z172: 2013-04-10
A173: Waterfurnace | B173: NB 2-stage | C173: NBV/NBH049**4*4 | D173: 049 | E173: Full | F173: 50300 | G173: 17.1 | H173: 12 | I173: 56100 | J173: 5.2 | K173: 12 | L173: 56200 | M173: 24.5 | N173: 12 | O173: 46300 | P173: 4.6 | Q173: 12 | R173: 52000 | S173: 20 | T173: 12 | U173: 37400 | V173: 4 | W173: 12 | X173: 2-Stage | Y173: ECM - CA | Z173: 2013-04-10
A174: Waterfurnace | B174: NB 2-stage | C174: NBV/NBH049**4*4 | D174: 049 | E174: Part | F174: 37200 | G174: 19.2 | H174: 11 | I174: 39800 | J174: 5.8 | K174: 11 | L174: 41500 | M174: 33 | N174: 11 | O174: 32300 | P174: 4.7 | Q174: 11 | R174: 40600 | S174: 28.5 | T174: 11 | U174: 30000 | V174: 4.6 | W174: 11 | X174: 2-Stage | Y174: ECM - CA | Z174: 2013-04-10
A175: Waterfurnace | B175: NB 2-stage | C175: NBV/NBH064**4*4 | D175: 064 | E175: Full | F175: 62000 | G175: 16.3 | H175: 16 | I175: 70600 | J175: 5.2 | K175: 16 | L175: 70100 | M175: 23.9 | N175: 16 | O175: 58000 | P175: 4.7 | Q175: 16 | R175: 65100 | S175: 18.7 | T175: 16 | U175: 47100 | V175: 4 | W175: 16 | X175: 2-Stage | Y175: ECM - CA | Z175: 2013-04-10
A176: Waterfurnace | B176: NB 2-stage | C176: NBV/NBH064**4*4 | D176: 064 | E176: Part | F176: 45000 | G176: 18 | H176: 14 | I176: 50100 | J176: 5.8 | K176: 14 | L176: 51500 | M176: 29.9 | N176: 14 | O176: 41300 | P176: 5 | Q176: 14 | R176: 50000 | S176: 25.9 | T176: 14 | U176: 37000 | V176: 4.4 | W176: 14 | X176: 2-Stage | Y176: ECM - CA | Z176: 2013-04-10
A177: Waterfurnace | B177: NB 2-stage | C177: NBV/NBH072**4*4 | D177: 072 | E177: Full | F177: 69000 | G177: 15 | H177: 18 | I177: 81900 | J177: 4.8 | K177: 18 | L177: 78500 | M177: 22 | N177: 18 | O177: 67500 | P177: 4.3 | Q177: 18 | R177: 71600 | S177: 17 | T177: 18 | U177: 54200 | V177: 3.7 | W177: 18 | X177: 2-Stage | Y177: ECM - CA | Z177: 2013-04-10
A178: Waterfurnace | B178: NB 2-stage | C178: NBV/NBH072**4*4 | D178: 072 | E178: Part | F178: 52800 | G178: 16 | H178: 16 | I178: 61400 | J178: 4.4 | K178: 16 | L178: 61000 | M178: 27 | N178: 16 | O178: 49400 | P178: 4.4 | Q178: 16 | R178: 59000 | S178: 23.4 | T178: 16 | U178: 45000 | V178: 4.1 | W178: 16 | X178: 2-Stage | Y178: ECM - CA | Z178: 2013-04-10
A179: Waterfurnace | B179: ND 2-stage | C179: NDV/NDH026**4*1 | D179: 026 | E179: Full | F179: 26000 | G179: 16 | H179: 8 | I179: 31000 | J179: 5.5 | K179: 8 | L179: 29000 | M179: 24 | N179: 8 | O179: 25300 | P179: 5 | Q179: 8 | R179: 27200 | S179: 18.6 | T179: 8 | U179: 19500 | V179: 4.2 | W179: 8 | X179: 2-Stage | Y179: ECM - CA | Z179: 2014-04-11
A180: Waterfurnace | B180: ND 2-stage | C180: NDV/NDH026**4*1 | D180: 026 | E180: Part | F180: 19500 | G180: 18.6 | H180: 7 | I180: 22600 | J180: 6.3 | K180: 7 | L180: 22000 | M180: 31.2 | N180: 7 | O180: 18100 | P180: 5.1 | Q180: 7 | R180: 21500 | S180: 26.8 | T180: 7 | U180: 16200 | V180: 4.7 | W180: 7 | X180: 2-Stage | Y180: ECM - CA | Z180: 2014-04-11
A181: Waterfurnace | B181: ND 2-stage | C181: NDV/NDH026G1*4 | D181: 026 | E181: Full | F181: 26000 | G181: 17.3 | H181: 8 | I181: 30300 | J181: 5.5 | K181: 8 | L181: 29000 | M181: 24 | N181: 8 | O181: 25100 | P181: 5 | Q181: 8 | R181: 27700 | S181: 20.4 | T181: 8 | U181: 19500 | V181: 4.3 | W181: 8 | X181: 2-Stage | Y181: ECM - CA | Z181: 2014-04-11
A182: Waterfurnace | B182: ND 2-stage | C182: NDV/NDH026G1*4 | D182: 026 | E182: Part | F182: 20000 | G182: 19.5 | H182: 7 | I182: 22300 | J182: 6.4 | K182: 7 | L182: 22600 | M182: 32.7 | N182: 7 | O182: 18300 | P182: 5.3 | Q182: 7 | R182: 22000 | S182: 27.9 | T182: 7 | U182: 16300 | V182: 4.8 | W182: 7 | X182: 2-Stage | Y182: ECM - CA | Z182: 2014-04-11
A183: Waterfurnace | B183: ND 2-stage | C183: NDV/NDH038**4*1 | D183: 038 | E183: Full | F183: 39000 | G183: 17.2 | H183: 9 | I183: 42200 | J183: 5.5 | K183: 9 | L183: 39400 | M183: 24.1 | N183: 9 | O183: 34800 | P183: 5 | Q183: 9 | R183: 40200 | S183: 20.1 | T183: 9 | U183: 27000 | V183: 4.2 | W183: 9 | X183: 2-Stage | Y183: ECM - CA | Z183: 2014-04-11
A184: Waterfurnace | B184: ND 2-stage | C184: NDV/NDH038**4*1 | D184: 038 | E184: Part | F184: 28000 | G184: 20.1 | H184: 8 | I184: 30300 | J184: 6.4 | K184: 8 | L184: 30500 | M184: 32.1 | N184: 8 | O184: 24800 | P184: 5.4 | Q184: 8 | R184: 30100 | S184: 30 | T184: 8 | U184: 22300 | V184: 5 | W184: 8 | X184: 2-Stage | Y184: ECM - CA | Z184: 2014-04-11
A185: Waterfurnace | B185: ND 2-stage | C185: NDV/NDH038G1*4 | D185: 038 | E185: Full | F185: 39000 | G185: 18 | H185: 9 | I185: 40300 | J185: 5.4 | K185: 9 | L185: 39400 | M185: 24.1 | N185: 9 | O185: 33600 | P185: 4.8 | Q185: 9 | R185: 40200 | S185: 21 | T185: 9 | U185: 26700 | V185: 4.1 | W185: 9 | X185: 2-Stage | Y185: ECM - CA | Z185: 2014-04-11
A186: Waterfurnace | B186: ND 2-stage | C186: NDV/NDH038G1*4 | D186: 038 | E186: Part | F186: 28500 | G186: 20.3 | H186: 8 | I186: 29100 | J186: 6.3 | K186: 8 | L186: 31500 | M186: 35.4 | N186: 8 | O186: 24000 | P186: 5.1 | Q186: 8 | R186: 30100 | S186: 30 | T186: 8 | U186: 22000 | V186: 4.8 | W186: 8 | X186: 2-Stage | Y186: ECM - CA | Z186: 2014-04-11
A187: Waterfurnace | B187: ND 2-stage | C187: NDV/NDH049**4*1 | D187: 049 | E187: Full | F187: 48300 | G187: 15.8 | H187: 12 | I187: 57400 | J187: 5.1 | K187: 12 | L187: 53200 | M187: 22.7 | N187: 12 | O187: 47200 | P187: 4.7 | Q187: 12 | R187: 50000 | S187: 18 | T187: 12 | U187: 37400 | V187: 4.1 | W187: 12 | X187: 2-Stage | Y187: ECM - CA | Z187: 2014-04-11
A188: Waterfurnace | B188: ND 2-stage | C188: NDV/NDH049**4*1 | D188: 049 | E188: Part | F188: 35900 | G188: 18.1 | H188: 11 | I188: 41900 | J188: 6.1 | K188: 11 | L188: 37800 | M188: 28.3 | N188: 11 | O188: 34000 | P188: 5.2 | Q188: 11 | R188: 38700 | S188: 25.1 | T188: 11 | U188: 31000 | V188: 4.7 | W188: 11 | X188: 2-Stage | Y188: ECM - CA | Z188: 2014-04-11
A189: Waterfurnace | B189: ND 2-stage | C189: NDV/NDH049F1*4 | D189: 049 | E189: Part | F189: 37200 | G189: 19.2 | H189: 11 | I189: 39800 | J189: 5.8 | K189: 11 | L189: 41500 | M189: 33 | N189: 11 | O189: 32300 | P189: 4.7 | Q189: 11 | R189: 40600 | S189: 28.5 | T189: 11 | U189: 30000 | V189: 4.6 | W189: 11 | X189: 2-Stage | Y189: ECM - CA | Z189: 2014-04-11
A190: Waterfurnace | B190: ND 2-stage | C190: NDV/NDH049G1*4 | D190: 049 | E190: Full | F190: 50300 | G190: 17.1 | H190: 12 | I190: 56100 | J190: 5.2 | K190: 12 | L190: 56200 | M190: 24.5 | N190: 12 | O190: 46300 | P190: 4.6 | Q190: 12 | R190: 52000 | S190: 20 | T190: 12 | U190: 37400 | V190: 4 | W190: 12 | X190: 2-Stage | Y190: ECM - CA | Z190: 2014-04-11
A191: Waterfurnace | B191: ND 2-stage | C191: NDV/NDH049G1*4 | D191: 049 | E191: Part | F191: 32700 | G191: 19.2 | H191: 11 | I191: 39800 | J191: 5.8 | K191: 11 | L191: 41500 | M191: 33 | N191: 11 | O191: 32300 | P191: 4.7 | Q191: 11 | R191: 40600 | S191: 28.5 | T191: 11 | U191: 30000 | V191: 4.6 | W191: 11 | X191: 2-Stage | Y191: ECM - CA | Z191: 2014-04-11
A192: Waterfurnace | B192: ND 2-stage | C192: NDV/NDH064**4*1 | D192: 064 | E192: Full | F192: 64500 | G192: 16.2 | H192: 16 | I192: 72500 | J192: 5.1 | K192: 16 | L192: 70700 | M192: 22.7 | N192: 16 | O192: 56800 | P192: 4.6 | Q192: 16 | R192: 67600 | S192: 18 | T192: 16 | U192: 45800 | V192: 3.9 | W192: 16 | X192: 2-Stage | Y192: ECM - CA | Z192: 2014-04-11
A193: Waterfurnace | B193: ND 2-stage | C193: NDV/NDH064**4*1 | D193: 064 | E193: Part | F193: 47000 | G193: 18.2 | H193: 14 | I193: 51500 | J193: 5.8 | K193: 14 | L193: 51500 | M193: 29.3 | N193: 14 | O193: 39600 | P193: 4.8 | Q193: 14 | R193: 51100 | S193: 25.6 | T193: 14 | U193: 36000 | V193: 4.2 | W193: 14 | X193: 2-Stage | Y193: ECM - CA | Z193: 2014-04-11
A194: Waterfurnace | B194: ND 2-stage | C194: NDV/NDH064G1*4 | D194: 064 | E194: Full | F194: 62000 | G194: 16.3 | H194: 16 | I194: 70600 | J194: 5.2 | K194: 16 | L194: 70100 | M194: 23.9 | N194: 16 | O194: 58000 | P194: 4.7 | Q194: 16 | R194: 65100 | S194: 18.7 | T194: 16 | U194: 47100 | V194: 4 | W194: 16 | X194: 2-Stage | Y194: ECM - CA | Z194: 2014-04-11
A195: Waterfurnace | B195: ND 2-stage | C195: NDV/NDH064G1*4 | D195: 064 | E195: Part | F195: 45000 | G195: 18 | H195: 14 | I195: 50100 | J195: 5.8 | K195: 14 | L195: 51500 | M195: 29.9 | N195: 14 | O195: 41300 | P195: 5 | Q195: 14 | R195: 50000 | S195: 25.9 | T195: 14 | U195: 37000 | V195: 4.4 | W195: 14 | X195: 2-Stage | Y195: ECM - CA | Z195: 2014-04-11
A196: Waterfurnace | B196: ND 2-stage | C196: NDV/NDH072**4*1 | D196: 072 | E196: Full | F196: 71000 | G196: 15 | H196: 18 | I196: 86700 | J196: 5 | K196: 18 | L196: 79900 | M196: 20.4 | N196: 18 | O196: 67900 | P196: 4.4 | Q196: 18 | R196: 73600 | S196: 16.8 | T196: 18 | U196: 54100 | V196: 3.8 | W196: 18 | X196: 2-Stage | Y196: ECM - CA | Z196: 2014-04-11
A197: Waterfurnace | B197: ND 2-stage | C197: NDV/NDH072**4*1 | D197: 072 | E197: Part | F197: 54000 | G197: 16.6 | H197: 16 | I197: 63400 | J197: 5.4 | K197: 16 | L197: 62200 | M197: 26 | N197: 16 | O197: 51000 | P197: 4.6 | Q197: 16 | R197: 58800 | S197: 23.1 | T197: 16 | U197: 45000 | V197: 4.3 | W197: 16 | X197: 2-Stage | Y197: ECM - CA | Z197: 2014-04-11
A198: Waterfurnace | B198: ND 2-stage | C198: NDV/NDH072G1*4 | D198: 072 | E198: Full | F198: 69000 | G198: 15 | H198: 18 | I198: 81900 | J198: 4.8 | K198: 18 | L198: 78500 | M198: 22 | N198: 18 | O198: 67500 | P198: 4.3 | Q198: 18 | R198: 71600 | S198: 17 | T198: 18 | U198: 54200 | V198: 3.7 | W198: 18 | X198: 2-Stage | Y198: ECM - CA | Z198: 2014-04-11
A199: Waterfurnace | B199: ND 2-stage | C199: NDV/NDH072G1*4 | D199: 072 | E199: Part | F199: 52800 | G199: 16 | H199: 16 | I199: 61400 | J199: 5.2 | K199: 16 | L199: 61000 | M199: 27 | N199: 16 | O199: 49400 | P199: 4.4 | Q199: 16 | R199: 59000 | S199: 23.4 | T199: 16 | U199: 45000 | V199: 4.1 | W199: 16 | X199: 2-Stage | Y199: ECM - CA | Z199: 2014-04-11
A200: Waterfurnace | B200: NDW 2-stage | C200: NDW100*5 | D200: 100 | E200: Full | F200: 93000 | G200: 14.6 | H200: 23 | I200: 125000 | J200: 4 | K200: 23 | L200: 105000 | M200: 22 | N200: 23 | O200: 103000 | P200: 3.3 | Q200: 23 | R200: 100000 | S200: 16.8 | T200: 23 | U200: 82000 | V200: 3 | W200: 23 | X200: 2-Stage | Y200: NA | Z200: 2013-04-10
... 49 more rows
